Workbook

Sheet Start
F1: 1 | G1: 2 | I1: 0
A2: 1 | B2: Start
A3: 2 | B3: Start
A5: 0 | D5: 2 | E5: 0
C6: Start | F6: For many basic Excel techniques, which are used here in this file, there are detailed explanations in the file "Excel-Basics". Therefore - if here in this file it is said "Do this … and that …" and you don't know how to do it - please have a look into the file "Excel-Basics". Hopefully you will find the needed explanations there. If not - send me a short notice to stern@jade-hs.de! Before you start working with this file you should definitely work through the two sheets "How to make notes" and "Help ..." in the file "Excel-Basics"! If the buttons for language switching don't work, please click the following: File / Options / Trust Center / Trust Center Settings / Macro Settings / Enable All Macros Then close and re-open this file again. | G6: Zu vielen grundlegenen Excel-Techniken, die hier in dieser Datei benutzt werden, gibt es detaillierte Erläuterungen in der Datei "Excel-Basics". Wenn es daher in dieser Datei heißt "Machen Sie dieses … und jenes …" und Sie wissen nicht wie - sehen Sie bitte in der Datei "Excel-Basics" nach. Hoffentlich finden Sie dort die benötigten Erklärungen. Wenn nicht - schicken Sie mir bitte einen Hinweis an stern@jade-hs.de! Bevor Sie beginnen, mit dieser Datei zu arbeiten, sollten Sie aber auf jeden Fall zuerst die beiden Blätter "Notizen machen" und "Hilfe ..." in der Datei "Excel-Basics" durchgearbeitet haben! Wenn die Buttons zur Sprachumschaltung nicht funktionieren, klicken Sie bitte folgendes an: Datei / Optionen / Trust-Center / Einstellungen für das Trust-Center / Makroeinstellungen / Alle Makros aktivieren Dann diese Datei schließen und erneut öffnen.
C7: Vorlage
C8: Motivation
C9: Zufallszahlen | E9: 1525.5
C10: 01 SVERWEIS (1, A) | E10: 57
C11: 02 WVERWEIS (1, A) | E11: 0
C12: 03 Bild
C13: 04 SVERWEIS (2, A)
C14: 05 Funktionsassistent (1)
C15: 06 WVERWEIS (2, A)
C16: 061 VERWEIS
C17: 062 XVERWEIS (A)
C18: 063 SKVERWEIS
C19: 07 Tariftabelle (1)
C20: 08 S-W-VERWEIS (A)
C21: 08 Tariftabelle (2)
C22: 09 Funktionsassistent (2)
C23: 10 Lohnberechnung (A)
C24: 10 Lohntabelle (A)
C25: 11 Umschlag (A)
C26: 12 Tarifanalyse (A1)
C27: 13 Bevor Sie weitermachen … (1)
C28: 14 Tarifanalyse (A2)
C29: 15 Bevor Sie weitermachen … (2)
C30: 16 Rechnung (A)
C31: 16 Firmen
C32: 16 Waren
C33: 17 Wert in Liste
C34: 18 Wert nicht in Liste
C35: 19 Containerlisten (A)
C36: 20 Intervallsuche

Sheet Vorlage
F1: 0
A2: 1 | B2: Template | F2: Back to Start
A3: 2 | B3: Vorlage | F3: Startseite
A10: 0

Sheet Vorlage_ (hidden)
B1: 2 | C1: 2 | D1: 2 | E1: 1 | F1: 1 | G1: 1 | H1: 0
A2: 1 | B2: Template_ | F2: =B2 -> Template_
A3: 2 | B3: Vorlage_
A4: 0
B5: 1 | C5: In meinen Übungsdateien können Sie nicht wie üblich durch Klick auf das Pluszeichen ein neues Arbeitsblatt anlegen. Wenn Sie ein neues Blatt brauchen, müssen Sie eine Kopie des Blattes "Vorlage" anlegen. ACHTUNG: Denken Sie daran, die Option "Kopie erstellen" zu aktivieren! | E5: 1 | F5: In my exercise files you cannot create a new worksheet by clicking on the plus sign as usual. If you need a new sheet, you have to create a copy of the sheet "Template". ATTENTION: Please remember to activate the option "Create copy"!
B6: =IF(C6<>"",B5+1,"") -> 2 | C6: Nachdem Sie eine Kopie dieses Blattes angelegt haben, ändern Sie dessen Namen NICHT wie üblich unten auf dem Register. Stattdessen schreiben Sie den Blattnamen in die Zelle B3 des kopierten Blattes. Anschließend wechseln Sie auf das "Start"-Blatt und klicken dort erneut auf den Sprachbutton. Dann müssen Sie evtl. etwas Geduld haben, weil Excel alle Blätter - auch die ausgeblendeten mit den Videotexten - durchgeht, um sie in's Inhaltsverzeichnis aufzunehmen. Der neue Name erscheint dann in der Liste der Blätter auf dem "Start"-Blatt und auf dem Register des kopierten Blattes. | E6: =IF(F6<>"",E5+1,"") -> 2 | F6: After you have created a copy of this sheet, DO NOT change its name as usual at the bottom of the tab. Instead, write the sheet name in cell B2 of the copied sheet. Then switch to the "Start" page and click on the language button again. Then you may have to have some patience, because Excel goes through all sheets - even the hidden ones with the video texts - to include them into the table of contents. The new name then appears in the list of sheets on the "Start" sheet and on the tab of the copied sheet.
B7: =IF(C7<>"",B6+1,"") ->  | E7: =IF(F7<>"",E6+1,"") -> 

Sheet Motivation
L1: 0
A2: 1 | B2: Motivation | F2: Back to Start
A3: 2 | B3: Motivation | F3: Startseite
A6: 1 | C6: Employment notice in a German newspaper:
A7: 2 | C7: Stellenanzeige in einer Tageszeitung:
A10: 0
N16: "Good Excel skills (preferably skills
N17: in the application of VLOOKUP)"
N20: S-Verweis = SVERWEIS() = VLOOKUP()

Sheet Zufallszahlen
J1: 0
A2: 1 | B2: Random numbers | F2: Back to Start
A3: 2 | B3: Zufallszahlen | F3: Startseite
A5: 2 | B5: Achtung | C5: Wenn Sie nach dem Drücken von Strg-Umschalt-N eine Fehlermeldung bekommen, müssen Sie zunächst die Makros aktivieren: "Datei / Optionen / Trust Center / Einstellungen für das Trust Center / Makroeinstellungen / Alle Makros aktivieren / OK / OK"
A6: 2
A7: 2
A8: 2
A9: 2
A10: 1 | B10: Attention | C10: If you see an error message after pressing Ctrl-Shift-N you have to activate the macros first: "File / Options / Trust Center / Trust Center Settings / Macro Settings / Enable all macros / OK / OK"
A11: 1
A12: 1
A13: 1
A40: 1 | B40: Exercise | C40: Try it!
A41: 2 | B41: Übung | C41: Probieren Sie es aus!
A42: 0

Sheet Zufallszahlen_ (hidden)
B1: 2 | C1: 2 | D1: 2 | E1: 1 | F1: 1 | G1: 1 | H1: 0
A2: 1 | B2: Random numbers_ | F2: =B2 -> Random numbers_
A3: 2 | B3: Zufallszahlen_
A4: 0
B5: 1 | C5: Diese Excel-Datei enthält ein Formular zur Generierung von Zufallszahlen. Sie können es mit der Tastenkombination Strg-Umschalt-N öffnen. Dann können Sie es benutzen, um sich schnell beliebige Mengen von Übungsdaten zu generieren! | E5: 1 | F5: This Excel file contains a form for the generation of random numbers. You can open it with the shortcut Ctrl-Shift-N. Then you can use it to generate very quickly any number of trial data!
B6: =IF(C6<>"",B5+1,"") -> 2 | C6: Dazu müssen Sie zuerst einen Bereich markieren, der mit Zufallszahlen gefüllt werden soll. Dieser Bereich kann auch aus mehreren nicht zusammenhängenden Teilbereichen bestehen! (markieren mit gedrückter Strg-Taste) Dann geben Sie die Parameter für die Generierung der Zufallszahlen ein und drücken "Bereich(e) füllen". Sie können auswählen, ob - ein Teil der Zellen leer bleiben soll, - ein Teil der Zahlen negativ sein soll, - nur ganze Zahlen generiert werden sollen. Mit dem Button "Bereich(e) leeren" können Sie … ok … das muss ich wohl nicht beschreiben. | E6: =IF(F6<>"",E5+1,"") -> 2 | F6: To do this, you must first select a range to be filled with random numbers. This range can also consist of several non-contiguous sub ranges! (selected with pressed Ctrl key) Then enter the parameters for the generation of the random numbers and press "Fill range(s)". You can choose whether - some of the cells should remain empty, - some of the numbers should be negative, - only integer numbers should be generated. With the button "Clear range(s)" you can ... ok ... I don't have to describe that.
B7: =IF(C7<>"",B6+1,"") ->  | E7: =IF(F7<>"",E6+1,"") -> 

Sheet 01 SVERWEIS (1, A)
H1: 0
A2: 1 | B2: 01 VLOOKUP (1, E) | F2: Back to Start
A3: 2 | B3: 01 SVERWEIS (1, A) | F3: Startseite
A5: 1 | C5: sorted: | K5: unsorted:
A6: 2 | C6: sortiert: | K6: unsortiert:
A7: 1 | C7: ZIP code range | D7: price/kg | K7: ZIP code range | L7: price/kg
A8: 2 | C8: PLZ-Bereich | D8: Preis/Kg | K8: PLZ-Bereich | L8: Preis/Kg
C9: 0 | D9: 0.3 | E9: "is smaller than 37175" | K9: 0 | L9: 0.3
C10: 10000 | D10: 0.2 | E10: "is smaller than 37175" | K10: 10000 | L10: 0.2
C11: 20000 | D11: 0.1 | E11: "is smaller than 37175" | K11: 20000 | L11: 0.1
C12: 30000 | D12: 0.2 | E12: "is smaller than 37175" | K12: 30000 | L12: 0.2
C13: 40000 | D13: 0.3 | E13: "is larger than 37175" -> one row above! | K13: 70000 | L13: 0.6
C14: 50000 | D14: 0.4 | K14: 50000 | L14: 0.4
C15: 60000 | D15: 0.5 | K15: 60000 | L15: 0.5
C16: 70000 | D16: 0.6 | K16: 40000 | L16: 0.3
C17: 80000 | D17: 0.7 | K17: 80000 | L17: 0.7
C18: 90000 | D18: 0.8 | K18: 90000 | L18: 0.8
A20: 2 | C20: Beispiel:
A21: 2 | C21: SVERWEIS(37175;C9:D18;2;WAHR) = | F21: =VLOOKUP(37175,C7:D16,2,TRUE) -> 0.2
A22: 1 | C22: Example:
A23: 1 | C23: VLOOKUP(37175;C9:D18;2;TRUE) = | F23: =VLOOKUP(37175,C9:D18,2,TRUE) -> 0.2
A25: 2 | B25: Übung … | C25: ... mit sortierter Liste: | F25: erst: Eingabe von Hand | G25: dann: Formel eingeben | K25: ... mit unsortierter Liste: | N25: erst: Eingabe von Hand | O25: dann: Formel eingeben
A26: 2 | C26: SVERWEIS(50000;C9:D18;2;FALSCH) = | F26: ? | G26: ? | J26: SVERWEIS(50000;K9:L18;2;FALSCH) = | N26: ? | O26: ?
A27: 2 | C27: SVERWEIS(50000;C9:D18;2;WAHR) = | F27: ? | G27: ? | J27: SVERWEIS(50000;K9:L18;2;WAHR) = | N27: ? | O27: ?
A28: 2 | C28: SVERWEIS(76543;C9:D18;2;WAHR) = | F28: ? | G28: ? | J28: SVERWEIS(76543;K9:L18;2;WAHR) = | N28: ? | O28: ?
A29: 2 | C29: SVERWEIS(76543;C9:D18;2;FALSCH) = | F29: ? | G29: ? | J29: SVERWEIS(76543;K9:L18;2;FALSCH) = | N29: ? | O29: ?
A30: 2
A31: 2 | C31: Mit dem SVERWEIS(a;B:C;d;WAHR/FALSCH) fordern Sie Excel auf:
A32: 2
A33: 2 | C33: Suche den Wert a in der ersten Spalte des Bereiches B:C. Wenn Du den Wert gefunden hast, gehe nach rechts in die d-te Spalte des Bereiches B:C und liefere den Wert zurück, der dort steht. Das vierte Funktionsargument kann die Werte WAHR oder FALSCH annehmen. Das bedeutet: „FALSCH“: Suche genau nach dem Suchkriterium a! „WAHR“: Suche nach dem größten Wert, der kleiner oder gleich dem Suchkriterium a ist.
A34: 2
A35: 2
A36: 2
A37: 2
A38: 2
A39: 2
A40: 2 | B40: Achtung | C40: Der Bereich B:C muss aufsteigend sortiert sein nach der ersten Spalte!!
A42: 1 | B42: Exercise … | C42: ... with the sorted list: | F42: first: enter result manually | G42: then: enter formula | K42: ... with the unsorted list: | N42: first: enter result manually | O42: then: enter formula
A43: 1 | C43: VLOOKUP(50000;C9:D18;2;FALSE) = | F43: ? | G43: ? | J43: VLOOKUP(50000;K9:L18;2;FALSE) = | N43: ? | O43: ?
A44: 1 | C44: VLOOKUP(50000;C9:D18;2;TRUE) = | F44: ? | G44: ? | J44: VLOOKUP(50000;K9:L18;2;TRUE) = | N44: ? | O44: ?
A45: 1 | C45: VLOOKUP(76543;C9:D18;2;TRUE) = | F45: ? | G45: ? | J45: VLOOKUP(76543;K9:L18;2;TRUE) = | N45: ? | O45: ?
A46: 1 | C46: VLOOKUP(76543;C9:D18;2;FALSE) = | F46: ? | G46: ? | J46: VLOOKUP(76543;K9:L18;2;FALSE) = | N46: ? | O46: ?
A47: 1
A48: 1 | C48: With the VLOOKUP(a;B:C;d;TRUE/FALSE) you request Excel:
A49: 1
A50: 1 | C50: Look for the value a in the first column of the range B:C. If you have found the value, move to the right into the d'th column of the range B:C and give the value from there as a result. The fourth argument can have the values TRUE or FALSE. That means: „FALSE“: Look exactly for the value a! „TRUE“: Look for the largest value, which is smaller or equal to a.
A51: 1
A52: 1
A53: 1
A54: 1
A55: 1
A56: 1
A57: 1 | B57: Attention | C57: The range B:C must be sorted ascendingly according to its first column!!
A60: 0

Sheet 01 SVERWEIS (1, A)_ (hidden)
B1: 2 | C1: 2 | D1: 2 | E1: 1 | F1: 1 | G1: 1 | H1: 0
A2: 1 | B2: 01 VLOOKUP (1, E)_ | F2: =B2 -> 01 VLOOKUP (1, E)_
A3: 2 | B3: 01 SVERWEIS (1, A)_
A4: 0
B5: 1 | C5: Der SVERWEIS ist eine komplexe Excel-Formel mit vier Argumenten. Am besten lässt sich an einem Beispiel demonstrieren, was der SVERWEIS macht. Sie sehen hier eine typische Tariftabelle - Transporte in einen bestimmten PLZ-Breich sind unterschiedlich teuer. Mit Hilfe des SVERWEISes kann man nun z.B. herausfinden, was ein Transport in einen Ort mit der PLZ 37175 kostet: 20 Cent pro kg. | E5: 1 | F5: The VLOOKUP is a complex Excel formula with four arguments. An example is the best way to demonstrate what the SVERWEIS does. Here you can see a typical charge table - transports to a certain zip code area are differently expensive. With the help of the VLOOKUP you can now find out, for example, what a transport to a place with the zip code 37175 costs: 20 cents per kg.
B6: =IF(C6<>"",B5+1,"") -> 2 | C6: Die dazugehörige Formel sehen Sie hier. Sie besagt: "Suche den Wert 37175 in der ersten Spalte des Bereichs C9:D18. Wenn er gefunden wurde, gehe nach rechts in die zweite Spalte und liefere den Wert zurück, der dort steht." | E6: =IF(F6<>"",E5+1,"") -> 2 | F6: You can see the corresponding formula here. It says: "Find the value 37175 in the first column of the range C9:D18. When it is found, go right to the second column and return the value that's there."
B7: =IF(C7<>"",B6+1,"") -> 3 | C7: Die Erklärung des vierten Arguments ist etwas aufwändiger: Dort steht entweder FALSCH oder WAHR. Es ist aber nichts falsch und auch nichts wahr. Es geht hier nur darum, dass für das vierte Argument nur zwei unterschiedliche Werte erlaubt sind. Dafür nimmt man in der Informatik üblicherweise "0" und "1" oder "ja" und "nein" oder "wahr" und "falsch". | E7: =IF(F7<>"",E6+1,"") -> 3 | F7: The explanation of the fourth argument is somewhat more elaborate: It says either FALSE or TRUE. But there is nothing wrong and nothing true. The only thing that matters here is that only two different values are allowed for the fourth argument. In computer science, one usually takes "0" and "1" or "yes" and "no" or "true" and "false" for this.
B8: 4 | C8: FALSCH bedeutet, dass der SVERWEIS genau nach dem ersten Argument (z.B. 37175) suchen soll. WAHR bedeutet, dass der SVERWEIS nach dem größten Wert suchen soll, der kleiner oder gleich dem ersten Argument ist. | E8: 4 | F8: FALSE means that the VLOOKUP should search for exactly the first argument (e.g. 37175). TRUE means that the VLOOKUP should search for the largest value that is less than or equal to the first argument.
B9: 5 | C9: Letzteres ist auf Anhieb vielleicht etwas unverständlich. Sehen Sie sich dazu die Erklärung rechts neben der Tariftabelle an: Excel vergleicht 37175 mit dem ersten Wert in der ersten Spalte und stellt fest, dass dieser kleiner ist; dasselbe beim zweiten, dritten und vierten Wert. Erst der fünfte Wert ist größer als das Suchkriterium 37175. Also ist der Wert davor der größte der kleiner als 37175 ist. Das ist 30000. | E9: 5 | F9: The latter is perhaps a little incomprehensible at first sight. Take a look at the explanation to the right of the charge table: Excel compares 37175 with the first value in the first column and finds that it is smaller; the same with the second, third and fourth value. Only the fifth value is larger than the search criterion 37175, so the value before that is the largest one that is smaller than 37175. That is 30,000.
B10: 6 | C10: Daher geht Excel in dieser Zeile nach rechts in die zweite Spalte (= drittes Argument des SVERWEISes!) und liefert den Wert 0,20 € als Ergebnis. Voila! | E10: 6 | F10: Therefore Excel goes right in this row to the second column (= third argument of the VLOOKUP!) and returns the value 0.20 € as result. Voila!
B11: 7 | C11: Zur Übung machen Sie mal folgendes: Versuchen Sie, wie Excel zu "denken" und schreiben Sie in Spalte F, welches Ergebnis der links daneben stehende SVERWEIS liefern müsste. Dann geben Sie in Spalte G die Formel ein und überprüfen, ob Sie richtig gedacht haben. Wenn ja, haben Sie verstanden, wie der SVERWEIS arbeitet. | E11: 7 | F11: For practicing, do the following: Try to "think" like Excel and write in column F what the result of the VLOOKUP to the left should be. Then enter the formula in column G and check whether you have thought correctly. If you have, you have understood how the VLOOKUP works.
B12: 8 | C12: Eine wichtige Voraussetzung für das korrekte Funktionieren des SVERWEISes habe ich noch nicht erwähnt: Der Suchbereich (=das zweite Argument) muss nach der ersten Spalte aufsteigend sortiert sein! Zum Beweis dessen sehen Sie sich bitte die Tariftabelle in den Spalten K und L an. Diese ist nicht nach der ersten Spalte sortiert. | E12: 8 | F12: I have not yet mentioned an important requirement for the correct functioning of the VLOOKUP: The search range (=the second argument) must be sorted by the first column in ascending order! To prove this, please have a look at the charge table in columns K and L. It is not sorted by the first column.
B13: 9 | C13: Machen Sie jetzt nochmal die gleiche Übung wie mit der sortierten Tabelle: Versuchen Sie, wie Excel zu "denken" und schreiben Sie in Spalte N, welches Ergebnis der links daneben stehende SVERWEIS liefern müsste. Dann geben Sie in Spalte O die Formel ein und überprüfen, ob Sie richtig gedacht haben. Wenn ja, haben Sie wirklich verstanden, wie der SVERWEIS arbeitet. | E13: 9 | F13: Now do the same exercise again as with the sorted table: Try to "think" like Excel and write in column N what the result of the VLOOKUP to the left should be. Then enter the formula in column O and check whether you have thought correctly. If so, you have really understood how the VLOOKUP works.

Sheet 02 WVERWEIS (1, A)
I1: 0
A2: 1 | B2: 02 HLOOKUP (1, E) | F2: Back to Start
A3: 2 | B3: 02 WVERWEIS (1, A) | F3: Startseite
A5: 1 | C5: sorted: | K5: unsorted:
A6: 2 | C6: sortiert: | K6: unsortiert:
C7: weight | D7: 10 | E7: 20 | F7: 30 | G7: 40 | H7: 50 | K7: weight | L7: 10 | M7: 40 | N7: 30 | O7: 20 | P7: 50
C8: price | D8: 0.3 | E8: 0.4 | F8: 0.7 | G8: 1 | H8: 1.3 | K8: price | L8: 0.3 | M8: 1 | N8: 0.7 | O8: 0.4 | P8: 1.3
A10: 1 | C10: Example:
A11: 1 | C11: HLOOKUP(32,5;B2:F3;2;TRUE) = | F11: =HLOOKUP(32.5,D7:H8,2,TRUE) -> 0.7
A12: 2 | C12: Beispiel:
A13: 2 | C13: WVERWEIS(32,5;B2:F3;2;WAHR) = | F13: =HLOOKUP(32.5,D7:H8,2,TRUE) -> 0.7
A16: 2 | B16: Übung … | C16: ... mit sortierter Liste: | F16: erst: Eingabe von Hand | G16: dann: Formel eingeben | K16: ... mit unsortierter Liste: | N16: erst: Eingabe von Hand | O16: dann: Formel eingeben
A17: 2 | C17: WVERWEIS(30;D7:H8;2;WAHR) = | F17: ? | G17: ? | J17: WVERWEIS(30;L7:P8;2;WAHR) = | N17: ? | O17: ?
A18: 2 | C18: WVERWEIS(30;D7:H8;2;FALSCH) = | F18: ? | G18: ? | J18: WVERWEIS(30;L7:P8;2;FALSCH) = | N18: ? | O18: ?
A19: 2 | C19: WVERWEIS(21,35;D7:H8;2;WAHR) = | F19: ? | G19: ? | J19: WVERWEIS(21,35;L7:P8;2;WAHR) = | N19: ? | O19: ?
A20: 2 | C20: WVERWEIS(21,35;D7:H8;2;FALSCH) = | F20: ? | G20: ? | J20: WVERWEIS(21,35;L7:P8;2;FALSCH) = | N20: ? | O20: ?
A21: 2
A22: 2 | C22: Mit dem WVERWEIS(a;B:C;d;WAHR/FALSCH) fordern Sie Excel auf:
A23: 2
A24: 2 | C24: Suche den Wert a in der ersten Zeile des Bereiches B:C. Wenn Du den Wert gefunden hast, gehe nach unten in die d-te Zeile des Bereiches B:C und liefere den Wert zurück, der dort steht. Das vierte Funktionsargument kann die Werte WAHR oder FALSCH annehmen. Das bedeutet: „FALSCH“: Suche genau nach dem Suchkriterium a! „WAHR“: Suche nach dem größten Wert, der kleiner oder gleich dem Suchkriterium a ist.
A25: 2
A26: 2
A27: 2
A28: 2
A29: 2
A30: 2
A31: 2
A32: 2 | B32: Achtung | C32: Der Bereich B:C muss aufsteigend sortiert sein nach der ersten Zeile!!
A34: 1 | B34: Exercise … | C34: ... with the sorted list: | F34: first: enter result manually | G34: then: enter formula | K34: ... with the unsorted list: | N34: first: enter result manually | O34: then: enter formula
A35: 1 | C35: HLOOKUP(30;D7:H8;2;TRUE) = | F35: ? | G35: ? | J35: HLOOKUP(30;L7:P8;2;TRUE) = | N35: ? | O35: ?
A36: 1 | C36: HLOOKUP(30;D7:H8;2;FALSE) = | F36: ? | G36: ? | J36: HLOOKUP(30;L7:P8;2;FALSE) = | N36: ? | O36: ?
A37: 1 | C37: HLOOKUP(21,35;D7:H8;2;TRUE) = | F37: ? | G37: ? | J37: HLOOKUP(21,35;L7:P8;2;TRUE) = | N37: ? | O37: ?
A38: 1 | C38: HLOOKUP(21,35;D7:H8;2;FALSE) = | F38: ? | G38: ? | J38: HLOOKUP(21,35;L7:P8;2;FALSE) = | N38: ? | O38: ?
A39: 1
A40: 1 | C40: With the HLOOKUP(a;B:C;d;TRUE/FALSE) you request Excel:
A41: 1
A42: 1 | C42: Look for the value a in the first row of the range B:C. If you have found the value, move down to the d'th row of the range B:C and give the value from there as a result. The fourth argument can have the values TRUE or FALSE. That means: „FALSE“: Look exactly for the value a! „TRUE“: Look for the largest value, which is smaller or equal to a.
A43: 1
A44: 1
A45: 1
A46: 1
A47: 1
A48: 1
A49: 1 | B49: Attention | C49: The range B:C must be sorted ascendingly according to its first row!!
A55: 0

Sheet 02 WVERWEIS (1, A)_ (hidden)
B1: 2 | C1: 2 | D1: 2 | E1: 1 | F1: 1 | G1: 1 | H1: 0
A2: 1 | B2: 02 HLOOKUP (1, E)_ | F2: =B2 -> 02 HLOOKUP (1, E)_
A3: 2 | B3: 02 WVERWEIS (1, A)_
A4: 0
B5: 1 | C5: Der WVERWEIS funktioniert ganz analog zum SVERWEIS - nur dass hier nicht senkrecht in der ersten Spalte des Suchbereichs, sondern waagerecht in der ersten Zeile gesucht wird. Wurde der Wert gefunden, so wird der Wert in der darunter liegenden Zeile zurückgeliefert. In dem Beispiel wird waagerecht nach dem Wert 32,5 gesucht - und zwar mit dem vierten Argument "WAHR"; also nach dem größten Wert, der kleiner oder gleich 32,5 ist. Das ist 30. Also liefert der WVERWEIS 0,70€ als Ergebnis. Während es beim SVERWEIS also heißt "runter - rüber", heißt es beim WVERWEIS "rüber - runter". | E5: 1 | F5: The HLOOKUP works in the same way as the VLOOKUP - except that the search is not performed vertically in the first column of the search range, but horizontally in its first row. If the value was found, the value in the row below is returned. In the example, the value 32.5 is searched for horizontally - with the fourth argument "TRUE"; that is, the largest value that is less than or equal to 32.5. This is 30. So the HLOOKUP returns 0.70€ as the result. So while the VLOOKUP means "down - over", the HLOOKUP means "over - down".
B6: =IF(C6<>"",B5+1,"") -> 2 | C6: Machen Sie jetzt die gleichen beiden Übungen wie beim SVERWEIS - also erst von Hand eingeben, welches Ergebnis Sie vom WVERWEIS erwarten, dann daneben die Formel eingeben und überprüfen, ob Sie richtig lagen. Machen Sie die Übung sowohl für die sortierte als auch für die unsortierte Tabelle. | E6: =IF(F6<>"",E5+1,"") -> 2 | F6: Now do the same two exercises as for the VLOOKUP - first enter manually what result you expect from the HLOOKUP, then enter the formula next to it and check if you were right. Do the exercise for both sorted and unsorted tables.
B7: =IF(C7<>"",B6+1,"") ->  | E7: =IF(F7<>"",E6+1,"") -> 

Sheet 03 Bild
K1: 0
A2: 1 | B2: 03 Picture | F2: Back to Start
A3: 2 | B3: 03 Bild | F3: Startseite
A5: 2 | B5: WVERWEIS | C5: "rüber - runter"
A6: 1 | B6: HLOOKUP | C6: "across - down"
A20: 2 | B20: SVERWEIS | C20: "runter - rüber"
A21: 1 | B21: VLOOKUP | C21: "down - across"
A34: 0

Sheet 03 Bild_ (hidden)
B1: 2 | C1: 2 | D1: 2 | E1: 1 | F1: 1 | G1: 1 | H1: 0
A2: 1 | B2: 03 Picture_ | F2: =B2 -> 03 Picture_
A3: 2 | B3: 03 Bild_
A4: 0
B5: 1 | C5: Dieses Bild zeigt noch einmal das Grundprinzip von SVERWEIS und WVERWEIS: Beim WVERWEIS heißt es "rüber - runter" … … nicht "drüber und drunter" ;-) … während es beim SVERWEIS "runter - rüber" heißt! Bisher hatten wir das Ergebnis immer in der zweiten Zeile bzw. Spalte gefunden. Es kann aber natürlich auch die 3., 4., 5., … Zeile oder Spalte sein. | E5: 1 | F5: This picture shows again the basic principle of VLOOKUP and HLOOKUP: The HLOOKUP is "over - down"... ... not "higgledy-piggledy" ;-) ... while the VLOOKUP is "down - over"! Until now, we had always found the result in the second row or column. But of course it can also be the 3rd, 4th, 5th, ... row or column.
B6: =IF(C6<>"",B5+1,"") ->  | E6: =IF(F6<>"",E5+1,"") -> 
B7: =IF(C7<>"",B6+1,"") ->  | E7: =IF(F7<>"",E6+1,"") -> 

Sheet 04 SVERWEIS (2, A)
I1: 0
A2: 1 | B2: 04 VLOOKUP (2, E) | F2: Back to Start
A3: 2 | B3: 04 SVERWEIS (2, A) | F3: Startseite
A5: 2 | B5: Übung | C5: Berechnung des Preises in Abhängigkeit von der Postleitzahl (SVERWEIS): (mit der Tariftabelle vom Blatt "SVERWEIS (1, A)"!) Frage: "Was muss ich wo suchen?"
A6: 2
A7: 2
A8: 2
A9: 1 | B9: Exercise | C9: Calculation of the price depending on the ZIP code (VLOOKUP): (using the charge table from the worksheet "VLOOKUP (1, E)"!) Question: "What must I search where?"
A10: 1
A11: 1
A12: 1
C14: ZIP code | D14: customer | E14: weight | F14: price
C15: 11364 | D15: Meier | E15: 12.35 | F15: ?
C16: 12475 | D16: Schulz | E16: 27.55 | F16: ?
C17: 25125 | D17: Schmidt | E17: 36.22 | F17: ?
C18: 29177 | D18: Lehmann | E18: 34.22 | F18: ?
C19: 23777 | D19: Krause | E19: 18.8 | F19: ?
C20: 45298 | D20: Müller | E20: 26.6 | F20: ?
C21: 57800 | D21: Baumann | E21: 42.21 | F21: ?
C22: 58999 | D22: Holzmann | E22: 43.38 | F22: ?
A27: 2 | B27: Übung | C27: Finden Sie heraus, warum die SVERWEISe nicht funktionieren! ACHTUNG: DAS SIND PROBLEME LIVE AUS DER PRAXIS!!
A28: 2
A29: 1 | B29: Exercise | C29: Find out, why the VLOOKUPs don't work! ATTENTION: THESE ARE PROBLEMS LIVE FROM REALITY!!
A30: 1
C34: order nr. | D34: customer | E34: article | F34: price | G34: amount | H34: total price | M34: Summe
C35: 10254 | D35: Chop-suey Chinese | E35: Guaraná Fantástica | F35: 3.6 | G35: 15 | H35: 45.9 | L35: Chop-suey Chinese | M35: =VLOOKUP("Total" & L35,$C$34:$H$59,5,TRUE) -> amount
C36: 10254 | D36: Chop-suey Chinese | E36: Pâté chinois | F36: 19.2 | G36: 21 | H36: 342.72 | L36: Hanari Carnes | M36: =VLOOKUP("Total" & L36,$C$34:$H$59,5,TRUE) -> amount
C37: 10254 | D37: Chop-suey Chinese | E37: Longlife Tofu | F37: 8 | G37: 21 | H37: 168 | L37: Supremes delices | M37: amount
D38: Total Chop-suey Chinese | H38: 556.62 | L38: Toms Spezialitäten | M38: amount
C39: 10250 | D39: Hanari Carnes | E39: Manjimup Dried Apples | F39: 42.4 | G39: 35 | H39: 1261.4 | L39: Victuailles en stock | M39: amount
C40: 10250 | D40: Hanari Carnes | E40: Jack's New England Clam Chowder | F40: 7.7 | G40: 10 | H40: 77 | L40: Vins et alcools Chevalier | M40: amount
C41: 10250 | D41: Hanari Carnes | E41: Louisiana Fiery Hot Pepper Sauce | F41: 16.8 | G41: 15 | H41: 214.2
C42: 10253 | D42: Hanari Carnes | E42: Chartreuse verte | F42: 14.4 | G42: 42 | H42: 604.8
C43: 10253 | D43: Hanari Carnes | E43: Gorgonzola Telino | F43: 10 | G43: 20 | H43: 200
C44: 10253 | D44: Hanari Carnes | E44: Maxilaku | F44: 16 | G44: 40 | H44: 640
D45: Total Hanari Carnes | H45: 2997.4
C46: 10252 | D46: Supremes delices | E46: Geitost | F46: 2 | G46: 25 | H46: 47.5
C47: 10252 | D47: Supremes delices | E47: Camembert Pierrot | F47: 27.2 | G47: 40 | H47: 1088
C48: 10252 | D48: Supremes delices | E48: Sir Rodney's Marmalade | F48: 64.8 | G48: 40 | H48: 2462.4
D49: Total Supremes delices | H49: 3597.9
C50: 10249 | D50: Toms Spezialitäten | E50: Manjimup Dried Apples | F50: 42.4 | G50: 40 | H50: 1696
C51: 10249 | D51: Toms Spezialitäten | E51: Tofu | F51: 18.6 | G51: 9 | H51: 167.4
A52: 0 | D52: Total Toms Spezialitäten | H52: 1863.4
C53: 10251 | D53: Victuailles en stock | E53: Gustaf's Knäckebröd | F53: 16.8 | G53: 6 | H53: 95.76
C54: 10251 | D54: Victuailles en stock | E54: Ravioli Angelo | F54: 15.6 | G54: 15 | H54: 222.3
C55: 10251 | D55: Victuailles en stock | E55: Louisiana Fiery Hot Pepper Sauce | F55: 16.8 | G55: 20 | H55: 336
D56: Total Victuailles en stock | H56: 654.06
C57: 10248 | D57: Vins et alcools Chevalier | E57: Singaporean Hokkien Fried Mee | F57: 9.8 | G57: 10 | H57: 98
C58: 10248 | D58: Vins et alcools Chevalier | E58: Mozzarella di Giovanni | F58: 24.3 | G58: 5 | H58: 121.5
C59: 10248 | D59: Vins et alcools Chevalier | E59: Queso Cabrales | F59: 14 | G59: 12 | H59: 168
D60: Total Vins et alcools Chevalier | H60: 387.5

Sheet 04 SVERWEIS (2, A)_ (hidden)
B1: 2 | C1: 2 | D1: 2 | E1: 1 | F1: 1 | G1: 1 | H1: 0
A2: 1 | B2: 04 VLOOKUP (2, E)_ | F2: =B2 -> 04 VLOOKUP (2, E)_
A3: 2 | B3: 04 SVERWEIS (2, A)_
A4: 0
B5: 1 | C5: Nachdem Sie wissen, wie ein SVERWEIS funktioniert, sollen Sie ihn praktisch anwenden. Dafür sehen Sie hier eine kleine Auftragstabelle. Sie sollen nun die Tariftabelle vom Blatt "SVERWEIS (1, A)" benutzen, um mittels SVERWEIS auszurechnen, was die einzelnen Transporte kosten. Entsprechend den ersten beiden Argumenten des SVERWEISes müssen Sie als erstes überlegen, WAS Sie WO suchen müssen - nämlich die Postleitzahl aus Spalte C in der ersten Spalte der Tariftabelle auf dem Blatt "SVERWEIS (1, A)"! | E5: 1 | F5: After you know how a VLOOKUP works, you should use it practically. For this purpose you can see a small order table here. You should now use the charge table from the sheet "VLOOKUP (1, A)" to calculate the costs of the individual transports. According to the first two arguments of the VLOOKUP, the first thing to consider is WHAT to look for WHERE - namely the zip code from column C in the first column of the charge table on the sheet "VLOOKUP (1, A)"!
B6: =IF(C6<>"",B5+1,"") -> 2 | C6: ACHTUNG - FALLE: Zur Eingabe der Formel müssen Sie ja auf das Blatt "SVERWEIS (1, A)" wechseln, um dort den Suchbereich zu markieren. Dann dürfen Sie aber nicht sofort zurück auf dieses Blatt wechseln, weil Excel dann in der Formel den Namen dieses Blattes einträgt. Probieren Sie das ruhig einmal aus, um zu erkennen, worin die Falle besteht! | E6: =IF(F6<>"",E5+1,"") -> 2 | F6: ATTENTION - TRAP: To enter the formula you have to switch to the sheet "VLOOKUP (1, A)" to mark the search range there. But then you must not switch back to this sheet immediately, because Excel then enters the name of this sheet in the formula. Try it out to see what the trap is!
B7: =IF(C7<>"",B6+1,"") -> 3 | C7: Um der Falle zu entgehen, müssen Sie oben in der Formel-Eingabezeile hinter den Suchbereich ein Semikolon setzen. Dann "weiß" Excel, dass der Suchbereich fertig eingegeben wurde und dass das nächste Argument kommt. | E7: =IF(F7<>"",E6+1,"") -> 3 | F7: To avoid the trap, you must place a semicolon behind the search range at the top of the formula input line. Then Excel "knows" that the search range has been entered and that the next argument is coming up.
B8: 4 | C8: Zur Kontrolle Ihrer Ergebnisse sehen Sie hier auf diesem Blatt einen Screenshot der richtigen Lösung. Vielleicht wundern Sie sich, dass Sie etwas anderes heraus bekommen haben? Dann sehen Sie sich bitte die Überschrift der Tariftabelle auf dem Blatt "SVERWEIS (1, A)" nochmal genau an! | E8: =IF(F8<>"",E7+1,"") -> 4 | F8: To check your results, you can see a screenshot of the correct solution here on this sheet. Maybe you are wondering why you got something different? If so, please take a close look at the heading of the charge table on the sheet "VLOOKUP (1, A)" again!

Sheet 05 Funktionsassistent (1)
K1: 0
A2: 1 | B2: 05 Function wizard (1) | F2: Back to Start
A3: 2 | B3: 05 Funktionsassistent (1) | F3: Startseite
A5: 2 | C5: Benutzen Sie zur Eingabe komplexer Funktionen den Funktionsassistenten!
A6: 2
A7: 1 | C7: To enter complex functions use the function wizard!
A8: 1
N10: ZIP code | O10: customer | P10: weight | Q10: price
N11: 11364 | O11: Meier | P11: 12.35 | Q11: =VLOOKUP(N11,'01 SVERWEIS (1, A)'!C9:D18,2,TRUE) -> 0.2
N12: 12475 | O12: Schulz | P12: 27.55 | Q12: ?
N13: 25125 | O13: Schmidt | P13: 36.22 | Q13: ?
N14: 29177 | O14: Lehmann | P14: 34.22 | Q14: ?
N15: 23777 | O15: Krause | P15: 18.8 | Q15: ?
N16: 45298 | O16: Müller | P16: 26.6 | Q16: ?
N17: 57800 | O17: Baumann | P17: 42.21 | Q17: ?
N18: 58999 | O18: Holzmann | P18: 43.38 | Q18: ?
A35: 0

Sheet 05 Funktionsassistent (1)_ (hidden)
B1: 2 | C1: 2 | D1: 2 | E1: 1 | F1: 1 | G1: 1 | H1: 0
A2: 1 | B2: 05 Function wizard (1)_ | F2: =B2 -> 05 Function wizard (1)_
A3: 2 | B3: 05 Funktionsassistent (1)_
A4: 0
B5: 1 | C5: Bisher haben wir die Formel in der entsprechenden Zelle einfach eingetippt. Bei einer komplexen Formel wie dem SVERWEIS (bzw. WVERWEIS) mit vier Argumenten kann man dabei schon mal etwas falsch machen. Daher gibt es den Funktionsassistenten. Dazu müssen Sie oben links neben der Eingabezeile auf das "fx" klicken. Es öffnet sich ein Fenster, in dem Sie die einzugebende Formel auswählen müssen. Falls Sie den SVERWEIS in der Liste "Funktion auswählen" nicht finden, müssen Sie in der Kombobox "Kategorie auswählen" von "Zuletzt verwendet" auf "Alle" wechseln. Nach dem Klick auf "OK" öffnet sich der Funktionsassistent. | E5: 1 | F5: Until now, we have simply typed the formula in the corresponding cell. With a complex formula such as the VLOOKUP (or HLOOKUP) with four arguments, it is possible to make a mistake. That is why we have the function wizard. To do this, you must click on the "fx" left to the formula bar. A window opens in which you have to select the formula to be entered. If you cannot find the VLOOKUP in the "Select a function" list, you have to switch within the combo box from "Most recently used" to "All" in the "Or select a category". After clicking "OK" the function wizard opens.
B6: =IF(C6<>"",B5+1,"") -> 2 | C6: Er gibt Ihnen die Möglichkeit, die Argumente der Formel in einzelnen Eingabefeldern einzugeben. Dadurch können grobe Eingabefehler vermieden werden. Auch hier gilt wieder - ACHTUNG FALLE: Zur Eingabe des Suchbereichs müssen Sie wieder auf das Blatt "SVERWEIS (1, A)" wechseln. Wenn die Einfügemarke dann noch im Feld "Matrix" steht, dürfen Sie nicht zurück auf dieses Blatt wechseln. Klicken Sie deshalb erst in das Eingabefeld "Spaltenindex", bevor Sie zurück auf dieses Blatt wechseln. | E6: =IF(F6<>"",E5+1,"") -> 2 | F6: It allows you to enter the arguments of the formula in individual input fields. This helps to avoid gross input errors. Here again, the following applies - ATTENTION TRAP: To enter the search range you have to switch back to the sheet "VLOOKUP (1, A)". If the cursor is still in the "Table_array" field, you must not switch back to this sheet. Therefore click in the "Col_index_num" input field first before you switch back to this sheet.
B7: =IF(C7<>"",B6+1,"") -> 3 | C7: Bitte üben Sie die Benutzung des Funktionsassistenten, indem Sie die Aufgabe auf dem Blatt "SVERWEIS (2, A)" noch einmal mit Funktionsassistent lösen! In Zukunft könnnen Sie dann selber entscheiden, ob sie ihn benutzen wollen oder die Formel lieber von Hand eintippen. | E7: =IF(F7<>"",E6+1,"") -> 3 | F7: Please practice the use of the function wizard by solving the task on the sheet "VLOOKUP (2, A)" once again with function wizard! In the future you can then decide for yourself if you want to use it or if you prefer to type in the formula manually.
B8: =IF(C8<>"",B7+1,"") ->  | E8: =IF(F8<>"",E7+1,"") -> 

Sheet 06 WVERWEIS (2, A)
J1: 0
A2: 1 | B2: 06 HLOOKUP (2, E) | F2: Back to Start
A3: 2 | B3: 06 WVERWEIS (2, A) | F3: Startseite
A5: 2 | B5: Übung | C5: Berechnung des Preises in Abhängigkeit vom Gewicht (WVERWEIS): (mit der Tariftabelle vom Blatt "WVERWEIS (1, A)"!) Frage: "Was muss ich wo suchen?"
A6: 2
A7: 2
A8: 2
A9: 1 | B9: Exercise | C9: Calculation of the price depending on the weight (HLOOKUP): (using the charge table from the worksheet "HLOOKUP (1, E)"!) Question: "What must I search where?"
A10: 1
A11: 1
A12: 1
C14: ZIP code | D14: customer | E14: weight | F14: price
C15: 11364 | D15: Meier | E15: 12.35 | F15: ?
C16: 12475 | D16: Schulz | E16: 27.55 | F16: ?
C17: 25125 | D17: Schmidt | E17: 36.22 | F17: ?
C18: 29177 | D18: Lehmann | E18: 34.22 | F18: ?
C19: 23777 | D19: Krause | E19: 18.8 | F19: ?
C20: 45298 | D20: Müller | E20: 26.6 | F20: ?
C21: 57800 | D21: Baumann | E21: 42.21 | F21: ?
C22: 58999 | D22: Holzmann | E22: 43.38 | F22: ?
A29: 0

Sheet 06 WVERWEIS (2, A)_ (hidden)
B1: 2 | C1: 2 | D1: 2 | E1: 1 | F1: 1 | G1: 1 | H1: 0
A2: 1 | B2: 06 HLOOKUP (2, E)_ | F2: =B2 -> 06 HLOOKUP (2, E)_
A3: 2 | B3: 06 WVERWEIS (2, A)_
A4: 0
B5: 1 | C5: Hier kommt wieder die gleiche Übung wie beim SVERWEIS für den WVERWEIS: Sie sollen ausrechnen, was die einzelnen Transporte der Auftragstabelle kosten. Dafür sollen Sie jetzt aber die Tariftabelle vom Blatt "WVERWEIS (1, A)" benutzen. WAS muss der WVERWEIS jetzt WO suchen? | E5: 1 | F5: Here comes again the same exercise as with the VLOOKUP for the HLOOKUP: You should calculate what the individual shipments of the order table costs. But now you should use the charge table from the sheet "HLOOKUP (1, A)". WHAT should the HLOOKUP now look for WHERE?
B6: =IF(C6<>"",B5+1,"") -> 2 | C6: Richtig! Das Gewicht aus Spalte E in der ersten Zeile der Tariftabelle auf dem Blatt "WVERWEIS (1, A)"! Beachten Sie auch hier wieder die Falle beim Zurück-Klicken auf dieses Blatt! Um den Funktionsassistenten nochmal zu üben, sollten Sie ihn für diese Aufgabe benutzen! | E6: =IF(F6<>"",E5+1,"") -> 2 | F6: Right! The weight from column E in the first row of the charge table on the sheet "HLOOKUP (1, A)"! Again, note the trap when clicking back to this sheet! To practice the function wizard again, you should use it for this task!
B7: =IF(C7<>"",B6+1,"") ->  | E7: =IF(F7<>"",E6+1,"") -> 
E9: =IF(F9<>"",E8+1,"") -> 
B12: =IF(C12<>"",B11+1,"") -> 

Sheet 061 VERWEIS
F1: 0
A2: 1 | B2: 061 LOOKUP | F2: Back to Start
A3: 2 | B3: 061 VERWEIS | F3: Startseite
A5: 2 | C5: Der Vollständigkeit halber wird hier kurz die Funktion VERWEIS erwähnt - im Grunde genommen braucht man sie aber nicht.
A6: 2
A7: 1 | C7: For the sake of completeness, the LOOKUP function is briefly mentioned here - but basically you don't need it.
A8: 1
A10: 2 | C10: Die MS-Excel-Hilfe sagt:
A11: 2 | D11: Es wird dringend empfohlen, anstelle der Matrixversion von VERWEIS die Funktion SVERWEIS oder die Funktion WVERWEIS zu verwenden. Die Matrixversion wird aus Gründen der Kompatibilität mit anderen Tabellenkalkulationsprogrammen bereitgestellt, ihre Funktionalität ist jedoch eingeschränkt.
A12: 2
A13: 2
A14: 2
A15: 2
A16: 2
A17: 1 | C17: The MS-Excel-Help says:
A18: 1 | D18: It is strongly recommended to use the VLOOKUP function or the HLOOKUP function instead of the matrix version of LOOKUP. The matrix version is provided for compatibility with other spreadsheet software, but its functionality is limited.
A19: 1
A20: 1
A21: 1
D23: weight
C24: ZIP code | D24: 10 | E24: 20 | F24: 30 | G24: 40 | H24: 50
C25: 0 | D25: 0.3 | E25: 0.4 | F25: 0.7 | G25: 1 | H25: 1.3
C26: 10000 | D26: 0.2 | E26: 0.3 | F26: 0.6 | G26: 0.8 | H26: 1.1
C27: 20000 | D27: 0.1 | E27: 0.2 | F27: 0.5 | G27: 0.7 | H27: 0.9
C28: 30000 | D28: 0.2 | E28: 0.3 | F28: 0.6 | G28: 0.9 | H28: 1.2
C29: 40000 | D29: 0.3 | E29: 0.5 | F29: 0.8 | G29: 1.1 | H29: 1.4
C30: 50000 | D30: 0.4 | E30: 0.7 | F30: 1 | G30: 1.4 | H30: 1.7
C31: 60000 | D31: 0.5 | E31: 1 | F31: 1.3 | G31: 1.6 | H31: 2
C32: 70000 | D32: 0.6 | E32: 1.2 | F32: 1.5 | G32: 1.9 | H32: 2.3
C33: 80000 | D33: 0.7 | E33: 1.4 | F33: 1.8 | G33: 2.2 | H33: 2.5
C34: 90000 | D34: 0.8 | E34: 1.6 | F34: 2 | G34: 2.5 | H34: 2.8
A36: 2 | C36: Von der Funktion VERWEIS gibt es zwei Versionen: Die Vektorversion und die Matrixversion. Sie unterscheiden sich durch die Anzahl und Art der Funktionsargumente. Bitte sehen Sie sich dazu einfach die folgenden Beispiele an:
A37: 2
A38: 2
A39: 2
A40: 1 | C40: There are two versions of the function LOOKUP: The vector version and the matrix version. They differ in the number and type of function arguments. Please just have a look at the following examples:
A41: 1
A42: 1
A44: 2 | C44: vertikal:
A45: 1 | C45: vertical:
D46: 50000 | E46: Vector: | F46: =LOOKUP(D46,C25:C34,F25:F34) -> 1 | G46: =_xlfn.FORMULATEXT(F46) -> =VERWEIS(D46;C25:C34;F25:F34)
E47: Matrix: | F47: =LOOKUP(D46,C25:F34) -> 1 | G47: =_xlfn.FORMULATEXT(F47) -> =VERWEIS(D46;C25:F34)
D48: 66666 | E48: Vector: | F48: =LOOKUP(D48,C25:C34,F25:F34) -> 1.3 | G48: =_xlfn.FORMULATEXT(F48) -> =VERWEIS(D48;C25:C34;F25:F34)
E49: Matrix: | F49: =LOOKUP(D48,C25:F34) -> 1.3 | G49: =_xlfn.FORMULATEXT(F49) -> =VERWEIS(D48;C25:F34)
C50: horizontal:
D51: 20 | E51: Vector: | F51: =LOOKUP(D51,D24:H24,D28:H28) -> 0.3 | G51: =_xlfn.FORMULATEXT(F51) -> =VERWEIS(D51;D24:H24;D28:H28)
E52: Matrix: | F52: =LOOKUP(D51,D24:H28) -> 1.2 | G52: =VERWEIS(D51;D24:H28) | J52: ??
D53: 33 | E53: Vector: | F53: =LOOKUP(D53,D24:H24,D28:H28) -> 0.6 | G53: =VERWEIS(D53;D24:H24;D28:H28)
E54: Matrix: | F54: =LOOKUP(D53,D24:H30) -> 1.7 | G54: =VERWEIS(D53;D24:H30) | J54: ??
A57: 0

Sheet 062 XVERWEIS (A)
F1: 0
A2: 1 | B2: 062 XLOOKUP (E) | F2: Back to Start
A3: 2 | B3: 062 XVERWEIS (A) | F3: Startseite
A5: 2 | C5: Mit dem SVERWEIS und dem WVERWEIS können Sie aus einer Liste einen einzelnen Wert heraussuchen. Vielleicht brauchen Sie aber mehrere Werte - z.B. Anrede und Name oder Straße, Postleitzahl und Stadt. Dann können Sie den XVERWEIS benutzen. Sehen Sie sich dazu bitte das folgende Beispiel an:
A6: 2
A7: 2
A8: 1 | C8: With the VLOOKUP and the HLOOKUP function you can pick out one single value from a list. However, you may need several values - e.g. salutation and name or street, postcode and city. Then you can use the XLOOKUP. Please take a look at the following example:
A9: 1
A10: 1
C12: Company | D12: Salutation | E12: Contact person | F12: Address | G12: ZIP code | H12: City
C13: Babin Machine Inc. | D13: Mr | E13: Oliver Young | F13: East Street 111 | G13: EC2 5NT | H13: London
C14: Ready Tool Co. | D14: Ms | E14: Olivia Brewster | F14: West Av. 222 | G14: T2F 8M4 | H14: Tsawassen
C15: McCrosky Tool Corp. | D15: Ms | E15: Jessica Miller | F15: Middle Boulevard 333 | G15: 87110 | H15: Albuquerque
C16: Turner Ace Hardware | D16: Mr | E16: Charlie Nolan | F16: South Place 444 | G16: 97201 | H16: Portland
C17: Tool House Inc. | D17: Mr | E17: Thomas Sawyer | F17: North Way 555 | G17: H1J 1C3 | H17: Montréal
C18: GlobalAxxs | D18: Ms | E18: Isabella Hanson | F18: East Av. 666 | G18: LA9 PX8 | H18: Hedge End
C19: Pelham Tool Company Inc. | D19: Mr | E19: Jack Rodriguez | F19: West Str. 777 | G19: 83720 | H19: Boise
C20: Gasser True Value & Farm Sup | D20: Mr | E20: Jacob Wayne | F20: South Place 888 | G20: 98128 | H20: Seattle
C21: Hardware Bath & More | D21: Mr | E21: William West | F21: South Avenue 123 | G21: 97403 | H21: Eugene
C22: Mountaineer Precision Tools | D22: Ms | E22: Sophie Ward | F22: North Street 456 | G22: 94117 | H22: San Francisco
C23: Mayer Paint & Hardware | D23: Mr | E23: James Brown | F23: East Av. 789 | G23: 5022 | H23: San Cristóbal
A25: 2 | C25: Bitte wählen Sie eine Firma aus:
A26: 1 | C26: Please select a company:
C27: Tool House Inc. | E27: =_xlfn.XLOOKUP(C27,C13:C23,D13:E23,"not found",0,1) -> Mr | F27: Thomas Sawyer | G27: =_xlfn.FORMULATEXT(E27) -> =XVERWEIS(C27;C13:C23;D13:E23;"not found";0;1)
A29: 2 | B29: Übung | C29: Schreiben Sie eine XVERWEIS-Formel, die nach der Kontaktperson sucht und damit die Adresse, die PLZ und die Stadt aus der obigen Tabelle holt!
A30: 2
A31: 1 | B31: Exercise | C31: Write an XLOOKUP formula that searches for the contact person and thus takes the address, the ZIP code and the city from the table above!
A32: 1
A34: 2 | C34: Bitte wählen Sie eine Kontaktperson aus:
A35: 1 | C35: Please select a contact person:
A38: 2 | C38: Die ersten beiden Funktionsargumente sind dieselben wie beim SVERWEIS und WVERWEIS: Der zu suchende Wert und der Bereich, in dem der Wert gesucht werden soll. Das dritte Argument ist dann aber nicht die Spalten- bzw. Zeilennummer, sondern der Bereich, der als Ergebnis angezeigt werden soll. ACHTUNG: Die Formel kommt in eine Zelle - wenn das dritte Argument aber mehrere Spalten umfasst, so kommt das Ergebnis des XVERWEISes auch in mehrere Spalten! (siehe obiges Beispiel!) Dann gibt es aber noch drei weitere Funktionsargumente: Das vierte Argument enthält den Text, der angezeigt werden soll, wenn der XVERWEIS kein Ergebnis gefunden hat. Wird das Argument nicht angegeben, so lautet das Suchergebnis #NV. Das fünfte Argument entspricht dem WAHR und FALSCH bei SVERWEIS und WVERWEIS. Hier kann es die Werte 0, -1 oder 1 annnehmen - je nachdem, ob nach einer genauen Übereinstimmung gesucht werden soll (=FALSCH beim SVERWEIS und WVERWEIS), ob der nächstkleinere Wert angezeigt werden soll (=WAHR beim SVERWEIS und WVERWEIS) oder der nächstgrößere (das gibt es beim SVERWEIS und WVERWEIS nicht!). Wird das Argument nicht angegeben, so ist der Standardwert 0. Für das sechste Argument gibt es ebenfalls keine Entsprechung beim SVERWEIS und beim WVERWEIS. Ist es 1, so beginnt die Suche beim ersten Element der Liste; ist es -1, so beginnt die Suche beim letzten Element der Liste. Wird das Argument nicht angegeben, so ist der Standardwert 1.
A39: 2
A40: 2
A41: 2
A42: 2
A43: 2
A44: 2
A45: 2
A46: 2
A47: 2
A48: 2
A49: 2
A50: 2
A51: 2
A52: 2
A53: 2
A54: 2
A55: 2
A56: 2
A57: 2
A58: 2
A59: 2
A61: 1 | C61: The first two function arguments are the same as for VLOOKUP and HLOOKUP: The value to be searched for and the range in which the value is to be searched. However, the third argument is not the column or row number, but the range that is to be displayed as the result. ATTENTION: The formula goes into one cell - but if the third argument covers several columns, the result of the XLOOKUP also goes into several columns! (see example above!) But then there are three more function arguments: The fourth argument contains the text that is to be displayed if the XLOOKUP did not find a result. If the argument is not specified, the search result is #NV. The fifth argument corresponds to the TRUE and FALSE for VLOOKUP and HLOOKUP. Here it can take the values 0, -1 or 1 - depending on whether an exact match is to be searched for (=FALSE in the case of VLOOKUP and HLOOKUP), whether the next smaller value is to be displayed (= TRUE in the case of VLOOKUP and HLOOKUP) or the next larger (this does not exist in the case of VLOOKUP and HLOOKUP!). If the argument is not specified, the default value is 0. There is also no equivalent for the sixth argument in the VLOOKUP and HLOOKUP functions. If it is 1, the search starts at the first element of the list; if it is -1, the search starts at the last element of the list. If the argument is not specified, the default value is 1.
A62: 1
A63: 1
A64: 1
A65: 1
A66: 1
A67: 1
A68: 1
A69: 1
A70: 1
A71: 1
A72: 1
A73: 1
A74: 1
A75: 1
A76: 1
A77: 1
A78: 1
A79: 1
A80: 1
A81: 1
A82: 1
A84: 2 | B84: Achtung | C84: Im Unterschied zum SVERWEIS und WVERWEIS kann der XVERWEIS auch nach links suchen:
A85: 1 | B85: Attention | C85: In contrast to the VLOOKUP and HLOOKUP, the XLOOKUP can also search to the left:
C87: Company | D87: Salutation | E87: Contact person | F87: Address | G87: ZIP code | H87: City
C88: Babin Machine Inc. | D88: Mr | E88: Oliver Young | F88: East Street 111 | G88: EC2 5NT | H88: London
C89: Ready Tool Co. | D89: Ms | E89: Olivia Brewster | F89: West Av. 222 | G89: T2F 8M4 | H89: Tsawassen
C90: McCrosky Tool Corp. | D90: Ms | E90: Jessica Miller | F90: Middle Boulevard 333 | G90: 87110 | H90: Albuquerque
C91: Turner Ace Hardware | D91: Mr | E91: Charlie Nolan | F91: South Place 444 | G91: 97201 | H91: Portland
C92: Tool House Inc. | D92: Mr | E92: Thomas Sawyer | F92: North Way 555 | G92: H1J 1C3 | H92: Montréal
C93: GlobalAxxs | D93: Ms | E93: Isabella Hanson | F93: East Av. 666 | G93: LA9 PX8 | H93: Hedge End
C94: Pelham Tool Company Inc. | D94: Mr | E94: Jack Rodriguez | F94: West Str. 777 | G94: 83720 | H94: Boise
C95: Gasser True Value & Farm Sup | D95: Mr | E95: Jacob Wayne | F95: South Place 888 | G95: 98128 | H95: Seattle
C96: Hardware Bath & More | D96: Mr | E96: William West | F96: South Avenue 123 | G96: 97403 | H96: Eugene
C97: Mountaineer Precision Tools | D97: Ms | E97: Sophie Ward | F97: North Street 456 | G97: 94117 | H97: San Francisco
C98: Mayer Paint & Hardware | D98: Mr | E98: James Brown | F98: East Av. 789 | G98: 5022 | H98: San Cristóbal
C100: Bitte wählen Sie eine PLZ:
C101: Please select a ZIP code:
C102: T2F 8M4 | E102: =_xlfn.XLOOKUP(C102,G88:G98,E88:E98,"not found",0,1) -> Olivia Brewster | F102: =_xlfn.FORMULATEXT(E102) -> =XVERWEIS(C102;G88:G98;E88:E98;"not found";0;1)
A104: 2 | B104: Übung | C104: Schreiben Sie eine XVERWEIS-Formel, die nach der Kontaktperson sucht und damit die Firma aus der obigen Tabelle holt!
A105: 2
A106: 1 | B106: Exercise | C106: Write an XLOOKUP formula that searches for the contact person and thus takes the the company from the table above!
A107: 1
A109: 2 | C109: Bitte wählen Sie eine Kontaktperson:
A110: 1 | C110: Please select a contact person:
A111: 0

Sheet 063 SKVERWEIS
F1: 0
A2: 1 | B2: 063 VCLOOKUP | F2: Back to Start
A3: 2 | B3: 063 SKVERWEIS | F3: Startseite
A5: 2 | C5: Der "normale" SVERWEIS bzw. WVERWEIS liefet als Ergebnis nur den Inhalt der gesuchten Zelle. Es könnte aber auch gewünscht sein, dass im Ergebnis zusätzlich auch ein evtl. vorhandener Kommentar erscheint. Beispiel: In der Zelle C8 stehen der Wert "0,10 €" und der Kommentar "may be too low". Im Ergebnis des normalen SVERWEISes erscheint in F8 nur "0,10 €". In F14 erscheint zusätzlich auch der Kommentar "may be too low". Die dafür benutzte Funktion SKVERWEIS stellt Excel nicht zur Verfügung. Sie wurde mit Hilfe von VBA programmiert und findet sich in der Übungsdatei "VBAwithExcel". Hier sehen Sie nur ein Bildschirmfoto, das die Problemlösung illustrieren soll.
A6: 2
A7: 2
A8: 2
A9: 2
A10: 2
A11: 2
A12: 2
A13: 2
A14: 2
A15: 1 | C15: The "normal" VLOOKUP or HLOOKUP only returns the content of the cell searched for. However, it may also be desired that a possible comment also appears in the result. Example: Cell C8 contains the value "0.10 €" and the comment "may be too low". In the result of the normal VLOOKUP, only "0.10 €" appears in F8. In F14, the comment "may be too low" also appears. The function VCLOOKUP used for this is not provided by Excel. It was programmed with the help of VBA and can be found in the exercise file "VBAwithExcel". Here you can only see a screenshot to illustrate the solution to the problem.
A16: 1
A17: 1
A18: 1
A19: 1
A20: 1
A21: 1
A22: 1
A25: 2 | C25: Achtung: Das ist nur ein Bildschirmfoto!
A26: 1 | C26: Attention: This is only a screenshot!
A63: 0

Sheet 07 Tariftabelle (1)
K1: 0
A2: 1 | B2: 07 Charge table (1) | F2: Back to Start
A3: 2 | B3: 07 Tariftabelle (1) | F3: Startseite
D5: weight
C6: ZIP code | D6: 10 | E6: 20 | F6: 30 | G6: 40 | H6: 50
C7: 0 | D7: 0.3 | E7: 0.4 | F7: 0.7 | G7: 1 | H7: 1.3
C8: 10000 | D8: 0.2 | E8: 0.3 | F8: 0.6 | G8: 0.8 | H8: 1.1
C9: 20000 | D9: 0.1 | E9: 0.2 | F9: 0.5 | G9: 0.7 | H9: 0.9
C10: 30000 | D10: 0.2 | E10: 0.3 | F10: 0.6 | G10: 0.9 | H10: 1.2
C11: 40000 | D11: 0.3 | E11: 0.5 | F11: 0.8 | G11: 1.1 | H11: 1.4
C12: 50000 | D12: 0.4 | E12: 0.7 | F12: 1 | G12: 1.4 | H12: 1.7
C13: 60000 | D13: 0.5 | E13: 1 | F13: 1.3 | G13: 1.6 | H13: 2
C14: 70000 | D14: 0.6 | E14: 1.2 | F14: 1.5 | G14: 1.9 | H14: 2.3
C15: 80000 | D15: 0.7 | E15: 1.4 | F15: 1.8 | G15: 2.2 | H15: 2.5
C16: 90000 | D16: 0.8 | E16: 1.6 | F16: 2 | G16: 2.5 | H16: 2.8
A27: 0

Sheet 08 S-W-VERWEIS (A)
M1: 0
A2: 1 | B2: 08 V-H-LOOKUP (E) | F2: Back to Start
A3: 2 | B3: 08 S-W-VERWEIS (A) | F3: Startseite
A5: 2 | B5: Übung | C5: Berechnung des Preises in Abhängigkeit von der PLZ und dem Gewicht (SVERWEIS und WVERWEIS): mit der Tariftabelle vom Blatt "Tariftabelle (2)"!
A6: 2
A7: 2
A8: 2
A9: 1 | B9: Exercise | C9: Calculation of the price depending on the ZIP code and the weight (VLOOKUP and HLOOKUP): using the charge table from the worksheet "Charge table (2)"!
A10: 1
A11: 1
A12: 1
C15: ZIP code | D15: customer | E15: weight | F15: price
C16: 11364 | D16: Meier | E16: 12.35 | F16: ?
C17: 12475 | D17: Schulz | E17: 27.55 | F17: ?
C18: 25125 | D18: Schmidt | E18: 36.22 | F18: ?
C19: 29177 | D19: Lehmann | E19: 34.22 | F19: ?
C20: 23777 | D20: Krause | E20: 18.8 | F20: ?
C21: 45298 | D21: Müller | E21: 26.6 | F21: ?
C22: 57800 | D22: Baumann | E22: 42.21 | F22: ?
C23: 58999 | D23: Holzmann | E23: 43.38 | F23: ?
A43: 2 | B43: Tipps | C43: (1) Entwicklung der Formel von außen nach innen. (2) Zunächst 2 als drittes Argument des SVERWEISes. (3) ggf. Formel ohne Gleichheitszeichen schreiben. (4) ggf. Funktionsassistenten verwenden. | J43: =SVERWEIS(C16;'Tariftabelle (1)'!$C$7:$H$16;???;WAHR)
A44: 2
A45: 2 | J45: d.h. Sie sagen zu Excel: „Hole den Preis aus der Tarif-Tabelle, indem du zunächst aus der PLZ-Spalte die richtige Zeile heraussuchst (SVERWEIS). Gehe dann nach rechts bis in die richtige Gewichts-Spalte.“ Aber wie findet man die richtige Gewichts-Spalte?? Dafür brauchen wir eine Hilfszeile mit den Spaltennummern!
A46: 2
A47: 2
A48: 2
A49: 2
A50: 2
A51: 2
A52: 2
A54: 1 | B54: Tips | C54: (1) Develop the formula from the outside to the inside! (2) Start with 2 as the third argument of the VLOOKUP! (3) Possibly write the formula without the equal sign! (4) Possibly use the function wizard! | J54: =VLOOKUP(C16;'Charge table (1)'!$C$7:$H$16;???;TRUE)
A55: 1
A56: 1 | J56: i.e. you request Excel to the following: "Look for the right row according to the given ZIP code (VLOOKUP). Then move to the right to find the right column according to the weight." But how can you find the right column?? Therefore we need an auxiliary row with the column numbers!
A57: 1
A58: 1
A59: 1
A60: 1
A61: 1
A62: 1
A63: 1
A94: 2 | J94: =SVERWEIS(C16;'Tariftabelle (2)'!$C$10:$H$19;WVERWEIS(???);WAHR)
A95: 2
A96: 2 | J96: d.h. Sie sagen jetzt zu Excel: „Hole den Preis aus der Tarif-Tabelle, indem du zunächst aus der PLZ-Spalte die richtige Zeile heraussuchst (SVERWEIS). Gehe dann nach rechts bis in die richtige Gewichts-Spalte. Die Nummer der Spalte findest du über die Funktion WVERWEIS unter Benutzung der Hilfszeile mit den Spaltennummern.“
A97: 2
A98: 2
A99: 2
A100: 2
A102: 1 | J102: =VLOOKUP(C16;'Charge table (2)'!$C$10:$H$19;HLOOKUP(???);TRUE)
A103: 1
A104: 1 | J104: i.e. now you request Excel to the following: "Look for the right row according to the given ZIP code (VLOOKUP). Then move to the right to find the right column according to the weight. You will find the number of the right column with an HLOOKUP using the column numbers from the auxiliary row."
A105: 1
A106: 1
A107: 1
A108: 1
A110: 0

Sheet 08 S-W-VERWEIS (A)_ (hidden)
B1: 2 | C1: 2 | D1: 2 | E1: 1 | F1: 1 | G1: 1 | H1: 0
A2: 1 | B2: 08 V-H-LOOKUP (E)_ | F2: =B2 -> 08 V-H-LOOKUP (E)_
A3: 2 | B3: 08 S-W-VERWEIS (A)_
A4: 0
B5: 1 | C5: Jetzt wird's richtig kompliziert! Wir wollen jetzt beide Formeln miteinander kombinieren. Eine Tariftabelle sieht nämlich in den seltensten Fällen aus wie in den beiden bisherigen Aufgaben zum SVERWEIS und zum WVERWEIS. Stattdessen sieht sie eher so aus, wie auf dem Blatt "Tariftabelle (1)". Der Preis des Transports hängt nämlich nicht ENTWEDER von der Entfernung ODER vom Gewicht ab, sondern von BEIDEM! Vielleicht erkennen Sie schon, dass wir jetzt ein Problem mit dem dritten Argument des SVERWEISes haben. Bisher hatten wir dort immer eine "2" eingetragen, weil unsere Tariftabellen nur zwei Spalten bzw. Zeilen hatten. | E5: 1 | F5: This is where it gets really complicated! We now want to combine both formulas. A charge table rarely looks like the two previous tasks for the VLOOKUP and the HLOOKUP. Instead of, it looks more like the one on the sheet "Charge table (1)". The price of the transport does not depend EITHER on the distance OR the weight, but on BOTH! Perhaps you can already see that we now have a problem with the third argument of the VLOOKUP. Up to now, we had always entered a "2" there, because our charge tables only had two columns or rows.
B6: =IF(C6<>"",B5+1,"") -> 2 | C6: Jetzt hängt aber die Nummer der Spalte, in die der SVERWEIS nach rechts "rüber" gehen muss, vom Gewicht ab. Sind es z.B. 15 kg, muss in der zweiten Spalte gesucht werden, sind es 26,6 kg, in der dritten Spalte, … usw. Wie können wir die richtige Spalte per Formel finden? Dazu legen wir uns in der Tariftabelle eine zusätzliche Hilfszeile an, die die Spaltennummern enthält! Diese Nummer finden wir mit Hilfe eines WVERWEISes, den wir anstelle der "2", die wir bisher immer benutzt haben, als drittes Argument im SVERWEIS benutzen. | E6: =IF(F6<>"",E5+1,"") -> 2 | F6: Now, however, the number of the column into which the VLOOKUP must go "over" to the right depends on the weight. For example, if it is 15 kg, the second column must be used, if it is 26.6 kg, the third column must be used, ... etc. How can we find the right column by formula? For this purpose, we create an additional auxiliary row in the charge table which contains the column numbers! We find this number with the help of a HLOOKUP, which we use as the third argument in the VLOOKUP instead of the "2", which we have always used so far.
B7: =IF(C7<>"",B6+1,"") -> 3 | C7: Klingt kompliziert? Kann ich nachvollziehen! Sehen Sie sich daher bitte das Blatt "Tariftabelle (2)" an. Dort sind die Suchbereiche des SVERWEISes und des WVERWEISes farblich markiert. Der SVERWEIS verwendet also das Ergebis des WVERWEISes (=die Spaltennummer!) als drittes Argument. Versuchen Sie jetzt bitte in der Auftragstabelle die Transportpreise unter Benutzung der "Tariftabelle (2)" mit einem kombinierten SVERWEIS-WVERWEIS zu berechnen! Die Lösung sehen Sie wieder als Screenshot rechts neben der Auftragstabelle. | E7: =IF(F7<>"",E6+1,"") -> 3 | F7: Sounds complicated? I can understand that. So please take a look at the sheet "Charge table (2)". There the search ranges of the VLOOKUP and the HLOOKUP are marked in colour. So the VLOOKUP uses the result of the HLOOKUP (=the column number!) as third argument. Now please try to calculate the transport prices in the order table using the "Charge table (2)" with a combined VLOOKUP-HLOOKUP! You will see the solution again as a screenshot to the right of the order table.
E8: =IF(F8<>"",E7+1,"") -> 

Sheet 08 Tariftabelle (2)
J1: 2 | K1: 2 | L1: 2 | M1: 1 | N1: 1 | O1: 1 | Q1: 0
A2: 1 | B2: 08 Charge table (2) | F2: Back to Start
A3: 2 | B3: 08 Tariftabelle (2) | F3: Startseite
A5: 2 | B5: mit Hilfszeile:
A6: 1 | B6: with auxiliary row:
D7: weight:
C8: ZIP code | D8: 10 | E8: 20 | F8: 30 | G8: 40 | H8: 50 | J8: Suchbereich des WVERWEISes | M8: Search range of the HLOOKUP
D9: 2 | E9: 3 | F9: 4 | G9: 5 | H9: 6
C10: 0 | D10: 0.3 | E10: 0.4 | F10: 0.7 | G10: 1 | H10: 1.3 | J10: Suchbereich des SVERWEISes | M10: Search range of the VLOOKUP
C11: 10000 | D11: 0.2 | E11: 0.3 | F11: 0.6 | G11: 0.8 | H11: 1.1
C12: 20000 | D12: 0.1 | E12: 0.2 | F12: 0.5 | G12: 0.7 | H12: 0.9
C13: 30000 | D13: 0.2 | E13: 0.3 | F13: 0.6 | G13: 0.9 | H13: 1.2
C14: 40000 | D14: 0.3 | E14: 0.5 | F14: 0.8 | G14: 1.1 | H14: 1.4
C15: 50000 | D15: 0.4 | E15: 0.7 | F15: 1 | G15: 1.4 | H15: 1.7
C16: 60000 | D16: 0.5 | E16: 1 | F16: 1.3 | G16: 1.6 | H16: 2
C17: 70000 | D17: 0.6 | E17: 1.2 | F17: 1.5 | G17: 1.9 | H17: 2.3
C18: 80000 | D18: 0.7 | E18: 1.4 | F18: 1.8 | G18: 2.2 | H18: 2.5
C19: 90000 | D19: 0.8 | E19: 1.6 | F19: 2 | G19: 2.5 | H19: 2.8
A21: 2 | B21: Achtung | C21: Die erste Datenspalte ist die zweite Spalte des Suchbereiches des SVERWEISes (orange). Die erste Spalte ist diejenige, in der gesucht wird!
A22: 2
A23: 2
A24: 1 | B24: Attention | C24: The first column with data is the second column of the search range of the VLOOKUP (orange). The first one is the column, where the search is executed!
A25: 1
A26: 1
A28: 0

Sheet 09 Funktionsassistent (2)
T1: 0
A2: 1 | B2: 09 Function wizard (2) | F2: Back to Start
A3: 2 | B3: 09 Funktionsassistent (2) | F3: Startseite
M6: ZIP code | N6: customer | O6: weight | P6: price
M7: 11364 | N7: Meier | O7: 12.35 | P7: =VLOOKUP(M7,M20:R29,HLOOKUP(O7,N18:S19,2,TRUE),TRUE) -> 0.2
M8: 12475 | N8: Schulz | O8: 27.55 | P8: ?
M9: 25125 | N9: Schmidt | O9: 36.22 | P9: ?
M10: 29177 | N10: Lehmann | O10: 34.22 | P10: ?
M11: 23777 | N11: Krause | O11: 18.8 | P11: ?
M12: 45298 | N12: Müller | O12: 26.6 | P12: ?
M13: 57800 | N13: Baumann | O13: 42.21 | P13: ?
M14: 58999 | N14: Holzmann | O14: 43.38 | P14: ?
N17: weight:
M18: ZIP code | N18: 10 | O18: 20 | P18: 30 | Q18: 40 | R18: 50
N19: 2 | O19: 3 | P19: 4 | Q19: 5 | R19: 6
M20: 0 | N20: 0.3 | O20: 0.4 | P20: 0.7 | Q20: 1 | R20: 1.3
A21: 0 | M21: 10000 | N21: 0.2 | O21: 0.3 | P21: 0.6 | Q21: 0.8 | R21: 1.1
M22: 20000 | N22: 0.1 | O22: 0.2 | P22: 0.5 | Q22: 0.7 | R22: 0.9
M23: 30000 | N23: 0.2 | O23: 0.3 | P23: 0.6 | Q23: 0.9 | R23: 1.2
M24: 40000 | N24: 0.3 | O24: 0.5 | P24: 0.8 | Q24: 1.1 | R24: 1.4
M25: 50000 | N25: 0.4 | O25: 0.7 | P25: 1 | Q25: 1.4 | R25: 1.7
M26: 60000 | N26: 0.5 | O26: 1 | P26: 1.3 | Q26: 1.6 | R26: 2
M27: 70000 | N27: 0.6 | O27: 1.2 | P27: 1.5 | Q27: 1.9 | R27: 2.3
M28: 80000 | N28: 0.7 | O28: 1.4 | P28: 1.8 | Q28: 2.2 | R28: 2.5
M29: 90000 | N29: 0.8 | O29: 1.6 | P29: 2 | Q29: 2.5 | R29: 2.8

Sheet 09 Funktionsassistent (2)_ (hidden)
B1: 2 | C1: 2 | D1: 2 | E1: 1 | F1: 1 | G1: 1 | H1: 0
A2: 1 | B2: 09 Function wizard (2)_ | F2: =B2 -> 09 Function wizard (2)_
A3: 2 | B3: 09 Funktionsassistent (2)_
A4: 0
B5: 1 | C5: Sie können die kombinierte SVERWEIS-WVERWEIS-Formel auch mit dem Funktionsassistenten eingeben. Dabei müssten Sie allerdings im Funktionsassistenten den Funktionsassistenten aufrufen, denn Sie müssen ja als drittes Argument des SVERWEISes einen WVERWEIS eingeben. Und das geht tatsächlich! | E5: 1 | F5: You can enter the combined VLOOKUP-HLOOKUP formula with the function wizard. But that means, that you have to call the function wizard from the function wizard, because you have to enter a HLOOKUP as the third argument of the VLOOKUP. And that's really possible!
B6: =IF(C6<>"",B5+1,"") -> 2 | C6: Dazu starten Sie in gewohnter Weise den Funktionsassistenten zur Eingabe des SVERWEISes und geben das erste, zweite und vierte Argument (WAHR/FALSCH) ein. Dann klicken Sie in das Eingabefeld für das dritte Argument ("Spaltenindex") und öffnen dann das Kombinationsfeld links neben der Eingabezeile ("Namensfeld"). Hier können Sie eine Funktion aus einer Liste auswählen. Um den WVERWEIS zu finden, müssen Sie evtl. auf "Weitere Funktionen ..." klicken. Jetzt passiert etwas Verwirrendes: Ein weiterer Funktionsassistent zur Eingabe der Argumente des WVERWEISes öffnet sich. Sie benutzen jetzt also diesen Funktionsassistenten, um das dritte Argument im Funktionsassistenten des SVERWEISes einzugeben. Der Funktionsassistent für die Eingabe des SVERWEISes ist verschwunden und taucht auch nach dem Schließen des jetzt geöffneten Funktionsassistenten für den WVERWEIS NICHT wieder auf! | E6: =IF(F6<>"",E5+1,"") -> 2 | F6: To do that, please start the function wizard for the input of the VLOOKUP and enter the first, second and fourth argument (TRUE/FALSE). Then click into the input box for the third argument ("Col_index_num") and then open the combo box left to the formula bar ("Name box"). Here you can select a function from a list. Possibly, to find the HLOOKUP, you may have to click on "More Functions ...". Now something confusing happens: Another function wizard for the input of the arguments of the HLOOKUP opens. Now you use this function wizard to enter the third argument in the function wizard of the VLOOKUP. The function wizard for the input of the VLOOKUP has disappeared and will NOT appear again, if you close the HLOOKUP wizard!
B7: =IF(C7<>"",B6+1,"") ->  | E7: =IF(F7<>"",E6+1,"") -> 

Sheet 10 Lohnberechnung (A)
N1: 0
A2: 1 | B2: 10 Payments (E) | F2: Back to Start
A3: 2 | B3: 10 Lohnberechnung (A) | F3: Startseite
A5: 2 | B5: Übung | C5: Berechnen Sie den Stundenlohn (orange) mittels S-W-VERWEIS aus der Lohntabelle auf dem Blatt "Lohntabelle (A)" und daraus den Monatslohn (gelb)! | N5: Lösung für 2020:
A6: 2
A7: 1 | B7: Exercise | C7: Calculate the hourly pay (orange) using the H-V-LOOKUP with the pay scale from the worksheet "Pay scale (E)" and then calculate the monthly pay (yellow)! | N7: Solution for 2020:
A8: 1
A9: 2 | C9: Name | D9: Mitarbeiter seit | E9: Lohn-gruppe | F9: Stunden-lohn | G9: Januar | I9: Februar | K9: März
A10: 2 | G10: Stunden | H10: Lohn | I10: Stunden | J10: Lohn | K10: Stunden | L10: Lohn
A11: 1 | C11: name | D11: employee since | E11: pay grade | F11: hourly pay | G11: January | I11: February | K11: March
A12: 1 | G12: hours | H12: pay | I12: hours | J12: pay | K12: hours | L12: pay
C13: Müller, Frank | D13: 2007 | E13: 2 | G13: 150 | I13: 111 | K13: 132
C14: Meier, Sabine | D14: 2012 | E14: 1 | G14: 132 | I14: 98 | K14: 123
C15: Schulz, Paul | D15: 2009 | E15: 7 | G15: 156 | I15: 144 | K15: 118
C16: Hübner, Klaus | D16: 2002 | E16: 1 | G16: 129 | I16: 131 | K16: 101
C17: Mayer, Klaus | D17: 2002 | E17: 6 | G17: 121 | I17: 158 | K17: 140
C18: Neumann, Meike | D18: 2004 | E18: 4 | G18: 107 | I18: 102 | K18: 99
C19: Schulze, Frieda | D19: 2014 | E19: 2 | G19: 144 | I19: 130 | K19: 105
C20: Schulze, Marianne | D20: 2013 | E20: 4 | G20: 98 | I20: 157 | K20: 107
C21: Krüger, Otto | D21: 2012 | E21: 3 | G21: 118 | I21: 92 | K21: 123
C22: Mayer, Hermann | D22: 2013 | E22: 7 | G22: 136 | I22: 111 | K22: 115
A23: 0 | C23: Schulze, Anna | D23: 2008 | E23: 1 | G23: 101 | I23: 122 | K23: 103
C24: Neumann, Frieda | D24: 2008 | E24: 2 | G24: 152 | I24: 125 | K24: 157
C25: Scholz, Frieda | D25: 2005 | E25: 6 | G25: 91 | I25: 104 | K25: 126
C26: Scholz, Anna | D26: 2015 | E26: 3 | G26: 133 | I26: 106 | K26: 157

Sheet 10 Lohnberechnung (A)_ (hidden)
B1: 2 | C1: 2 | D1: 2 | E1: 1 | F1: 1 | G1: 1 | H1: 0
A2: 1 | B2: 10 Payments (E)_ | F2: =B2 -> 10 Payments (E)_
A3: 2 | B3: 10 Lohnberechnung (A)_
A4: 0
B5: 1 | C5: Auf diesem Blatt können Sie die Kombination SVERWEIS-WVERWEIS nochmal üben. Berechnen Sie dazu den Stundenlohn (orange) mittels S-W-VERWEIS aus der Lohntabelle auf dem Blatt "Lohntabelle (A)" und daraus den Monatslohn (gelb)! ACHTUNG: Bedenken Sie, dass in der Lohntabelle die Jahre der Betriebszugehörigkeit aufgeführt sind. Sie müssen diese also aus der Information "Mitarbeiter seit ..." erst berechnen! | E5: 1 | F5: On this sheet, you can practice the VLOOKUP-HLOOKUP combination again. Calculate the hourly pay (orange) using the V-H-LOOKUP from the pay scale table on the sheet "Pay scale (A)" and from this the monthly pay (yellow)! ATTENTION: Remember that the pay scale table shows the years of service. You must therefore first calculate them from the information "Employee since ..."!
B6: =IF(C6<>"",B5+1,"") -> 2 | C6: NOCHMAL ACHTUNG: FALLE! | E6: =IF(F6<>"",E5+1,"") -> 2 | F6: AGAIN ATTENTION: TRAP!
B7: =IF(C7<>"",B6+1,"") -> 3 | C7: Welche? | E7: =IF(F7<>"",E6+1,"") -> 3 | F7: Which?
B8: 4 | C8: Sag' ich nicht … | E8: 4 | F8: I won´t say…
B9: 5 | C9: Die Lösung finden Sie wieder als Screenshot rechts neben der Lohntabelle auf diesem Blatt. | E9: 5 | F9: You will find the solution again as a screenshot to the right of the pay scale table on this sheet.
E10: =IF(F10<>"",E9+1,"") -> 
B11: =IF(C11<>"",B10+1,"") -> 

Sheet 10 Lohntabelle (A)
L1: 0
A2: 1 | B2: 10 Pay scale (E) | F2: Back to Start
A3: 2 | B3: 10 Lohntabelle (A) | F3: Startseite
D5: years
C6: pay grade | D6: 0 | E6: 2 | F6: 4 | G6: 6 | H6: 8 | I6: 10 | J6: 15
C7: 1 | D7: 30 | E7: 31 | F7: 32 | G7: 33 | H7: 35 | I7: 37 | J7: 40
C8: 2 | D8: =D7-2 -> 28 | E8: 29 | F8: 30 | G8: 31 | H8: 33 | I8: 35 | J8: 38
C9: 3 | D9: 26 | E9: 27 | F9: 28 | G9: 29 | H9: 31 | I9: 33 | J9: 36
C10: 4 | D10: 24 | E10: 25 | F10: 26 | G10: 27 | H10: 29 | I10: 31 | J10: 34
C11: 5 | D11: 22 | E11: 23 | F11: 24 | G11: 25 | H11: 27 | I11: 29 | J11: 32
C12: 6 | D12: 20 | E12: 21 | F12: 22 | G12: 23 | H12: 25 | I12: 27 | J12: 30
C13: 7 | D13: 18 | E13: 19 | F13: 20 | G13: 21 | H13: 23 | I13: 25 | J13: 28
C14: 8 | D14: 16 | E14: 17 | F14: 18 | G14: 19 | H14: 21 | I14: 23 | J14: 26
C15: 9 | D15: 14 | E15: 15 | F15: 16 | G15: 17 | H15: 19 | I15: 21 | J15: 24
C16: 10 | D16: 12 | E16: 13 | F16: 14 | G16: 15 | H16: 17 | I16: 19 | J16: 22
A20: 0

Sheet 11 Umschlag (A)
L1: 0
A2: 1 | B2: 11 Transshipment (E) | F2: Back to Start
A3: 2 | B3: 11 Umschlag (A) | F3: Startseite
A5: 2 | B5: Übung | C5: Suchen Sie mit Hilfe des S-W-VERWEISes bestimmte Werte aus einer Tabelle heraus!
A6: 2
A7: 2 | B7: Achtung | C7: Die Zeilen- und Spaltenüberschriften in der Ergebnistabelle (orange) werden so definiert: "Daten" / "Datentools" / "Datenüberprüfung" / "Datenüberprüfung" / "Einstellungen": "Zulassen = Liste"
A8: 2
A9: 2
A10: 2
A11: 1 | B11: Exercise | C11: Pick out certain values from a table using the H-V-LOOKUP!
A12: 1
A13: 1 | B13: Attention | C13: The headers of the rows and columns are defined as follows: "Data" / "Data Tools" / "Data Validation" / "Data Validation" / "Settings" : "Allow = List"
A14: 1
A15: 1
A16: 1
D18: coal | E18: fertilizer | F18: cereals | G18: oil | H18: steel | I18: cement
D19: 2 | E19: 3 | F19: 4 | G19: 5 | H19: 6 | I19: 7
C20: Bremerhaven | D20: 5166 | E20: 5832 | F20: 7418 | G20: 6527 | H20: 6336 | I20: 7626
C21: Hamburg | D21: 13791 | E21: 19105 | F21: 18578 | G21: 17865 | H21: 15450 | I21: 17621
C22: Stralsund | D22: 5620 | E22: 5197 | F22: 6596 | G22: 5925 | H22: 7388 | I22: 7911
C23: Kiel | D23: 7976 | E23: 7250 | F23: 6658 | G23: 5417 | H23: 7716 | I23: 5045
C24: Bremen | D24: 13023 | E24: 13905 | F24: 11287 | G24: 14550 | H24: 12356 | I24: 10823
C25: Lübeck | D25: 6119 | E25: 5964 | F25: 7647 | G25: 7639 | H25: 7875 | I25: 7365
C26: Emden | D26: 7947 | E26: 7813 | F26: 6949 | G26: 7858 | H26: 7228 | I26: 7315
C27: Wismar | D27: 5107 | E27: 7228 | F27: 5516 | G27: 6376 | H27: 6815 | I27: 7406
C28: Brake | D28: 7857 | E28: 7727 | F28: 6059 | G28: 5110 | H28: 7016 | I28: 6610
C29: Rostock | D29: 6935 | E29: 6240 | F29: 5934 | G29: 5550 | H29: 5968 | I29: 5012
D33: coal | E33: cement
C34: Bremen
C35: Hamburg
A37: 2 | B37: Achtung | C37: Kopieren Sie die Formeln mit der rechten Maustaste - ansonsten zerstören Sie sich die Formatierung der Tabelle, weil beim "normalen" Kopieren nicht nur der Inhalt sondern auch das Format der Zelle kopiert werden!
A38: 2
A39: 1
A40: 1 | B40: Attention | C40: Coyp the formulas with the right mouse key - otherwise you destroy the format of the table, because with "normal" copy not only the content but also the format of the cell is copied!
A41: 1
A44: 0

Sheet 11 Umschlag (A)_ (hidden)
B1: 2 | C1: 2 | D1: 2 | E1: 1 | F1: 1 | G1: 1 | H1: 0
A2: 1 | B2: 11 Transshipment (E)_ | F2: =B2 -> 11 Transshipment (E)_
A3: 2 | B3: 11 Umschlag (A)_
A4: 0
B5: 1 | C5: Auf diesem Blatt können Sie die Kombination SVERWEIS-WVERWEIS nocheinmal üben. Suchen Sie dazu mit Hilfe des S-W-VERWEISes bestimmte Werte aus einer Tabelle heraus! | E5: 1 | F5: On this sheet, you can practice the VLOOKUP-HLOOKUP combination once again. To do this, use the V-H-LOOKUP to find specific values from a table!
B6: =IF(C6<>"",B5+1,"") -> 2 | C6: ACHTUNG: Die Zeilen- und Spaltenüberschriften in der Ergebnistabelle (orange) werden so definiert: "Daten / Datentools / Datenüberprüfung / Datenüberprüfung / Einstellungen": "Zulassen = Liste" Eine detaillierte Beschreibung des Funktion "Datenüberprüfung" finden Sie in der Übungsdatei "Excel-Basics"! | E6: =IF(F6<>"",E5+1,"") -> 2 | F6: ATTENTION: The row and column headers in the result table (orange) are defined as follows: "Data / Data Tools / Data Validation / Data Validation / Settings: "Allow = List" You will find a detailed description of the function "Data validation" in the exercise file "Excel-Basics"!
B7: =IF(C7<>"",B6+1,"") ->  | E7: =IF(F7<>"",E6+1,"") -> 
B8: =IF(C8<>"",B7+1,"") -> 

Sheet 11 Umschlag (L1)_ (hidden)
B1: 2 | C1: 2 | D1: 2 | E1: 1 | F1: 1 | G1: 1 | H1: 0
A2: 1 | B2: 11 Transshipment (S1)_ | F2: =B2 -> 11 Transshipment (S1)_
A3: 2 | B3: 11 Umschlag (L1)_
A4: 0
B5: 1 | C5: Das Video zeigt, wie das Ganze dann funktionieren soll. | E5: 1 | F5: The video shows how the whole thing should work then.
B6: =IF(C6<>"",B5+1,"") ->  | E6: =IF(F6<>"",E5+1,"") -> 
B7: =IF(C7<>"",B6+1,"") ->  | E7: =IF(F7<>"",E6+1,"") -> 
B8: =IF(C8<>"",B7+1,"") -> 

Sheet 12 Tarifanalyse (A1)
L1: 0
A2: 1 | B2: 12 Charge analysis (E1) | F2: Back to Start
A3: 2 | B3: 12 Tarifanalyse (A1) | F3: Startseite
A5: 2 | B5: Übung | C5: Berechnen Sie Ihre Einnahmen mit der Standard-Tariftabelle A, mit zwei modifizierten Tariftabellen B und C und mit der Tariftabelle Ihres Wettbewerbers. In der Tabelle B sollen die Tarife für kurze Strecken und kleine Gewichte etwas erhöht werden. In der Tabelle C sollen die Tarife für lange Strecken und große Gewichte etwas erhöht werden. Die Bereiche sind jeweils gelb markiert. Der Erhöhungsbetrag soll in Zelle J20 eingegeben werden. Berechnen Sie die Summen Ihrer Einnahmen in Zeile 20 (orange) und vergleichen Sie diese! | K5: Tipps: | L5: (1) Formel kopieren in formatierter Tabelle: mit der RECHTEN Maustaste!! (2) Formel schnell herunter kopieren: Doppelklick auf den "Kopierpunkt" an der rechten unteren Zellenecke (3) Bereich schnell markieren - z.B. für SUMME(...): erste Zelle anklicken + Strg+Umschalt+Pfeil_unten
A6: 2
A7: 2
A8: 2
A9: 2
A10: 2
A12: 1 | B12: Exercise | C12: Calculate your earnings using your standard charge table A, two slightly modified charge tables B and C and the charge table of your competitor. In table B the charges for short distances and small weights shall be increased slightly. In table C the charges for long distances and large weights shall be increased slightly. The corresponding ranges are marked in yellow. The increase value shall be entered in cell J20. Calculate the sum of your earnings in row 20 (orange) and compyre the with each other! | K12: Tips: | L12: (1) Copy formulas in formatted tables with the RIGHT mouse button!! (2) Quick formula copy: Double click on the "copy point" in the lower right corner of the cell (3) Quick range marking - e.g. for SUM(...): click to the first row + Ctrl+Shift+Arrow_down
A13: 1
A14: 1
A15: 1
A16: 1
A17: 1
C19: date | D19: ZIP code | E19: weight | F19: earnings A | G19: earnings B | H19: earnings C | I19: competitor
K20: A | Q20: competitor
C21: 2014-04-29 | D21: 9715 | E21: 28 | K21: ZIP / weight | L21: 0 | M21: 50 | N21: 100 | O21: 300 | Q21: ZIP / weight | R21: 0 | S21: 50 | T21: 100 | U21: 300
C22: 2014-04-29 | D22: 10960 | E22: 28 | L22: 2 | M22: 3 | N22: 4 | O22: 5 | R22: 2 | S22: 3 | T22: 4 | U22: 5
C23: 2014-04-29 | D23: 13399 | E23: 13 | K23: 0 | L23: 30 | M23: 40 | N23: 70 | O23: 100 | Q23: 0 | R23: 40 | S23: 50 | T23: 80 | U23: 110
C24: 2014-04-29 | D24: 16393 | E24: 10 | K24: 10000 | L24: 20 | M24: 30 | N24: 60 | O24: 80 | Q24: 10000 | R24: 30 | S24: 40 | T24: 70 | U24: 100
C25: 2014-04-29 | D25: 21682 | E25: 28 | K25: 20000 | L25: 10 | M25: 20 | N25: 50 | O25: 70 | Q25: 20000 | R25: 20 | S25: 30 | T25: 60 | U25: 80
C26: 2014-04-29 | D26: 24116 | E26: 41 | K26: 30000 | L26: 20 | M26: 30 | N26: 60 | O26: 90 | Q26: 30000 | R26: 10 | S26: 20 | T26: 50 | U26: 70
C27: 2014-04-29 | D27: 24121 | E27: 19 | K27: 40000 | L27: 30 | M27: 50 | N27: 80 | O27: 110 | Q27: 40000 | R27: 20 | S27: 30 | T27: 60 | U27: 90
C28: 2014-04-29 | D28: 32412 | E28: 9 | K28: 50000 | L28: 40 | M28: 70 | N28: 100 | O28: 140 | Q28: 50000 | R28: 30 | S28: 50 | T28: 80 | U28: 110
C29: 2014-04-29 | D29: 32331 | E29: 31 | K29: 60000 | L29: 50 | M29: 100 | N29: 130 | O29: 160 | Q29: 60000 | R29: 40 | S29: 70 | T29: 100 | U29: 140
C30: 2014-04-29 | D30: 43959 | E30: 40 | K30: 70000 | L30: 60 | M30: 120 | N30: 150 | O30: 190 | Q30: 70000 | R30: 50 | S30: 100 | T30: 130 | U30: 160
C31: 2014-04-29 | D31: 58335 | E31: 6 | K31: 80000 | L31: 70 | M31: 140 | N31: 180 | O31: 220 | Q31: 80000 | R31: 60 | S31: 120 | T31: 150 | U31: 190
C32: 2014-04-29 | D32: 55568 | E32: 3 | K32: 90000 | L32: 80 | M32: 160 | N32: 200 | O32: 250 | Q32: 90000 | R32: 70 | S32: 140 | T32: 180 | U32: 220
C33: 2014-04-29 | D33: 74572 | E33: 8
C34: 2014-04-29 | D34: 83703 | E34: 29 | K34: B (increase short distances and small weights))
C35: 2014-04-29 | D35: 1068 | E35: 56 | K35: ZIP / weight | L35: 0 | M35: 50 | N35: 100 | O35: 300 | Q35: Solution:
C36: 2014-04-29 | D36: 11897 | E36: 53 | L36: 2 | M36: 3 | N36: 4 | O36: 5
C37: 2014-04-29 | D37: 16739 | E37: 63 | K37: 0 | L37: 30 | M37: 40 | N37: 70 | O37: 100
C38: 2014-04-29 | D38: 20453 | E38: 90 | K38: 10000 | L38: 20 | M38: 30 | N38: 60 | O38: 80
C39: 2014-04-29 | D39: 38855 | E39: 73 | K39: 20000 | L39: 10 | M39: 20 | N39: 50 | O39: 70
C40: 2014-04-29 | D40: 47878 | E40: 97 | K40: 30000 | L40: 20 | M40: 30 | N40: 60 | O40: 90
C41: 2014-04-29 | D41: 56777 | E41: 79 | K41: 40000 | L41: 30 | M41: 50 | N41: 80 | O41: 110
C42: 2014-04-29 | D42: 87024 | E42: 89 | K42: 50000 | L42: 40 | M42: 70 | N42: 100 | O42: 140
C43: 2014-04-29 | D43: 5672 | E43: 190 | K43: 60000 | L43: 50 | M43: 100 | N43: 130 | O43: 160
C44: 2014-04-29 | D44: 1304 | E44: 116 | K44: 70000 | L44: 60 | M44: 120 | N44: 150 | O44: 190
C45: 2014-04-29 | D45: 4105 | E45: 168 | K45: 80000 | L45: 70 | M45: 140 | N45: 180 | O45: 220
C46: 2014-04-29 | D46: 1880 | E46: 183 | K46: 90000 | L46: 80 | M46: 160 | N46: 200 | O46: 250
C47: 2014-04-29 | D47: 4808 | E47: 200
C48: 2014-04-29 | D48: 13411 | E48: 142 | K48: C (increase long distances and large weights)
C49: 2014-04-29 | D49: 24542 | E49: 147 | K49: ZIP / weight | L49: 0 | M49: 50 | N49: 100 | O49: 300
A50: 0 | C50: 2014-04-29 | D50: 44698 | E50: 105 | L50: 2 | M50: 3 | N50: 4 | O50: 5
C51: 2014-04-29 | D51: 54367 | E51: 111 | K51: 0 | L51: 30 | M51: 40 | N51: 70 | O51: 100
C52: 2014-04-29 | D52: 58891 | E52: 111 | K52: 10000 | L52: 20 | M52: 30 | N52: 60 | O52: 80
C53: 2014-04-29 | D53: 57890 | E53: 133 | K53: 20000 | L53: 10 | M53: 20 | N53: 50 | O53: 70
C54: 2014-04-29 | D54: 67734 | E54: 159 | K54: 30000 | L54: 20 | M54: 30 | N54: 60 | O54: 90
C55: 2014-04-29 | D55: 60752 | E55: 118 | K55: 40000 | L55: 30 | M55: 50 | N55: 80 | O55: 110
C56: 2014-04-29 | D56: 83742 | E56: 157 | K56: 50000 | L56: 40 | M56: 70 | N56: 100 | O56: 140
C57: 2014-04-29 | D57: 7413 | E57: 211 | K57: 60000 | L57: 50 | M57: 100 | N57: 130 | O57: 160
C58: 2014-04-29 | D58: 8713 | E58: 421 | K58: 70000 | L58: 60 | M58: 120 | N58: 150 | O58: 190
C59: 2014-04-29 | D59: 2114 | E59: 482 | K59: 80000 | L59: 70 | M59: 140 | N59: 180 | O59: 220
C60: 2014-04-29 | D60: 15821 | E60: 419 | K60: 90000 | L60: 80 | M60: 160 | N60: 200 | O60: 250
C61: 2014-04-29 | D61: 12611 | E61: 259
C62: 2014-04-29 | D62: 22393 | E62: 427
C63: 2014-04-29 | D63: 20834 | E63: 290
C64: 2014-04-29 | D64: 40181 | E64: 292
C65: 2014-04-29 | D65: 45541 | E65: 478
C66: 2014-04-29 | D66: 61074 | E66: 281
C67: 2014-04-30 | D67: 3372 | E67: 26
C68: 2014-04-30 | D68: 15869 | E68: 40
C69: 2014-04-30 | D69: 22587 | E69: 42
C70: 2014-04-30 | D70: 34190 | E70: 42
C71: 2014-04-30 | D71: 34374 | E71: 31
C72: 2014-04-30 | D72: 48000 | E72: 4
C73: 2014-04-30 | D73: 59531 | E73: 7
C74: 2014-04-30 | D74: 54969 | E74: 42
C75: 2014-04-30 | D75: 6102 | E75: 92
C76: 2014-04-30 | D76: 2006 | E76: 88
C77: 2014-04-30 | D77: 11215 | E77: 85
C78: 2014-04-30 | D78: 14828 | E78: 63
C79: 2014-04-30 | D79: 13306 | E79: 52
C80: 2014-04-30 | D80: 11022 | E80: 50
C81: 2014-04-30 | D81: 29565 | E81: 55
C82: 2014-04-30 | D82: 23319 | E82: 89
C83: 2014-04-30 | D83: 25474 | E83: 66
C84: 2014-04-30 | D84: 22077 | E84: 66
C85: 2014-04-30 | D85: 32793 | E85: 67
C86: 2014-04-30 | D86: 58758 | E86: 73
C87: 2014-04-30 | D87: 78133 | E87: 67
C88: 2014-04-30 | D88: 82382 | E88: 65
C89: 2014-04-30 | D89: 6273 | E89: 151
C90: 2014-04-30 | D90: 806 | E90: 106
C91: 2014-04-30 | D91: 7387 | E91: 154
C92: 2014-04-30 | D92: 17894 | E92: 179
C93: 2014-04-30 | D93: 10005 | E93: 109
C94: 2014-04-30 | D94: 23535 | E94: 171
C95: 2014-04-30 | D95: 23044 | E95: 127
C96: 2014-04-30 | D96: 27025 | E96: 131
C97: 2014-04-30 | D97: 38456 | E97: 169
C98: 2014-04-30 | D98: 39953 | E98: 155
C99: 2014-04-30 | D99: 51963 | E99: 101
C100: 2014-04-30 | D100: 67329 | E100: 126
C101: 2014-04-30 | D101: 3923 | E101: 290
C102: 2014-04-30 | D102: 14355 | E102: 437
C103: 2014-04-30 | D103: 14259 | E103: 489
C104: 2014-04-30 | D104: 28906 | E104: 421
C105: 2014-04-30 | D105: 53927 | E105: 402
C106: 2014-05-01 | D106: 2353 | E106: 26
C107: 2014-05-01 | D107: 48 | E107: 20
C108: 2014-05-01 | D108: 3876 | E108: 38
C109: 2014-05-01 | D109: 18149 | E109: 5
C110: 2014-05-01 | D110: 21219 | E110: 28
C111: 2014-05-01 | D111: 27620 | E111: 49
C112: 2014-05-01 | D112: 49110 | E112: 31
C113: 2014-05-01 | D113: 44525 | E113: 34
C114: 2014-05-01 | D114: 42290 | E114: 34
C115: 2014-05-01 | D115: 60064 | E115: 19
C116: 2014-05-01 | D116: 68709 | E116: 34
C117: 2014-05-01 | D117: 62253 | E117: 20
C118: 2014-05-01 | D118: 73546 | E118: 38
C119: 2014-05-01 | D119: 81119 | E119: 41
C120: 2014-05-01 | D120: 862 | E120: 52
C121: 2014-05-01 | D121: 7517 | E121: 95
C122: 2014-05-01 | D122: 6176 | E122: 100
C123: 2014-05-01 | D123: 8269 | E123: 64
C124: 2014-05-01 | D124: 17747 | E124: 74
C125: 2014-05-01 | D125: 12919 | E125: 52
C126: 2014-05-01 | D126: 10582 | E126: 80
C127: 2014-05-01 | D127: 14784 | E127: 59
C128: 2014-05-01 | D128: 18528 | E128: 98
C129: 2014-05-01 | D129: 26479 | E129: 62
C130: 2014-05-01 | D130: 29176 | E130: 65
C131: 2014-05-01 | D131: 38515 | E131: 68
C132: 2014-05-01 | D132: 35423 | E132: 85
C133: 2014-05-01 | D133: 43024 | E133: 89
C134: 2014-05-01 | D134: 49904 | E134: 66
C135: 2014-05-01 | D135: 62647 | E135: 99
C136: 2014-05-01 | D136: 60749 | E136: 93
C137: 2014-05-01 | D137: 79107 | E137: 60
C138: 2014-05-01 | D138: 4663 | E138: 121
C139: 2014-05-01 | D139: 2053 | E139: 114
C140: 2014-05-01 | D140: 13965 | E140: 103
C141: 2014-05-01 | D141: 15616 | E141: 138
C142: 2014-05-01 | D142: 17341 | E142: 120
C143: 2014-05-01 | D143: 11823 | E143: 139
C144: 2014-05-01 | D144: 17612 | E144: 160
C145: 2014-05-01 | D145: 21532 | E145: 154
C146: 2014-05-01 | D146: 20059 | E146: 192
C147: 2014-05-01 | D147: 38200 | E147: 140
C148: 2014-05-01 | D148: 35997 | E148: 107
C149: 2014-05-01 | D149: 42672 | E149: 177
C150: 2014-05-01 | D150: 3042 | E150: 202
C151: 2014-05-01 | D151: 5254 | E151: 201
C152: 2014-05-01 | D152: 1115 | E152: 204
C153: 2014-05-01 | D153: 16627 | E153: 400
C154: 2014-05-01 | D154: 17772 | E154: 383
C155: 2014-05-01 | D155: 15195 | E155: 488
C156: 2014-05-01 | D156: 40079 | E156: 428
C157: 2014-05-01 | D157: 44875 | E157: 477
C158: 2014-05-02 | D158: 1281 | E158: 41
C159: 2014-05-02 | D159: 12060 | E159: 43
C160: 2014-05-02 | D160: 12685 | E160: 6
C161: 2014-05-02 | D161: 12164 | E161: 49
C162: 2014-05-02 | D162: 25964 | E162: 43
C163: 2014-05-02 | D163: 21925 | E163: 24
C164: 2014-05-02 | D164: 25046 | E164: 16
C165: 2014-05-02 | D165: 49041 | E165: 45
C166: 2014-05-02 | D166: 62277 | E166: 27
C167: 2014-05-02 | D167: 83356 | E167: 42
C168: 2014-05-02 | D168: 96325 | E168: 36
C169: 2014-05-02 | D169: 3711 | E169: 60
C170: 2014-05-02 | D170: 526 | E170: 58
C171: 2014-05-02 | D171: 9993 | E171: 71
C172: 2014-05-02 | D172: 9729 | E172: 85
C173: 2014-05-02 | D173: 6171 | E173: 86
C174: 2014-05-02 | D174: 18658 | E174: 90
C175: 2014-05-02 | D175: 24413 | E175: 93
C176: 2014-05-02 | D176: 39583 | E176: 79
C177: 2014-05-02 | D177: 32728 | E177: 64
C178: 2014-05-02 | D178: 39771 | E178: 57
C179: 2014-05-02 | D179: 35593 | E179: 53
C180: 2014-05-02 | D180: 69830 | E180: 69
C181: 2014-05-02 | D181: 65106 | E181: 60
C182: 2014-05-02 | D182: 62244 | E182: 63
C183: 2014-05-02 | D183: 69965 | E183: 88
C184: 2014-05-02 | D184: 8590 | E184: 127
C185: 2014-05-02 | D185: 10440 | E185: 155
C186: 2014-05-02 | D186: 14661 | E186: 183
C187: 2014-05-02 | D187: 16859 | E187: 131
C188: 2014-05-02 | D188: 19475 | E188: 133
C189: 2014-05-02 | D189: 22580 | E189: 106
C190: 2014-05-02 | D190: 29118 | E190: 174
C191: 2014-05-02 | D191: 22910 | E191: 181
C192: 2014-05-02 | D192: 27816 | E192: 147
C193: 2014-05-02 | D193: 30737 | E193: 185
C194: 2014-05-02 | D194: 39398 | E194: 106
C195: 2014-05-02 | D195: 31722 | E195: 100
C196: 2014-05-02 | D196: 40886 | E196: 104
C197: 2014-05-02 | D197: 45873 | E197: 193
C198: 2014-05-02 | D198: 51749 | E198: 140
C199: 2014-05-02 | D199: 67195 | E199: 172
C200: 2014-05-02 | D200: 66540 | E200: 184
C201: 2014-05-02 | D201: 80131 | E201: 190
C202: 2014-05-02 | D202: 84616 | E202: 192
C203: 2014-05-02 | D203: 5541 | E203: 488
... 1152 more rows

Sheet 12 Tarifanalyse (A1)_ (hidden)
B1: 2 | C1: 2 | D1: 2 | E1: 1 | F1: 1 | G1: 1 | H1: 0
A2: 1 | B2: 12 Charge analysis (E1)_ | F2: =B2 -> 12 Charge analysis (E1)_
A3: 2 | B3: 12 Tarifanalyse (A1)_
A4: 0
B5: 1 | C5: Wir wollen jetzt den kombinierten S-W-VERWEIS benutzen, um die Einnahmen zu vergleichen, die sich auf der Basis verschiedener Tariftabellen erzielen ließen. Dazu berechnen Sie Ihre Einnahmen mit der Standard-Tariftabelle A, mit zwei modifizierten Tariftabellen B und C und mit der Tariftabelle Ihres Wettbewerbers. In der Tabelle B sollen die Tarife für kurze Strecken und kleine Gewichte etwas erhöht werden. Der Bereich ist gelb markiert. In der Tabelle C sollen die Tarife für lange Strecken und große Gewichte etwas erhöht werden. Der Bereich ist gelb markiert. | E5: 1 | F5: We will now use the combined V-H-LOOKUP to compare the earnings that could be generated on the basis of different charge tables. To do this, calculate your earnings using the standard charge table A, two modified charge tables B and C and your competitor's charge table. In table B the tariffs for short distances and small weights are to be increased slightly. The range is marked yellow. In table C, the tariffs for long distances and heavy weights are to be increased slightly. The range is marked yellow.
B6: =IF(C6<>"",B5+1,"") -> 2 | C6: Der Erhöhungsbetrag soll in Zelle J20 eingegeben werden (gelb markiert). Wenn Sie dort also z.B. 2 € eingeben, dann soll in L37 erscheinen: 32 €. Auch alle anderen Werte in den gelb markierten Bereichen sollen sich dann um 2 € erhöhen. Geben Sie die dafür notwendige Formel in L37 bzw. N56 ein (Dollarzeichen richtig setzen!) und kopieren Sie die Formel nach rechts und nach unten. ACHTUNG: Formeln in formatierten Tabellen mit der RECHTEN Maustaste kopieren! | E6: =IF(F6<>"",E5+1,"") -> 2 | F6: The amount of increase should be entered in cell J20 (highlighted in yellow). For example, if you enter 2 € there, then 32 € should appear in L37. All other values in the yellow marked ranges should then also increase by 2 €. Enter the necessary formula in L37 or N56 (set the dollar sign correctly!) and copy the formula to the right and down. ATTENTION: Copy formulas in formatted tables with the RIGHT mouse button!
B7: =IF(C7<>"",B6+1,"") -> 3 | C7: Geben Sie dann die S-W-VERWEIS-Formeln in Zeile 21 ein und kopieren Sie sie nach unten. ACHTUNG: Nicht mit der Maus ziehen bis zum Fingerkrampf, sondern mit Doppelklick auf den Kopierpunkt in der rechten unteren Ecke der Zelle! Summieren Sie die vier Spalten in Zeile 20 auf. ACHTUNG: In der Summenformel nicht mit der Maus ziehen bis zum Fingerkrampf, sondern erste Zelle anklicken und dann Strg-Umschalt-PfeilUnten drücken! Setzen Sie verschiedene sinnvolle Werte in J20 ein, sehen Sie sich die Summen an, vergleichen Sie sie und interpretieren Sie das Ergebnis! | E7: =IF(F7<>"",E6+1,"") -> 3 | F7: Then enter the V-H-LOOKUP-formulas in row 21 and copy them down. ATTENTION: Do not drag the mouse until the finger cramps, but double-click on the copy point in the bottom right corner of the cell! Sum up the four columns in row 20. ATTENTION: In the summation formula, don't drag the mouse until the finger cramps, but click on the first cell and then press Ctrl-Shift-DownArrow! Put different meaningful values in J20, look at the sums, compare them and interpret the result!
B8: =IF(C8<>"",B7+1,"") -> 
E10: =IF(F10<>"",E9+1,"") -> 

Sheet 13 Bevor Sie weitermachen … (1)
F1: 0
A2: 1 | B2: 13 Before you continue … (1) | F2: Back to Start
A3: 2 | B3: 13 Bevor Sie weitermachen … (1) | F3: Startseite
A6: 1 | C6: … please work throught the worksheet "Scroll bars" in the file "Excel-Controls"!
A7: 1
A8: 1
A9: 2 | C9: … arbeiten Sie bitte das Arbeitsblatt "Bildlaufleisten" in der Datei "Excel-Controls" durch!
A10: 2
A11: 2
A21: 0

Sheet 14 Tarifanalyse (A2)
L1: 0
A2: 1 | B2: 14 Charge analysis (E2) | F2: Back to Start
A3: 2 | B3: 14 Tarifanalyse (A2) | F3: Startseite
A5: 2 | B5: Übung 1 | C5: Stellen Sie den Erhöhungsbetrag in J20 mit Hilfe einer Bildlaufleiste ein. (siehe "Excel-Controls"!) Sie soll folgende Parameter haben:
A6: 2
A7: 2
A8: 1 | B8: Exercise 1 | C8: Use a scroll bar to define the increase value in J20. (see "Excel-Controls"!) The scroll bar shall have the following parameters:
A9: 1
A10: 1
E11: Min: | F11: 0
E12: Max: | F12: 20
E13: SmallChange: | F13: 1
E14: LargeChange: | F14: 5
E15: LinkedCell: | F15: J20
A17: 2 | B17: Übung 2 | C17: Stellen Sie die vier Summen in einem Säulendiagramm dar!
A18: 1 | B18: Exercise 2 | C18: Display the four resulting sums with a column chart!
C19: date | D19: ZIP code | E19: weight | F19: earnings A | G19: earnings B | H19: earnings C | I19: competitor
K20: A | Q20: competitor
C21: 2014-04-29 | D21: 9715 | E21: 28 | K21: ZIP / weight | L21: 0 | M21: 50 | N21: 100 | O21: 300 | Q21: ZIP / weight | R21: 0 | S21: 50 | T21: 100 | U21: 300
C22: 2014-04-29 | D22: 10960 | E22: 28 | L22: 2 | M22: 3 | N22: 4 | O22: 5 | R22: 2 | S22: 3 | T22: 4 | U22: 5
C23: 2014-04-29 | D23: 13399 | E23: 13 | K23: 0 | L23: 30 | M23: 40 | N23: 70 | O23: 100 | Q23: 0 | R23: 40 | S23: 50 | T23: 80 | U23: 110
C24: 2014-04-29 | D24: 16393 | E24: 10 | K24: 10000 | L24: 20 | M24: 30 | N24: 60 | O24: 80 | Q24: 10000 | R24: 30 | S24: 40 | T24: 70 | U24: 100
C25: 2014-04-29 | D25: 21682 | E25: 28 | K25: 20000 | L25: 10 | M25: 20 | N25: 50 | O25: 70 | Q25: 20000 | R25: 20 | S25: 30 | T25: 60 | U25: 80
C26: 2014-04-29 | D26: 24116 | E26: 41 | K26: 30000 | L26: 20 | M26: 30 | N26: 60 | O26: 90 | Q26: 30000 | R26: 10 | S26: 20 | T26: 50 | U26: 70
C27: 2014-04-29 | D27: 24121 | E27: 19 | K27: 40000 | L27: 30 | M27: 50 | N27: 80 | O27: 110 | Q27: 40000 | R27: 20 | S27: 30 | T27: 60 | U27: 90
C28: 2014-04-29 | D28: 32412 | E28: 9 | K28: 50000 | L28: 40 | M28: 70 | N28: 100 | O28: 140 | Q28: 50000 | R28: 30 | S28: 50 | T28: 80 | U28: 110
C29: 2014-04-29 | D29: 32331 | E29: 31 | K29: 60000 | L29: 50 | M29: 100 | N29: 130 | O29: 160 | Q29: 60000 | R29: 40 | S29: 70 | T29: 100 | U29: 140
C30: 2014-04-29 | D30: 43959 | E30: 40 | K30: 70000 | L30: 60 | M30: 120 | N30: 150 | O30: 190 | Q30: 70000 | R30: 50 | S30: 100 | T30: 130 | U30: 160
C31: 2014-04-29 | D31: 58335 | E31: 6 | K31: 80000 | L31: 70 | M31: 140 | N31: 180 | O31: 220 | Q31: 80000 | R31: 60 | S31: 120 | T31: 150 | U31: 190
C32: 2014-04-29 | D32: 55568 | E32: 3 | K32: 90000 | L32: 80 | M32: 160 | N32: 200 | O32: 250 | Q32: 90000 | R32: 70 | S32: 140 | T32: 180 | U32: 220
C33: 2014-04-29 | D33: 74572 | E33: 8
C34: 2014-04-29 | D34: 83703 | E34: 29 | K34: B (increase for short distances and small weights))
C35: 2014-04-29 | D35: 1068 | E35: 56 | K35: ZIP / weight | L35: 0 | M35: 50 | N35: 100 | O35: 300
C36: 2014-04-29 | D36: 11897 | E36: 53 | L36: 2 | M36: 3 | N36: 4 | O36: 5
C37: 2014-04-29 | D37: 16739 | E37: 63 | K37: 0 | L37: =L23+$J$20 -> 30 | M37: =M23+$J$20 -> 40 | N37: 70 | O37: 100
C38: 2014-04-29 | D38: 20453 | E38: 90 | K38: 10000 | L38: =L24+$J$20 -> 20 | M38: 30 | N38: 60 | O38: 80
C39: 2014-04-29 | D39: 38855 | E39: 73 | K39: 20000 | L39: 10 | M39: 20 | N39: 50 | O39: 70
C40: 2014-04-29 | D40: 47878 | E40: 97 | K40: 30000 | L40: 20 | M40: 30 | N40: 60 | O40: 90
C41: 2014-04-29 | D41: 56777 | E41: 79 | K41: 40000 | L41: 30 | M41: 50 | N41: 80 | O41: 110
C42: 2014-04-29 | D42: 87024 | E42: 89 | K42: 50000 | L42: 40 | M42: 70 | N42: 100 | O42: 140
C43: 2014-04-29 | D43: 5672 | E43: 190 | K43: 60000 | L43: 50 | M43: 100 | N43: 130 | O43: 160
C44: 2014-04-29 | D44: 1304 | E44: 116 | K44: 70000 | L44: 60 | M44: 120 | N44: 150 | O44: 190
A45: 0 | C45: 2014-04-29 | D45: 4105 | E45: 168 | K45: 80000 | L45: 70 | M45: 140 | N45: 180 | O45: 220
C46: 2014-04-29 | D46: 1880 | E46: 183 | K46: 90000 | L46: 80 | M46: 160 | N46: 200 | O46: 250
C47: 2014-04-29 | D47: 4808 | E47: 200
C48: 2014-04-29 | D48: 13411 | E48: 142 | K48: C (increase for long distances and large weights)
C49: 2014-04-29 | D49: 24542 | E49: 147 | K49: ZIP / weight | L49: 0 | M49: 50 | N49: 100 | O49: 300
C50: 2014-04-29 | D50: 44698 | E50: 105 | L50: 2 | M50: 3 | N50: 4 | O50: 5
C51: 2014-04-29 | D51: 54367 | E51: 111 | K51: 0 | L51: 30 | M51: 40 | N51: 70 | O51: 100
C52: 2014-04-29 | D52: 58891 | E52: 111 | K52: 10000 | L52: 20 | M52: 30 | N52: 60 | O52: 80
C53: 2014-04-29 | D53: 57890 | E53: 133 | K53: 20000 | L53: 10 | M53: 20 | N53: 50 | O53: 70
C54: 2014-04-29 | D54: 67734 | E54: 159 | K54: 30000 | L54: 20 | M54: 30 | N54: 60 | O54: 90
C55: 2014-04-29 | D55: 60752 | E55: 118 | K55: 40000 | L55: 30 | M55: 50 | N55: 80 | O55: 110
C56: 2014-04-29 | D56: 83742 | E56: 157 | K56: 50000 | L56: 40 | M56: 70 | N56: =N28+$J$20 -> 100 | O56: =O28+$J$20 -> 140
C57: 2014-04-29 | D57: 7413 | E57: 211 | K57: 60000 | L57: 50 | M57: 100 | N57: =N29+$J$20 -> 130 | O57: 160
C58: 2014-04-29 | D58: 8713 | E58: 421 | K58: 70000 | L58: 60 | M58: 120 | N58: 150 | O58: 190
C59: 2014-04-29 | D59: 2114 | E59: 482 | K59: 80000 | L59: 70 | M59: 140 | N59: 180 | O59: 220
C60: 2014-04-29 | D60: 15821 | E60: 419 | K60: 90000 | L60: 80 | M60: 160 | N60: 200 | O60: 250
C61: 2014-04-29 | D61: 12611 | E61: 259
C62: 2014-04-29 | D62: 22393 | E62: 427
C63: 2014-04-29 | D63: 20834 | E63: 290
C64: 2014-04-29 | D64: 40181 | E64: 292
C65: 2014-04-29 | D65: 45541 | E65: 478
C66: 2014-04-29 | D66: 61074 | E66: 281
C67: 2014-04-30 | D67: 3372 | E67: 26
C68: 2014-04-30 | D68: 15869 | E68: 40
C69: 2014-04-30 | D69: 22587 | E69: 42
C70: 2014-04-30 | D70: 34190 | E70: 42
C71: 2014-04-30 | D71: 34374 | E71: 31
C72: 2014-04-30 | D72: 48000 | E72: 4
C73: 2014-04-30 | D73: 59531 | E73: 7
C74: 2014-04-30 | D74: 54969 | E74: 42
C75: 2014-04-30 | D75: 6102 | E75: 92
C76: 2014-04-30 | D76: 2006 | E76: 88
C77: 2014-04-30 | D77: 11215 | E77: 85
C78: 2014-04-30 | D78: 14828 | E78: 63
C79: 2014-04-30 | D79: 13306 | E79: 52
C80: 2014-04-30 | D80: 11022 | E80: 50
C81: 2014-04-30 | D81: 29565 | E81: 55
C82: 2014-04-30 | D82: 23319 | E82: 89
C83: 2014-04-30 | D83: 25474 | E83: 66
C84: 2014-04-30 | D84: 22077 | E84: 66
C85: 2014-04-30 | D85: 32793 | E85: 67
C86: 2014-04-30 | D86: 58758 | E86: 73
C87: 2014-04-30 | D87: 78133 | E87: 67
C88: 2014-04-30 | D88: 82382 | E88: 65
C89: 2014-04-30 | D89: 6273 | E89: 151
C90: 2014-04-30 | D90: 806 | E90: 106
C91: 2014-04-30 | D91: 7387 | E91: 154
C92: 2014-04-30 | D92: 17894 | E92: 179
C93: 2014-04-30 | D93: 10005 | E93: 109
C94: 2014-04-30 | D94: 23535 | E94: 171
C95: 2014-04-30 | D95: 23044 | E95: 127
C96: 2014-04-30 | D96: 27025 | E96: 131
C97: 2014-04-30 | D97: 38456 | E97: 169
C98: 2014-04-30 | D98: 39953 | E98: 155
C99: 2014-04-30 | D99: 51963 | E99: 101
C100: 2014-04-30 | D100: 67329 | E100: 126
C101: 2014-04-30 | D101: 3923 | E101: 290
C102: 2014-04-30 | D102: 14355 | E102: 437
C103: 2014-04-30 | D103: 14259 | E103: 489
C104: 2014-04-30 | D104: 28906 | E104: 421
C105: 2014-04-30 | D105: 53927 | E105: 402
C106: 2014-05-01 | D106: 2353 | E106: 26
C107: 2014-05-01 | D107: 48 | E107: 20
C108: 2014-05-01 | D108: 3876 | E108: 38
C109: 2014-05-01 | D109: 18149 | E109: 5
C110: 2014-05-01 | D110: 21219 | E110: 28
C111: 2014-05-01 | D111: 27620 | E111: 49
C112: 2014-05-01 | D112: 49110 | E112: 31
C113: 2014-05-01 | D113: 44525 | E113: 34
C114: 2014-05-01 | D114: 42290 | E114: 34
C115: 2014-05-01 | D115: 60064 | E115: 19
C116: 2014-05-01 | D116: 68709 | E116: 34
C117: 2014-05-01 | D117: 62253 | E117: 20
C118: 2014-05-01 | D118: 73546 | E118: 38
C119: 2014-05-01 | D119: 81119 | E119: 41
C120: 2014-05-01 | D120: 862 | E120: 52
C121: 2014-05-01 | D121: 7517 | E121: 95
C122: 2014-05-01 | D122: 6176 | E122: 100
C123: 2014-05-01 | D123: 8269 | E123: 64
C124: 2014-05-01 | D124: 17747 | E124: 74
C125: 2014-05-01 | D125: 12919 | E125: 52
C126: 2014-05-01 | D126: 10582 | E126: 80
C127: 2014-05-01 | D127: 14784 | E127: 59
C128: 2014-05-01 | D128: 18528 | E128: 98
C129: 2014-05-01 | D129: 26479 | E129: 62
C130: 2014-05-01 | D130: 29176 | E130: 65
C131: 2014-05-01 | D131: 38515 | E131: 68
C132: 2014-05-01 | D132: 35423 | E132: 85
C133: 2014-05-01 | D133: 43024 | E133: 89
C134: 2014-05-01 | D134: 49904 | E134: 66
C135: 2014-05-01 | D135: 62647 | E135: 99
C136: 2014-05-01 | D136: 60749 | E136: 93
C137: 2014-05-01 | D137: 79107 | E137: 60
C138: 2014-05-01 | D138: 4663 | E138: 121
C139: 2014-05-01 | D139: 2053 | E139: 114
C140: 2014-05-01 | D140: 13965 | E140: 103
C141: 2014-05-01 | D141: 15616 | E141: 138
C142: 2014-05-01 | D142: 17341 | E142: 120
C143: 2014-05-01 | D143: 11823 | E143: 139
C144: 2014-05-01 | D144: 17612 | E144: 160
C145: 2014-05-01 | D145: 21532 | E145: 154
C146: 2014-05-01 | D146: 20059 | E146: 192
C147: 2014-05-01 | D147: 38200 | E147: 140
C148: 2014-05-01 | D148: 35997 | E148: 107
C149: 2014-05-01 | D149: 42672 | E149: 177
C150: 2014-05-01 | D150: 3042 | E150: 202
C151: 2014-05-01 | D151: 5254 | E151: 201
C152: 2014-05-01 | D152: 1115 | E152: 204
C153: 2014-05-01 | D153: 16627 | E153: 400
C154: 2014-05-01 | D154: 17772 | E154: 383
C155: 2014-05-01 | D155: 15195 | E155: 488
C156: 2014-05-01 | D156: 40079 | E156: 428
C157: 2014-05-01 | D157: 44875 | E157: 477
C158: 2014-05-02 | D158: 1281 | E158: 41
C159: 2014-05-02 | D159: 12060 | E159: 43
C160: 2014-05-02 | D160: 12685 | E160: 6
C161: 2014-05-02 | D161: 12164 | E161: 49
C162: 2014-05-02 | D162: 25964 | E162: 43
C163: 2014-05-02 | D163: 21925 | E163: 24
C164: 2014-05-02 | D164: 25046 | E164: 16
C165: 2014-05-02 | D165: 49041 | E165: 45
C166: 2014-05-02 | D166: 62277 | E166: 27
C167: 2014-05-02 | D167: 83356 | E167: 42
C168: 2014-05-02 | D168: 96325 | E168: 36
C169: 2014-05-02 | D169: 3711 | E169: 60
C170: 2014-05-02 | D170: 526 | E170: 58
C171: 2014-05-02 | D171: 9993 | E171: 71
C172: 2014-05-02 | D172: 9729 | E172: 85
C173: 2014-05-02 | D173: 6171 | E173: 86
C174: 2014-05-02 | D174: 18658 | E174: 90
C175: 2014-05-02 | D175: 24413 | E175: 93
C176: 2014-05-02 | D176: 39583 | E176: 79
C177: 2014-05-02 | D177: 32728 | E177: 64
C178: 2014-05-02 | D178: 39771 | E178: 57
C179: 2014-05-02 | D179: 35593 | E179: 53
C180: 2014-05-02 | D180: 69830 | E180: 69
C181: 2014-05-02 | D181: 65106 | E181: 60
C182: 2014-05-02 | D182: 62244 | E182: 63
C183: 2014-05-02 | D183: 69965 | E183: 88
C184: 2014-05-02 | D184: 8590 | E184: 127
C185: 2014-05-02 | D185: 10440 | E185: 155
C186: 2014-05-02 | D186: 14661 | E186: 183
C187: 2014-05-02 | D187: 16859 | E187: 131
C188: 2014-05-02 | D188: 19475 | E188: 133
C189: 2014-05-02 | D189: 22580 | E189: 106
C190: 2014-05-02 | D190: 29118 | E190: 174
C191: 2014-05-02 | D191: 22910 | E191: 181
C192: 2014-05-02 | D192: 27816 | E192: 147
C193: 2014-05-02 | D193: 30737 | E193: 185
C194: 2014-05-02 | D194: 39398 | E194: 106
C195: 2014-05-02 | D195: 31722 | E195: 100
C196: 2014-05-02 | D196: 40886 | E196: 104
C197: 2014-05-02 | D197: 45873 | E197: 193
C198: 2014-05-02 | D198: 51749 | E198: 140
C199: 2014-05-02 | D199: 67195 | E199: 172
C200: 2014-05-02 | D200: 66540 | E200: 184
C201: 2014-05-02 | D201: 80131 | E201: 190
C202: 2014-05-02 | D202: 84616 | E202: 192
... 1153 more rows

Sheet 14 Tarifanalyse (A2)_ (hidden)
B1: 2 | C1: 2 | D1: 2 | E1: 1 | F1: 1 | G1: 1 | H1: 0
A2: 1 | B2: 14 Charge analysis (E2)_ | F2: =B2 -> 14 Charge analysis (E2)_
A3: 2 | B3: 14 Tarifanalyse (A2)_
A4: 0
B5: 1 | C5: Die Tarifanalyse ist ein typisches Beispiel für "Was-wäre-wenn"-Analysen mit Excel. Dabei werden ein oder mehrere Parameter verändert und man untersucht, welche Folgen das hat. In diesem Fall ist das Erhöhungsbetrag in Zelle J20. Diesen Wert einzutippen, ist aber viel zu unpraktisch. Das geht mit Excel sehr viel eleganter - und zwar mit Hilfe eines Scrollbalkens. Wie ein solcher Scrollbalken erstellt wird, lesen Sie bitte in der Übungsdatei "Excel-Controls" nach! | E5: 1 | F5: Tariff analysis is a typical example of "what-if" analyses with Excel. Here, one or more parameters are changed and the consequences are investigated - in this case, the amount of increase in cell J20. But typing this value is far too impractical. This can be done much more elegantly with Excel - with the help of a scroll bar. To find out how to create such a scroll bar, please refer to the exercise file "Excel Controls"!
B6: =IF(C6<>"",B5+1,"") -> 2 | C6: Im Video wird das vorgeführt. ACHTUNG: Falls das Register "Entwicklertools" bei Ihnen noch nicht angezeigt wird, müssen Sie es zuerst einschalten! ACHTUNG: Benutzen Sie NICHT die Formularsteuerelemente, SONDERN die ActiveX-Steuerelemente!! Die Parameter des Scrollbalkens sind: Min = 0 Max = 20 SmallChange = 1 LargeChange = 5 LinkedCell = J20 | E6: =IF(F6<>"",E5+1,"") -> 2 | F6: This is demonstrated in the video. ATTENTION: If the tab "Developer" is not yet displayed on your screen, you have to turn it on first! ATTENTION: DO NOT use the form controls, BUT the ActiveX controls! The parameters of the scrollbar are: Min = 0 Max = 20 SmallChange = 1 LargeChange = 5 LinkedCell = J20
B7: =IF(C7<>"",B6+1,"") -> 3 | C7: Stellen Sie mit Hilfe des Scrollbalkens verschiedene sinnvolle Werte in J20 ein, sehen Sie sich die Summen an, vergleichen Sie sie und interpretieren Sie das Ergebnis! | E7: =IF(F7<>"",E6+1,"") -> 3 | F7: Use the scroll bar to set various meaningful values in J20, look at the totals, compare them and interpret the result!
B8: =IF(C8<>"",B7+1,"") -> 4 | C8: Stellen Sie die Summen in einem Säulendiagramm dar. Verändern Sie mit Hilfe des Scrollbalkens den Erhöhungsbetrag und beobachten Sie die Wirkung auf das Diagramm. Fällt Ihnen auf, dass daran etwas schlecht ist? Beobachten Sie mal beim Ziehen am Scrollbalken die erste und die vierte Säule im Diagramm! Welchen (falschen!) Eindruck bekommt der Benutzer? Wie kann man das ändern? | E8: 4 | F8: Display the totals in a bar chart. Use the scroll bar to change the amount of increase and observe the effect on the chart. Do you notice that there is something wrong with it? Observe the first and fourth column in the chart while dragging the scroll bar! What (wrong!) impression does the user get? How can this be changed?
B9: =IF(C9<>"",B8+1,"") ->  | E9: =IF(F9<>"",E8+1,"") -> 

Sheet 14 Tarifanalyse (L2)_ (hidden)
B1: 2 | C1: 2 | D1: 2 | E1: 1 | F1: 1 | G1: 1 | H1: 0
A2: 1 | B2: 14 Charge analysis (S2)_ | F2: =B2 -> 14 Charge analysis (S2)_
A3: 2 | B3: 14 Tarifanalyse (L2)_
A4: 0
B5: 1 | C5: Die Tarifanalyse ist ein typisches Beispiel für "Was-wäre-wenn"-Analysen mit Excel. Dabei werden ein oder mehrere Parameter verändert und man untersucht, welche Folgen das hat. In diesem Fall ist das Erhöhungsbetrag in Zelle J20. Diesen Wert einzutippen, ist aber viel zu unpraktisch. Das geht mit Excel sehr viel eleganter - und zwar mit Hilfe eines Scrollbalkens. Wie ein solcher Scrollbalken erstellt wird, lesen Sie bitte in der Übungsdatei "Excel-Controls" nach! | D5: B19 | E5: 1 | F5: Tariff analysis is a typical example of "what-if" analyses with Excel. Here, one or more parameters are changed and the consequences are investigated - in this case, the amount of increase in cell J20. But typing this value is far too impractical. This can be done much more elegantly with Excel - with the help of a scroll bar. To find out how to create such a scroll bar, please refer to the exercise file "Excel Controls"! | G5: B19
B6: =IF(C6<>"",B5+1,"") -> 2 | C6: Im Video wird das vorgeführt. ACHTUNG: Falls das Register "Entwicklertools" bei Ihnen noch nicht angezeigt wird, müssen Sie es zuerst einschalten! ACHTUNG: Benutzen Sie NICHT die Formularsteuerelemente, SONDERN die ActiveX-Steuerelemente!! Die Parameter des Scrollbalkens sind: Min = 0 Max = 20 SmallChange = 1 LargeChange = 5 LinkedCell = J20 | D6: B19 | E6: =IF(F6<>"",E5+1,"") -> 2 | F6: This is demonstrated in the video. ATTENTION: If the tab "Developer" is not yet displayed on your screen, you have to turn it on first! ATTENTION: DO NOT use the form controls, BUT the ActiveX controls! The parameters of the scrollbar are: Min = 0 Max = 20 SmallChange = 1 LargeChange = 5 LinkedCell = J20 | G6: B19
B7: =IF(C7<>"",B6+1,"") -> 3 | C7: Stellen Sie mit Hilfe des Scrollbalkens verschiedene sinnvolle Werte in J20 ein, sehen Sie sich die Summen an, vergleichen Sie sie und interpretieren Sie das Ergebnis! | D7: B19 | E7: =IF(F7<>"",E6+1,"") -> 3 | F7: Use the scroll bar to set various meaningful values in J20, look at the totals, compare them and interpret the result! | G7: B19
B8: =IF(C8<>"",B7+1,"") -> 4 | C8: Stellen Sie die Summen in einem Säulendiagramm dar. Verändern Sie mit Hilfe des Scrollbalkens den Erhöhungsbetrag und beobachten Sie die Wirkung auf das Diagramm. Fällt Ihnen auf, dass daran etwas schlecht ist? Beobachten Sie mal beim Ziehen am Scrollbalken die erste und die vierte Säule im Diagramm! Welchen (falschen!) Eindruck bekommt der Benutzer? Wie kann man das ändern? | D8: I3 | E8: 4 | F8: Display the totals in a bar chart. Use the scroll bar to change the amount of increase and observe the effect on the chart. Do you notice that there is something wrong with it? Observe the first and fourth column in the chart while dragging the scroll bar! What (wrong!) impression does the user get? How can this be changed? | G8: I3
E9: =IF(F9<>"",E8+1,"") -> 

Sheet 15 Bevor Sie weitermachen … (2)
F1: 0
A2: 1 | B2: 15 Before you continue … (2) | F2: Back to Start
A3: 2 | B3: 15 Bevor Sie weitermachen … (2) | F3: Startseite
A6: 1 | C6: … please work throught the worksheet "Data validation" in the file "Excel-Basics"!
A7: 1
A8: 1
A9: 2 | C9: … arbeiten Sie bitte das Arbeitsblatt "Datenüberprüfung" in der Datei "Excel-Basics" durch!
A10: 2
A11: 2
A21: 0

Sheet 16 Rechnung (A)
K1: 0
A2: 1 | B2: 16 Invoice (E) | F2: Back to Start
A3: 2 | B3: 16 Rechnung (A) | F3: Startseite
A6: 2 | B6: Übung | C6: Vervollständigen Sie die folgende Rechnung entsprechend dem Bild rechts. Die orange gefärbten Zellen sollen mittels "Daten / Datentools / Datenüberprüfung / Datenüberprüfung" formatiert werden. Die gelb gefärbten Zellen sollen sich ihren Inhalt über SVERWEISe holen. Die erforderlichen Daten stehen auf den Arbeitsblättern "Firmen" bzw. "Waren".
A7: 2
A8: 2
A9: 2
A10: 2
A11: 2
A12: 2
A13: 1 | B13: Exercise | C13: Complete the following invoice according to the picture on the right side. The orange cells shall be formatted using "Data / Data Tools / Data Validation / Data Validation" The yellow cells shall use VLOOKUPs to get their content. The necessary data are stored on the worksheets "Companies" and "Goods", respectively.
A14: 1
A15: 1
A16: 1
A17: 1
A18: 1
A19: 1
C28: Good nr. | D28: Good name | E28: net price | F28: per | G28: Amount | H28: Total net
G46: Net price
C47: VAT: | D47: 0.19 | G47: VAT
G48: Gross price
A50: 0

Sheet 16 Rechnung (A)_ (hidden)
B1: 2 | C1: 2 | D1: 2 | E1: 1 | F1: 1 | G1: 1 | H1: 0
A2: 1 | B2: 16 Invoice (E)_ | F2: =B2 -> 16 Invoice (E)_
A3: 2 | B3: 16 Rechnung (A)_
A4: 0
B5: 1 | C5: Vervollständigen Sie die folgende Rechnung entsprechend dem Bild rechts daneben. Die orange gefärbten Zellen sollen mittels "Daten / Datentools / Datenüberprüfung / Datenüberprüfung" formatiert werden. Eine detaillierte Beschreibung des Funktion "Datenüberprüfung" finden Sie in der Übungsdatei "Excel-Basics"! Die gelb gefärbten Zellen sollen sich ihren Inhalt über SVERWEISe holen. Die erforderlichen Daten stehen auf den Arbeitsblättern "Firmen" bzw. "Waren". | E5: 1 | F5: Complete the following calculation according to the picture to the right. The cells colored in orange should be formatted using "Data / Data Tools / Data Validation / Data Validation" You will find a detailed description of the function "Data Validation" in the exercise file "Excel-Basics"! The cells colored in yellow should get their contents by means of VLOOKUP. The required data are on the worksheets "Companies" or "Goods".
B6: =IF(C6<>"",B5+1,"") -> 2 | C6: Das Video zeigt die Funktionsweise der Datenüberprüfung und der SVERWEISe: Der Benutzer wählt eine Firma aus und der Rest der Adresse wird automatisch mit Hilfe von SVERWEISen eingefügt. Der Benutzer wählt eine Warenbezeichnung aus und der Rest wird mit Hilfe von SVERWEISen eingefügt. ACHTUNG: In der Adresse müssen Sie die Anrede und den Namen bzw. die Postleitzahl und den Ort mit zwei SVERWEISen holen und beide mit "&" miteinander verknüpfen! | E6: =IF(F6<>"",E5+1,"") -> 2 | F6: The video shows how the data verification and the VLOOKUPs work: The user selects a company and the rest of the address is automatically inserted using the VLOOKUPs. The user selects a product description and the rest of the address is inserted using the VLOOKUP. ATTENTION: In the address you have to get the salutation and the name or the postcode and the city, respectively, with two VLOOKUPs and connect them with a "&" with each other!
B7: =IF(C7<>"",B6+1,"") ->  | E7: =IF(F7<>"",E6+1,"") -> 
E8: =IF(F8<>"",E7+1,"") -> 
E9: =IF(F9<>"",E8+1,"") -> 
B12: =IF(C12<>"",B11+1,"") ->  | E12: =IF(F12<>"",E11+1,"") -> 

Sheet 16 Firmen
I1: 0
A2: 1 | B2: 16 Companies | F2: Back to Start
A3: 2 | B3: 16 Firmen | F3: Startseite
C6: Company | D6: Salutation | E6: Contact person | F6: Address | G6: ZIP code | H6: City
C7: Babin Machine Inc. | D7: Mr | E7: Oliver Young | F7: East Street 111 | G7: EC2 5NT | H7: London
C8: Ready Tool Co. | D8: Ms | E8: Olivia Brewster | F8: West Av. 222 | G8: T2F 8M4 | H8: Tsawassen
C9: McCrosky Tool Corp. | D9: Ms | E9: Jessica Miller | F9: Middle Boulevard 333 | G9: 87110 | H9: Albuquerque
C10: Turner Ace Hardware | D10: Mr | E10: Charlie Nolan | F10: South Place 444 | G10: 97201 | H10: Portland
C11: Tool House Inc. | D11: Mr | E11: Thomas Sawyer | F11: North Way 555 | G11: H1J 1C3 | H11: Montréal
C12: GlobalAxxs | D12: Ms | E12: Isabella Hanson | F12: East Av. 666 | G12: LA9 PX8 | H12: Hedge End
C13: Pelham Tool Company Inc. | D13: Mr | E13: Jack Rodriguez | F13: West Str. 777 | G13: 83720 | H13: Boise
C14: Gasser True Value & Farm Sup | D14: Mr | E14: Jacob Wayne | F14: South Place 888 | G14: 98128 | H14: Seattle
C15: Hardware Bath & More | D15: Mr | E15: William West | F15: South Avenue 123 | G15: 97403 | H15: Eugene
C16: Mountaineer Precision Tools | D16: Ms | E16: Sophie Ward | F16: North Street 456 | G16: 94117 | H16: San Francisco
C17: Mayer Paint & Hardware | D17: Mr | E17: James Brown | F17: East Av. 789 | G17: 5022 | H17: San Cristóbal
A21: 0

Sheet 16 Waren
I1: 0
A2: 1 | B2: 16 Goods | F2: Back to Start
A3: 2 | B3: 16 Waren | F3: Startseite
C6: Good name | D6: Good nr. | E6: Net price | F6: per
C7: Planks | D7: 111-001 | E7: 1.99 | F7: meter | H7: meter
C8: Cement | D8: 111-002 | E8: 2.99 | F8: kg | H8: kg
C9: Green color | D9: 222-001 | E9: 4.99 | F9: liter | H9: liter
C10: Red color | D10: 222-002 | E10: 4.99 | F10: liter | H10: item
C11: Pushcart | D11: 333-001 | E11: 24.99 | F11: item
C12: Nails, 40 mm | D12: 444-001 | E12: 2.99 | F12: kg
C13: Nails, 60 mm | D13: 444-002 | E13: 3.49 | F13: kg
C14: Nails, 80 mm | D14: 444-003 | E14: 3.89 | F14: kg
C15: tube, 50mm | D15: 555-001 | E15: 7.99 | F15: meter
C16: tube, 80mm | D16: 555-002 | E16: 12.99 | F16: meter
C17: tube, 120mm | D17: 555-003 | E17: 15.99 | F17: meter
A20: 0

Sheet 17 Wert in Liste
L1: 2 | M1: 1 | N1: 0
A2: 1 | B2: 17 Value in list | F2: Back to Start
A3: 2 | B3: 17 Wert in Liste | F3: Startseite
A5: 2 | C5: Ist ein bestimmter Tag ein Feiertag? d.h.: "Befindet sich der Wert aus Spalte C auch in Spalte K?"
A6: 2
A7: 2
A8: 1 | C8: Is a certain day a holiday? i.e.: "Is the value from column C also in column K?"
A9: 1
A10: 1
A12: 1 | K12: Holidays
A13: 2 | K13: Feiertage
C15: 2020-04-10 | D15: =IFERROR(VLOOKUP(C15,$K$15:$L$20,2,FALSE),"") -> Karfreitag | E15: =IFERROR(VLOOKUP(C15,$K$15:$M$20,3,FALSE),"") -> Good Friday | K15: 2020-04-10 | L15: Karfreitag | M15: Good Friday
C16: =C15+1 -> 2020-04-11 | E16: =IFERROR(VLOOKUP(C16,$K$15:$M$20,3,FALSE),"") ->  | K16: =K15+2 -> 2020-04-12 | L16: Ostersonntag | M16: Easter Sunday
C17: =C16+1 -> 2020-04-12 | D17: Ostersonntag | E17: Easter Sunday | K17: =K16+1 -> 2020-04-13 | L17: Ostermontag | M17: Easter Monday
C18: 2020-04-13 | D18: Ostermontag | E18: Easter Monday | K18: 2020-05-01 | L18: Tag der Arbeit | M18: Labour Day
C19: 2020-04-14 | K19: 2020-05-31 | L19: Pfingstsonntag | M19: Whit Sunday
C20: 2020-04-15 | K20: =K19+1 -> 2020-06-01 | L20: Pfingstmontag | M20: Whit Monday
C21: 2020-04-16
C22: 2020-04-17
C23: 2020-04-18
C24: 2020-04-19
C25: 2020-04-20
C26: 2020-04-21
C27: 2020-04-22
C28: 2020-04-23
C29: 2020-04-24
C30: 2020-04-25
C31: 2020-04-26
C32: 2020-04-27
C33: 2020-04-28
C34: 2020-04-29
C35: 2020-04-30
A36: 0 | C36: 2020-05-01 | D36: Tag der Arbeit | E36: Labour Day
C37: 2020-05-02
C38: 2020-05-03
C39: =C38+1 -> 2020-05-04
C40: 2020-05-05
C41: 2020-05-06
C42: 2020-05-07
C43: 2020-05-08
C44: 2020-05-09
C45: 2020-05-10
C46: 2020-05-11
C47: 2020-05-12
C48: 2020-05-13
C49: 2020-05-14
C50: 2020-05-15
C51: 2020-05-16
C52: 2020-05-17
C53: 2020-05-18
C54: 2020-05-19
C55: 2020-05-20
C56: 2020-05-21
C57: =C56+1 -> 2020-05-22
C58: 2020-05-23
C59: 2020-05-24
C60: 2020-05-25
C61: 2020-05-26
C62: 2020-05-27
C63: 2020-05-28
C64: 2020-05-29
C65: 2020-05-30
C66: 2020-05-31 | D66: Pfingstsonntag | E66: Whit Sunday
C67: 2020-06-01 | D67: Pfingstmontag | E67: Whit Monday
C68: 2020-06-02
C69: 2020-06-03

Sheet 17 Wert in Liste_ (hidden)
B1: 2 | C1: 2 | D1: 2 | E1: 1 | F1: 1 | G1: 1 | H1: 0
A2: 1 | B2: 17 Value in list_ | F2: =B2 -> 17 Value in list_
A3: 2 | B3: 17 Wert in Liste_
A4: 0
B5: 1 | C5: Hier kommt nochmal eine ganz andere Anwendung des SVERWEISes. Manchmal (z.B. für eine Inventur) möchte man wissen, ob ein Wert aus einer Liste in einer anderen Liste auch vorhanden ist. Sehen Sie sich dazu bitte das Beispiel an: Wir haben hier eine Liste mit Feiertagen und möchten dann in einer anderen Liste wissen, ob ein bestimmter Tag ein Feiertag ist. | E5: 1 | F5: Here is a completely different application of the VLOOKUP. Sometimes (e.g. for an inventory) you want to know if a value from one list is also existing in another list. Please have a look at the example: We have a list of holidays here and then want to know in another list whether a certain day is a holiday.
B6: =IF(C6<>"",B5+1,"") -> 2 | C6: Der Trick dabei besteht in der Verwendung der Formel WENNFEHLER. Das erste Argument dieser Formel ist wieder eine Formel - in diesem Beispiel ein SVERWEIS. Wird diese Formel (also der SVERWEIS) erfolgreich ausgeführt, so ist hat man damit das Ergebnis - wenn nicht, kann man als zweites Argument eine Alternative angeben. In diesem Beispiel fordern wir also: Wenn der SVERWEIS nicht erfolgreich ausgeführt werden kann (wenn der Wert aus der linken Liste also NICHT in der rechten Liste gefunden wird), soll die Ergebniszelle leer bleiben. In Spalte D tauchen dann also diejenigen Werte auf, die auch in Spalte L gefunden wurden. Voila! | E6: =IF(F6<>"",E5+1,"") -> 2 | F6: The trick is to use the formula IFERROR. The first argument of this formula is again a formula - in this example a VLOOKUP. If this formula (i.e. the VLOOKUP) is executed successfully, you have the result - if not, you can specify an alternative as the second argument. In this example, we therefore require: If the VLOOKUP cannot be executed successfully (if the value from the left-hand list is NOT found in the right-hand list), the result cell should remain empty. Then, in column D those values appear, which were also found in column L. Voila!
B7: =IF(C7<>"",B6+1,"") ->  | E7: =IF(F7<>"",E6+1,"") -> 

Sheet 18 Wert nicht in Liste
L1: 2 | M1: 1 | N1: 0
A2: 1 | B2: 18 Value not in list | F2: Back to Start
A3: 2 | B3: 18 Wert nicht in Liste | F3: Startseite
A5: 2 | C5: Ist ein bestimmter Tag KEIN Feiertag? d.h.: "Befindet sich der Wert aus Spalte C NICHT in Spalte K?"
A6: 2
A7: 2
A8: 1 | C8: Is a certain day NOT a holiday? i.e.: "Is the value from column C NOT in column K?"
A9: 1
A10: 1
A12: 1 | K12: Holidays
A13: 2 | K13: Feiertage
C15: 2020-04-10 | D15: =IF(ISERROR(VLOOKUP(C15,$K$15:$M$20,2,FALSE)),"Kein Feiertag!","") ->  | E15: =IF(ISERROR(VLOOKUP(C15,$K$15:$M$20,2,FALSE)),"No holiday!","") ->  | K15: 2020-04-10 | L15: Karfreitag | M15: Good Friday
C16: =C15+1 -> 2020-04-11 | D16: =IF(ISERROR(VLOOKUP(C16,$K$15:$M$20,2,FALSE)),"Kein Feiertag!","") -> Kein Feiertag! | E16: =IF(ISERROR(VLOOKUP(C16,$K$15:$M$20,2,FALSE)),"No holiday!","") -> No holiday! | K16: =K15+2 -> 2020-04-12 | L16: Ostersonntag | M16: Easter Sunday
C17: =C16+1 -> 2020-04-12 | K17: =K16+1 -> 2020-04-13 | L17: Ostermontag | M17: Easter Monday
C18: 2020-04-13 | K18: 2020-05-01 | L18: Tag der Arbeit | M18: Labour Day
C19: 2020-04-14 | D19: Kein Feiertag! | E19: No holiday! | K19: 2020-05-31 | L19: Pfingstsonntag | M19: Whit Sunday
C20: 2020-04-15 | D20: Kein Feiertag! | E20: No holiday! | K20: =K19+1 -> 2020-06-01 | L20: Pfingstmontag | M20: Whit Monday
C21: 2020-04-16 | D21: Kein Feiertag! | E21: No holiday!
C22: 2020-04-17 | D22: Kein Feiertag! | E22: No holiday!
C23: 2020-04-18 | D23: Kein Feiertag! | E23: No holiday!
C24: 2020-04-19 | D24: Kein Feiertag! | E24: No holiday!
C25: 2020-04-20 | D25: Kein Feiertag! | E25: No holiday!
C26: 2020-04-21 | D26: Kein Feiertag! | E26: No holiday!
C27: 2020-04-22 | D27: Kein Feiertag! | E27: No holiday!
C28: 2020-04-23 | D28: Kein Feiertag! | E28: No holiday!
C29: 2020-04-24 | D29: Kein Feiertag! | E29: No holiday!
C30: 2020-04-25 | D30: Kein Feiertag! | E30: No holiday!
C31: 2020-04-26 | D31: Kein Feiertag! | E31: No holiday!
C32: 2020-04-27 | D32: Kein Feiertag! | E32: No holiday!
C33: 2020-04-28 | D33: Kein Feiertag! | E33: No holiday!
C34: 2020-04-29 | D34: Kein Feiertag! | E34: No holiday!
C35: 2020-04-30 | D35: Kein Feiertag! | E35: No holiday!
A36: 0 | C36: 2020-05-01
C37: 2020-05-02 | D37: Kein Feiertag! | E37: No holiday!
C38: 2020-05-03 | D38: Kein Feiertag! | E38: No holiday!
C39: =C38+1 -> 2020-05-04 | D39: Kein Feiertag! | E39: No holiday!
C40: 2020-05-05 | D40: Kein Feiertag! | E40: No holiday!
C41: 2020-05-06 | D41: Kein Feiertag! | E41: No holiday!
C42: 2020-05-07 | D42: Kein Feiertag! | E42: No holiday!
C43: 2020-05-08 | D43: Kein Feiertag! | E43: No holiday!
C44: 2020-05-09 | D44: Kein Feiertag! | E44: No holiday!
C45: 2020-05-10 | D45: Kein Feiertag! | E45: No holiday!
C46: 2020-05-11 | D46: Kein Feiertag! | E46: No holiday!
C47: 2020-05-12 | D47: Kein Feiertag! | E47: No holiday!
C48: 2020-05-13 | D48: Kein Feiertag! | E48: No holiday!
C49: 2020-05-14 | D49: Kein Feiertag! | E49: No holiday!
C50: 2020-05-15 | D50: Kein Feiertag! | E50: No holiday!
C51: 2020-05-16 | D51: Kein Feiertag! | E51: No holiday!
C52: 2020-05-17 | D52: Kein Feiertag! | E52: No holiday!
C53: 2020-05-18 | D53: Kein Feiertag! | E53: No holiday!
C54: 2020-05-19 | D54: Kein Feiertag! | E54: No holiday!
C55: 2020-05-20 | D55: Kein Feiertag! | E55: No holiday!
C56: 2020-05-21 | D56: Kein Feiertag! | E56: No holiday!
C57: =C56+1 -> 2020-05-22 | D57: Kein Feiertag! | E57: No holiday!
C58: 2020-05-23 | D58: Kein Feiertag! | E58: No holiday!
C59: 2020-05-24 | D59: Kein Feiertag! | E59: No holiday!
C60: 2020-05-25 | D60: Kein Feiertag! | E60: No holiday!
C61: 2020-05-26 | D61: Kein Feiertag! | E61: No holiday!
C62: 2020-05-27 | D62: Kein Feiertag! | E62: No holiday!
C63: 2020-05-28 | D63: Kein Feiertag! | E63: No holiday!
C64: 2020-05-29 | D64: Kein Feiertag! | E64: No holiday!
C65: 2020-05-30 | D65: Kein Feiertag! | E65: No holiday!
C66: 2020-05-31
C67: 2020-06-01
C68: 2020-06-02 | D68: Kein Feiertag! | E68: No holiday!
C69: 2020-06-03 | D69: Kein Feiertag! | E69: No holiday!

Sheet 18 Wert nicht in Liste_ (hidden)
B1: 2 | C1: 2 | D1: 2 | E1: 1 | F1: 1 | G1: 1 | H1: 0
A2: 1 | B2: 18 Value not in list_ | F2: =B2 -> 18 Value not in list_
A3: 2 | B3: 18 Wert nicht in Liste_
A4: 0
B5: 1 | C5: Jetzt lösen wir die umgekehrte Aufgabe zu "Wert in Liste" - nämlich "Wert nicht in Liste". Dazu gehen wir wieder von denselben beiden Listen aus - links alle Tage eines Zeitraums, rechts einige Feiertage. Wir wollen jetzt links alle Tage markieren, die KEINE Feiertage sind, die also NICHT in der rechten Liste auftauchen. | E5: 1 | F5: Now we solve the reverse task to "Value in list" - namely "Value not in list". Again, we start from the same two lists - on the left all days of a period, on the right some holidays. Now we want to mark all days on the left that are NOT holidays, i.e. that do NOT appear in the right list.
B6: =IF(C6<>"",B5+1,"") -> 2 | C6: Dafür benutzen wir die Konstruktion WENN(ISTFEHLER(…) ). Die Formel ISTFEHLER hat als Argument wieder eine Formel. Wenn diese als Ergebnis einen Fehler liefert, liefert ISTFEHLER den Wert WAHR, sonst FALSCH. Das kann man dann wiederum mit WENN auswerten und entsprechend reagieren. Im vorliegenden Beispiel wird also "Kein Feiertag!" in die Ergebniszelle geschrieben, wenn der SVERWEIS einen Fehler liefert - wenn also der Wert aus Spalte C NICHT in Spalte K gefunden wurde. Ansonsten bleibt die Ergebniszelle leer. | E6: =IF(F6<>"",E5+1,"") -> 2 | F6: For this we use the construction IF(ISERROR(...) ). The formula ISERROR again has a formula as an argument. If the formula returns an error as a result, ISERROR returns the value TRUE, otherwise FALSE. You can then evaluate this again with IF and react accordingly. In this example, "No holiday" is written to the result cell if the VLOOKUP returns an error - i.e. if the value from column C was NOT found in column K. Otherwise the result cell remains empty.
B7: =IF(C7<>"",B6+1,"") ->  | E7: =IF(F7<>"",E6+1,"") -> 

Sheet 19 Containerlisten (A)
L1: 0
A2: 1 | B2: 19 Container lists (E) | F2: Back to Start
A3: 2 | B3: 19 Containerlisten (A) | F3: Startseite
A5: 2 | C5: Sehr geehrter Herr Prof. Stern, ich befinde mich momentan im Praxissemester im Bereich des Customer Order Managements bei ... und habe die Aufgabe bekommen, die sich im selben Depot befindenden Container zu vergleichen. Dazu habe ich zwei große Excel Dateien bekommen, eine mit allen Nummern der Container, die sich in einem bestimmten Depot X befinden und eine Datei mit Containern die sich laut B/L tatsächlich in dem bestimmten Depot X befinden dürfen, da oft Container im falschen Depot angeliefert werden. Meine Aufgabe ist es nun, die Container, die laut B/L im falschen Depot gelandet sind, herauszufiltern und aufzuzeigen.
A6: 2
A7: 2
A8: 2
A9: 2
A10: 2
A11: 2
A12: 2
A13: 2
A14: 2
A15: 2
A16: 2
A17: 2
A18: 1 | C18: Dear Prof. Stern, I am currently in my practical semester in the area of Customer Order Management at . . . and got the task to compare the containers in the same depot. I got two big Excel files, one with all numbers of the containers, which are in a certain depot X and a file with containers, which according to B/L are allowed to be in the certain depot X, because often containers are delivered in the wrong depot. My task now is to filter out and display the containers which, according to B/L, were delivered to the wrong depot.
A19: 1
A20: 1
A21: 1
A22: 1
A23: 1
A24: 1
A25: 1
A26: 1
A27: 1
A28: 1
A30: 1 | I30: nr. | K30: should be | L30: should-be-IN-is | M30: should-be-NOT-IN-is | O30: is | P30: is-IN-should-be | Q30: is-NOT-IN-should-be
A31: 2 | I31: lfd. Nr. | K31: Soll | L31: Soll-IN-Ist | M31: Soll-NICHT-IN-Ist | O31: Ist | P31: Ist-IN-Soll | Q31: Ist-NICHT-IN-Soll
I32: 1 | K32: AAGL3468480 | O32: AAON4796427
I33: 2 | K33: AAON4796427 | O33: AAPV2473902
I34: 3 | K34: ABEM9913717 | O34: ABEM9913717
A35: 0 | I35: 4 | K35: ADAF3086286 | O35: ACMA8539466
I36: 5 | K36: ADHQ4657848 | O36: ADAF3086286
I37: 6 | K37: AECB8921848 | O37: ADGF5583764
I38: 7 | K38: AERJ3543740 | O38: ADHQ4657848
I39: 8 | K39: AFBI6509514 | O39: ADIK6715729
I40: 9 | K40: AFPV8020951 | O40: AECB8921848
I41: 10 | K41: AHBZ3857900 | O41: AERJ3543740
I42: 11 | K42: AIBF3411259 | O42: AFBI6509514
I43: 12 | K43: AIFN5823376 | O43: AFPV8020951
I44: 13 | K44: AIQG4043854 | O44: AHBZ3857900
I45: 14 | K45: AJCS7471893 | O45: AHIF1905068
I46: 15 | K46: AJEY8464502 | O46: AIQG4043854
I47: 16 | K47: AKIZ7728615 | O47: AJEY8464502
I48: 17 | K48: AKMG6727897 | O48: AKIZ7728615
I49: 18 | K49: AKRO7759177 | O49: AKMG6727897
I50: 19 | K50: AKVS9989768 | O50: AKRO7759177
I51: 20 | K51: ALDU3559198 | O51: AKVS9989768
I52: 21 | K52: ALHR1574575 | O52: ALAT8099538
I53: 22 | K53: ALPL4283872 | O53: ALDU3559198
I54: 23 | K54: ALXM7618346 | O54: ALHR1574575
I55: 24 | K55: AMJO5626498 | O55: ALPL4283872
I56: 25 | K56: APKE5601144 | O56: ALXM7618346
I57: 26 | K57: AQAK9147514 | O57: AMJO5626498
I58: 27 | K58: AQMJ7595349 | O58: AOLM1315106
I59: 28 | K59: ARMJ7968798 | O59: APKE5601144
I60: 29 | K60: ASMH7923552 | O60: AQAK9147514
I61: 30 | K61: ATGM7527329 | O61: AQMJ7595349
I62: 31 | K62: ATIW6266470 | O62: ARKS5092763
I63: 32 | K63: ATYX5551995 | O63: AROU5041740
I64: 33 | K64: AUFV5796926 | O64: ATRP6772300
I65: 34 | K65: AUSC4724451 | O65: AUEE3043551
I66: 35 | K66: AVAG1582954 | O66: AVAG1582954
I67: 36 | K67: AVFA6278608 | O67: AVBO3221988
I68: 37 | K68: AWDV7180581 | O68: AWDV7180581
I69: 38 | K69: AWFE5297872 | O69: AWFE5297872
I70: 39 | K70: AYMV1524101 | O70: AYUQ1318173
I71: 40 | K71: AYUQ1318173 | O71: AZAQ7140066
I72: 41 | K72: AZAQ7140066 | O72: AZOY3689351
I73: 42 | K73: AZIX3735263 | O73: BAJI8636166
I74: 43 | K74: BAMG8508997 | O74: BAMG8508997
I75: 44 | K75: BAYK6747518 | O75: BBAM9507963
I76: 45 | K76: BBED2202157 | O76: BBED2202157
I77: 46 | K77: BBYU9886359 | O77: BBFV6729661
I78: 47 | K78: BCQN2308941 | O78: BCDI3327263
I79: 48 | K79: BCZQ4535008 | O79: BCQN2308941
I80: 49 | K80: BDAQ9217017 | O80: BCZQ4535008
I81: 50 | K81: BDIQ7756374 | O81: BEHJ9971711
I82: 51 | K82: BDRA6540004 | O82: BFXN6431977
I83: 52 | K83: BEEB7835712 | O83: BGED8966532
I84: 53 | K84: BFBS2791471 | O84: BGGN9021587
I85: 54 | K85: BFXN6431977 | O85: BGTQ7706886
I86: 55 | K86: BGED8966532 | O86: BGVW3385518
I87: 56 | K87: BGGN9021587 | O87: BGZL3518850
I88: 57 | K88: BGVW3385518 | O88: BIAW8801787
I89: 58 | K89: BGZL3518850 | O89: BIXP7260437
I90: 59 | K90: BIAW8801787 | O90: BJHZ8301553
I91: 60 | K91: BJHZ8301553 | O91: BJYM8169989
I92: 61 | K92: BLBW2070040 | O92: BLBW2070040
I93: 62 | K93: BLDR4857690 | O93: BLJH8537883
I94: 63 | K94: BLJA5108045 | O94: BLMX4395590
I95: 64 | K95: BLJH8537883 | O95: BLSW3154408
I96: 65 | K96: BLMX4395590 | O96: BLTD7553076
I97: 66 | K97: BLSW3154408 | O97: BLUI6385415
I98: 67 | K98: BLTD7553076 | O98: BNDW6027659
I99: 68 | K99: BLUI6385415 | O99: BNGK3456799
I100: 69 | K100: BMLN7453284 | O100: BNPX1441833
I101: 70 | K101: BNBX4750087 | O101: BOWN1814687
I102: 71 | K102: BNDW6027659 | O102: BPDT2222933
I103: 72 | K103: BNGY2167197 | O103: BPSV3748662
I104: 73 | K104: BNPX1441833 | O104: BRXO8881733
I105: 74 | K105: BOFS9068341 | O105: BSAJ7343382
I106: 75 | K106: BPBN9096088 | O106: BSOG6986815
I107: 76 | K107: BPDT2222933 | O107: BSWJ2047541
I108: 77 | K108: BPHC4509081 | O108: BTRV3024597
I109: 78 | K109: BPSV3748662 | O109: BUPG7221952
I110: 79 | K110: BPZK2251567 | O110: BVBI3404136
I111: 80 | K111: BRXO8881733 | O111: BVHM7376942
I112: 81 | K112: BSAJ7343382 | O112: BWOG2806472
I113: 82 | K113: BSFK9051749 | O113: BXIO7296449
I114: 83 | K114: BSIG9660099 | O114: BXNX6340796
I115: 84 | K115: BSWJ2047541 | O115: BXQS9637665
I116: 85 | K116: BTRV3024597 | O116: BYYH5819569
I117: 86 | K117: BUPG7221952 | O117: BZBJ9187287
I118: 87 | K118: BVBI3404136 | O118: BZCX5634217
I119: 88 | K119: BVTV4937062 | O119: CDSF7394163
I120: 89 | K120: BWMW1594164 | O120: CESB6671121
I121: 90 | K121: BXIO7296449 | O121: CGHM1565848
I122: 91 | K122: BXNX6340796 | O122: CIRZ2640757
I123: 92 | K123: BXQS9637665 | O123: CKQS5474430
I124: 93 | K124: BYYH5819569 | O124: CKSG4720785
I125: 94 | K125: BZBJ9187287 | O125: CMIC1777404
I126: 95 | K126: CDJP4840351 | O126: CMRH8391556
I127: 96 | K127: CDMN6374218 | O127: COAN4048265
I128: 97 | K128: CDSF7394163 | O128: COYK8001924
I129: 98 | K129: CEJX3287496 | O129: CPFL8374346
I130: 99 | K130: CESB6671121 | O130: CQFL4463987
I131: 100 | K131: CGFG9551530 | O131: CQQC6171803
I132: 101 | K132: CGFN6932273 | O132: CREC5019274
I133: 102 | K133: CGHM1565848 | O133: CRKG4230621
I134: 103 | K134: CHDJ3076179 | O134: CSJQ4346477
I135: 104 | K135: CIGJ9434761 | O135: CUIW5065150
I136: 105 | K136: CIRZ2640757 | O136: CUMJ7563745
I137: 106 | K137: CKQS5474430 | O137: CUWR1778465
I138: 107 | K138: CKSG4720785 | O138: CWLR1369227
I139: 108 | K139: CMIC1777404 | O139: CWOE1460468
I140: 109 | K140: COAN4048265 | O140: CWZU9109610
I141: 110 | K141: COBS1191491 | O141: CXNP8230243
I142: 111 | K142: CPFL8374346 | O142: CZBU3909814
I143: 112 | K143: CPLK3029544 | O143: DDKK6623295
I144: 113 | K144: CQQC6171803 | O144: DDYZ6991605
I145: 114 | K145: CQWW7967365 | O145: DDZR9192474
I146: 115 | K146: CREC5019274 | O146: DEOV7725281
I147: 116 | K147: CRKG4230621 | O147: DEXI7157404
I148: 117 | K148: CTJP5863734 | O148: DFED2542285
I149: 118 | K149: CTLD2782420 | O149: DIGO8780969
I150: 119 | K150: CUIW5065150 | O150: DJGT7321368
I151: 120 | K151: CUWR1778465 | O151: DJQJ6174640
I152: 121 | K152: CWFZ7765337 | O152: DKFH6942280
I153: 122 | K153: CWLR1369227 | O153: DLED7859342
I154: 123 | K154: CWOE1460468 | O154: DLHR4308016
I155: 124 | K155: CWPN8382125 | O155: DLPY8058652
I156: 125 | K156: CWZU9109610 | O156: DLTK5317954
I157: 126 | K157: CXNP8230243 | O157: DMDO5852450
I158: 127 | K158: CXSN9575065 | O158: DMPE5918158
I159: 128 | K159: CZBU3909814 | O159: DMTX4605486
I160: 129 | K160: DAGF5349315 | O160: DNAV8302127
I161: 130 | K161: DBLT5093723 | O161: DNBV2987443
I162: 131 | K162: DCIR9041866 | O162: DNYJ4603022
I163: 132 | K163: DDKK6623295 | O163: DNZO2996349
I164: 133 | K164: DDYZ6991605 | O164: DOFE2815995
I165: 134 | K165: DDZR9192474 | O165: DOGH6141878
I166: 135 | K166: DEAW8975789 | O166: DOXN8844141
I167: 136 | K167: DECG7271039 | O167: DPAA3489266
I168: 137 | K168: DEGK1650785 | O168: DRDF9694648
I169: 138 | K169: DEOV7725281 | O169: DRSJ9347745
I170: 139 | K170: DEXI7157404 | O170: DSMO2376696
I171: 140 | K171: DFED2542285 | O171: DTAX4728293
I172: 141 | K172: DFNM6856759 | O172: DTPN4424998
I173: 142 | K173: DIGO8780969 | O173: DTRA3724683
I174: 143 | K174: DIWS2299588 | O174: DTXM8113337
I175: 144 | K175: DJGT7321368 | O175: DUDT3213342
I176: 145 | K176: DJQJ6174640 | O176: DVAJ6674188
I177: 146 | K177: DKFH6942280 | O177: DVHS7075373
I178: 147 | K178: DLED7859342 | O178: DVYV7231327
I179: 148 | K179: DLHR4308016 | O179: DXPG5181294
I180: 149 | K180: DLML8685388 | O180: DYJV1505127
I181: 150 | K181: DLPY8058652 | O181: DYRX7445580
I182: 151 | K182: DLTK5317954 | O182: DYVL6913643
I183: 152 | K183: DMDO5852450 | O183: DYWZ8549182
I184: 153 | K184: DMPE5918158 | O184: EBJR5517798
I185: 154 | K185: DMTX4605486 | O185: ECHO5387999
I186: 155 | K186: DNAV8302127 | O186: EDWP6410791
I187: 156 | K187: DNZO2996349 | O187: EEAP7086828
I188: 157 | K188: DODH6275362 | O188: EEDB7957493
I189: 158 | K189: DOFE2815995 | O189: EEKE3520431
I190: 159 | K190: DONH4784639 | O190: EEMT8384118
I191: 160 | K191: DOZI4379644 | O191: EEWG9311170
I192: 161 | K192: DPAA3489266 | O192: EFMU2870906
I193: 162 | K193: DPDE4614858 | O193: EFPY2458921
I194: 163 | K194: DRDF9694648 | O194: EGLY7124116
I195: 164 | K195: DSMO2376696 | O195: EHAG1541056
I196: 165 | K196: DTAX4728293 | O196: EHCH5596477
I197: 166 | K197: DUDT3213342 | O197: EHKE6652576
I198: 167 | K198: DVAJ6674188 | O198: EHKP9542740
I199: 168 | K199: DVAV3310522 | O199: EIJX2847262
I200: 169 | K200: DVHS7075373 | O200: EINV5394352
I201: 170 | K201: DVHU5484518 | O201: EJKN9458257
I202: 171 | K202: DVYV7231327 | O202: EJTE6001112
... 829 more rows

Sheet 19 Containerlisten (A)_ (hidden)
B1: 2 | C1: 2 | D1: 2 | E1: 1 | F1: 1 | G1: 1 | H1: 0
A2: 1 | B2: 19 Container lists (E)_ | F2: =B2 -> 19 Container lists (E)_
A3: 2 | B3: 19 Containerlisten (A)_
A4: 0
B5: 1 | C5: In Vorbereitung auf diese Aufgabe sollten Sie sich "Wert in Liste" und "Wert nicht in Liste" angesehen haben. Dann stoppen Sie bitte das Video und lesen Sie sich erst einmal die Mail mit dem Hilferuf eines Studenten durch. Jetzt benutzen Sie bitte das Wissen aus "Wert in Liste" und "Wert nicht in Liste", um die Spalten der Tabelle zu füllen. Ein Screenshot der Lösung befindet sich rechts daneben. | E5: 1 | F5: In preparation for this task, you should have looked at "Value in list" and "Value not in list". Then please stop the video and first read the mail with the call for help from a student. Now please use the knowledge from "Value in list" and "Value not in list" to fill the columns of the table. A screenshot of the solution can be found to the right.
B6: =IF(C6<>"",B5+1,"") ->  | E6: =IF(F6<>"",E5+1,"") -> 
B7: =IF(C7<>"",B6+1,"") ->  | E7: =IF(F7<>"",E6+1,"") -> 

Sheet 20 Intervallsuche
L1: 0
A2: 1 | B2: 20 Intervall search | F2: Back to Start
A3: 2 | B3: 20 Intervallsuche | F3: Startseite
O4: (falsch!)
C5: Datum | D5: PLZ | E5: Gewicht | I5: AUFGABE: Finden Sie das Intervall mit den meisten Werten! | L5: Gewicht | M5: lfd. Nr. | N5: Intervallbeginn | O5: lfd. Nr. Beginn | Q5: Gewicht | R5: Wdh.? | S5: Gewicht2 | T5: lfd. Nr. | V5: Maximum? | W5: Anzahl im Intervall | Y5: Intervallbeginn | Z5: Intervallende | AA5: lfd. Nr. Beginn | AB5: lfd. Nr. Ende
C6: 2007-05-01 | D6: 9715 | E6: 28 | I6: Länge des Intervalls: | J6: 30 | L6: 1 | M6: 1 | N6: 1 | O6: =VLOOKUP(N6,$L$6:$M$1340,2,TRUE) -> 7 | Q6: 1 | R6: 0 | S6: =Q6+R6*0.01 -> 1 | T6: 1 | V6: =IF(W6=MAX($W$6:$W$1340),1,0) -> 0 | W6: =AB6-AA6+1 -> 202 | Y6: 1 | Z6: =Y6+$J$6 -> 31 | AA6: =VLOOKUP(Y6,$S$6:$T$1340,2,TRUE) -> 1 | AB6: =VLOOKUP(Z6,$Q$6:$T$1340,4,TRUE) -> 202
C7: 2007-05-01 | D7: 10960 | E7: 28 | L7: 1 | M7: 2 | N7: 2 | O7: =VLOOKUP(N7,$L$6:$M$1340,2,TRUE) -> 14 | Q7: 1 | R7: =IF(Q7=Q6,1,0) -> 1 | S7: =Q7+R7*0.01 -> 1.01 | T7: 2 | V7: 0 | W7: =AB7-AA7+1 -> 200 | Y7: 2 | Z7: =Y7+$J$6 -> 32 | AA7: =VLOOKUP(Y7,$S$6:$T$1340,2,TRUE) -> 8 | AB7: =VLOOKUP(Z7,$Q$6:$T$1340,4,TRUE) -> 207
C8: 2007-05-01 | D8: 13399 | E8: 13 | G8: Idee: | L8: 1 | M8: 3 | N8: 3 | O8: 24 | Q8: 1 | R8: =IF(Q8=Q7,1,0) -> 1 | S8: 1.01 | T8: 3 | V8: 0 | W8: 197 | Y8: 3 | Z8: 33 | AA8: 15 | AB8: 211
C9: 2007-05-01 | D9: 16393 | E9: 10 | G9: aufsteigende Sortierung der Daten (Spalte L) | L9: 1 | M9: 4 | N9: 4 | O9: 34 | Q9: 1 | R9: 1 | S9: 1.01 | T9: 4 | V9: 0 | W9: 202 | Y9: 4 | Z9: 34 | AA9: 25 | AB9: 226
C10: 2007-05-01 | D10: 21682 | E10: 28 | G10: lfd. Nr. rechts daneben (Spalte M) | L10: 1 | M10: 5 | N10: 5 | O10: 42 | Q10: 1 | R10: 1 | S10: 1.01 | T10: 5 | V10: 0 | W10: 199 | Y10: 5 | Z10: 35 | AA10: 35 | AB10: 233
C11: 2007-05-01 | D11: 24116 | E11: 41 | G11: Intervallbeginn rechts daneben (Spalte N) | L11: 1 | M11: 6 | N11: 6 | O11: 48 | Q11: 1 | R11: 1 | S11: 1.01 | T11: 6 | V11: 0 | W11: 198 | Y11: 6 | Z11: 36 | AA11: 43 | AB11: 240
C12: 2007-05-01 | D12: 24121 | E12: 19 | G12: mit SVERWEIS lfd. Nr. des Intervallbeginns suchen (Spalte O) | L12: 1 | M12: 7 | N12: 7 | O12: 55 | Q12: 1 | R12: 1 | S12: 1.01 | T12: 7 | V12: 0 | W12: 194 | Y12: 7 | Z12: 37 | AA12: 49 | AB12: 242
C13: 2007-05-01 | D13: 32412 | E13: 9 | L13: 2 | M13: 8 | N13: 8 | O13: 61 | Q13: 2 | R13: 0 | S13: 2 | T13: 8 | V13: 0 | W13: 194 | Y13: 8 | Z13: 38 | AA13: 56 | AB13: 249
C14: 2007-05-01 | D14: 32331 | E14: 31 | G14: dann könnte man ebenfalls mit SVERWEIS lfd. Nr. des Intervallendes suchen | L14: 2 | M14: 9 | N14: 9 | O14: 69 | Q14: 2 | R14: 1 | S14: 2.01 | T14: 9 | V14: 0 | W14: 195 | Y14: 9 | Z14: 39 | AA14: 62 | AB14: 256
C15: 2007-05-01 | D15: 43959 | E15: 40 | G15: Differenz dazwischen ist gleich der Anzahl der Werte im Intervall | L15: 2 | M15: 10 | N15: 10 | O15: 77 | Q15: 2 | R15: 1 | S15: 2.01 | T15: 10 | V15: 0 | W15: 194 | Y15: 10 | Z15: 40 | AA15: 70 | AB15: 263
C16: 2007-05-01 | D16: 58335 | E16: 6 | L16: 2 | M16: 11 | N16: 11 | O16: 83 | Q16: 2 | R16: 1 | S16: 2.01 | T16: 11 | V16: 0 | W16: 192 | Y16: 11 | Z16: 41 | AA16: 78 | AB16: 269
C17: 2007-05-01 | D17: 55568 | E17: 3 | G17: ABER - Problem : | L17: 2 | M17: 12 | N17: 12 | O17: 90 | Q17: 2 | R17: 1 | S17: 2.01 | T17: 12 | V17: 0 | W17: 196 | Y17: 12 | Z17: 42 | AA17: 84 | AB17: 279
C18: 2007-05-01 | D18: 74572 | E18: 8 | G18: Der SVERWEIS findet bei mehreren gleichen Werten | L18: 2 | M18: 13 | N18: 13 | O18: 94 | Q18: 2 | R18: 1 | S18: 2.01 | T18: 13 | V18: 0 | W18: 196 | Y18: 13 | Z18: 43 | AA18: 91 | AB18: 286
C19: 2007-05-01 | D19: 83703 | E19: 29 | G19: in der Liste jeweils den letzten! | L19: 2 | M19: 14 | N19: 14 | O19: 98 | Q19: 2 | R19: 1 | S19: 2.01 | T19: 14 | V19: 0 | W19: 195 | Y19: 14 | Z19: 44 | AA19: 95 | AB19: 289
C20: 2007-05-01 | D20: 1068 | E20: 56 | L20: 3 | M20: 15 | N20: 15 | O20: 104 | Q20: 3 | R20: 0 | S20: 3 | T20: 15 | V20: 0 | W20: 200 | Y20: 15 | Z20: 45 | AA20: 99 | AB20: 298
C21: 2007-05-01 | D21: 11897 | E21: 53 | G21: Lösung: | L21: 3 | M21: 16 | N21: 16 | O21: 107 | Q21: 3 | R21: 1 | S21: 3.01 | T21: 16 | V21: 0 | W21: 197 | Y21: 16 | Z21: 46 | AA21: 105 | AB21: 301
C22: 2007-05-01 | D22: 16739 | E22: 63 | G22: Wiederholung = 0 bzw. 1 rechts neben die Daten (Spalte R) | L22: 3 | M22: 17 | N22: 17 | O22: 112 | Q22: 3 | R22: 1 | S22: 3.01 | T22: 17 | V22: 0 | W22: 203 | Y22: 17 | Z22: 47 | AA22: 108 | AB22: 310
C23: 2007-05-01 | D23: 20453 | E23: 90 | G23: bei Wiederholung einen kleinen Wert zu den Daten hinzuaddieren (Spalte S) | L23: 3 | M23: 18 | N23: 18 | O23: 119 | Q23: 3 | R23: 1 | S23: 3.01 | T23: 18 | V23: 0 | W23: 206 | Y23: 18 | Z23: 48 | AA23: 113 | AB23: 318
C24: 2007-05-01 | D24: 38855 | E24: 73 | G24: IntervallBEGINN (Spalte Y) in den korrigierten Daten (Spalte S) suchen lassen | L24: 3 | M24: 19 | N24: 19 | O24: 130 | Q24: 3 | R24: 1 | S24: 3.01 | T24: 19 | V24: 0 | W24: 206 | Y24: 19 | Z24: 49 | AA24: 120 | AB24: 325
C25: 2007-05-01 | D25: 47878 | E25: 97 | G25: jetzt findet der SVERWEIS den ersten Wert!! (Spalte AA) | L25: 3 | M25: 20 | N25: 20 | O25: 136 | Q25: 3 | R25: 1 | S25: 3.01 | T25: 20 | V25: 0 | W25: 207 | Y25: 20 | Z25: 50 | AA25: 131 | AB25: 337
C26: 2007-05-01 | D26: 56777 | E26: 79 | G26: IntervallENDE (Spalte AB) in den Originaldaten (Spalte Q) suchen lassen | L26: 3 | M26: 21 | N26: 21 | O26: 140 | Q26: 3 | R26: 1 | S26: 3.01 | T26: 21 | V26: 0 | W26: 212 | Y26: 21 | Z26: 51 | AA26: 137 | AB26: 348
C27: 2007-05-01 | D27: 87024 | E27: 89 | G27: hier wird der letzte Wert gefunden (Spalte AB) | L27: 3 | M27: 22 | N27: 22 | O27: 149 | Q27: 3 | R27: 1 | S27: 3.01 | T27: 22 | V27: 0 | W27: 222 | Y27: 22 | Z27: 52 | AA27: 141 | AB27: 362
C28: 2007-05-01 | D28: 5672 | E28: 190 | L28: 3 | M28: 23 | N28: 23 | O28: 156 | Q28: 3 | R28: 1 | S28: 3.01 | T28: 23 | V28: 0 | W28: 221 | Y28: 23 | Z28: 53 | AA28: 150 | AB28: 370
C29: 2007-05-01 | D29: 1304 | E29: 116 | G29: Anzahl der Werte im Intervall (Spalte W) | L29: 3 | M29: 24 | N29: 24 | O29: 159 | Q29: 3 | R29: 1 | S29: 3.01 | T29: 24 | V29: 0 | W29: 219 | Y29: 24 | Z29: 54 | AA29: 157 | AB29: 375
C30: 2007-05-01 | D30: 4105 | E30: 168 | G30: Maximum finden (Spalte V) | L30: 4 | M30: 25 | N30: 25 | O30: 167 | Q30: 4 | R30: 0 | S30: 4 | T30: 25 | V30: 0 | W30: 223 | Y30: 25 | Z30: 55 | AA30: 160 | AB30: 382
C31: 2007-05-01 | D31: 1880 | E31: 183 | L31: 4 | M31: 26 | N31: 26 | O31: 175 | Q31: 4 | R31: 1 | S31: 4.01 | T31: 26 | V31: 0 | W31: 225 | Y31: 26 | Z31: 56 | AA31: 168 | AB31: 392
C32: 2007-05-01 | D32: 4808 | E32: 200 | G32: Ergebnis: | L32: 4 | M32: 27 | N32: 27 | O32: 183 | Q32: 4 | R32: 1 | S32: 4.01 | T32: 27 | V32: 0 | W32: 226 | Y32: 27 | Z32: 57 | AA32: 176 | AB32: 401
C33: 2007-05-01 | D33: 13411 | E33: 142 | L33: 4 | M33: 28 | N33: 28 | O33: 189 | Q33: 4 | R33: 1 | S33: 4.01 | T33: 28 | V33: 0 | W33: 225 | Y33: 28 | Z33: 58 | AA33: 184 | AB33: 408
C34: 2007-05-01 | D34: 24542 | E34: 147 | G34: Die meisten Werte befinden sich im Intervall zwischen | L34: 4 | M34: 29 | N34: 29 | O34: 195 | Q34: 4 | R34: 1 | S34: 4.01 | T34: 29 | V34: 0 | W34: 222 | Y34: 29 | Z34: 59 | AA34: 190 | AB34: 411
A35: 0 | C35: 2007-05-01 | D35: 44698 | E35: 105 | G35: =VLOOKUP(1,V6:Y1340,4,FALSE) -> 50 | H35: und | I35: =G35+J6 -> 80 | L35: 4 | M35: 30 | N35: 30 | O35: 198 | Q35: 4 | R35: 1 | S35: 4.01 | T35: 30 | V35: 0 | W35: 226 | Y35: 30 | Z35: 60 | AA35: 196 | AB35: 421
C36: 2007-05-01 | D36: 54367 | E36: 111 | L36: 4 | M36: 31 | N36: 31 | O36: 202 | Q36: 4 | R36: 1 | S36: 4.01 | T36: 31 | V36: 0 | W36: 234 | Y36: 31 | Z36: 61 | AA36: 199 | AB36: 432
C37: 2007-05-01 | D37: 58891 | E37: 111 | L37: 4 | M37: 32 | N37: 32 | O37: 207 | Q37: 4 | R37: 1 | S37: 4.01 | T37: 32 | V37: 0 | W37: 236 | Y37: 32 | Z37: 62 | AA37: 203 | AB37: 438
C38: 2007-05-01 | D38: 57890 | E38: 133 | L38: 4 | M38: 33 | N38: 33 | O38: 211 | Q38: 4 | R38: 1 | S38: 4.01 | T38: 33 | V38: 0 | W38: 237 | Y38: 33 | Z38: 63 | AA38: 208 | AB38: 444
C39: 2007-05-01 | D39: 67734 | E39: 159 | L39: 4 | M39: 34 | N39: 34 | O39: 226 | Q39: 4 | R39: 1 | S39: 4.01 | T39: 34 | V39: 0 | W39: 245 | Y39: 34 | Z39: 64 | AA39: 212 | AB39: 456
C40: 2007-05-01 | D40: 60752 | E40: 118 | L40: 5 | M40: 35 | N40: 35 | O40: 233 | Q40: 5 | R40: 0 | S40: 5 | T40: 35 | V40: 0 | W40: 241 | Y40: 35 | Z40: 65 | AA40: 227 | AB40: 467
C41: 2007-05-01 | D41: 83742 | E41: 157 | L41: 5 | M41: 36 | N41: 36 | O41: 240 | Q41: 5 | R41: 1 | S41: 5.01 | T41: 36 | V41: 0 | W41: 250 | Y41: 36 | Z41: 66 | AA41: 234 | AB41: 483
C42: 2007-05-01 | D42: 7413 | E42: 211 | L42: 5 | M42: 37 | N42: 37 | O42: 242 | Q42: 5 | R42: 1 | S42: 5.01 | T42: 37 | V42: 0 | W42: 250 | Y42: 37 | Z42: 67 | AA42: 241 | AB42: 490
C43: 2007-05-01 | D43: 8713 | E43: 421 | L43: 5 | M43: 38 | N43: 38 | O43: 249 | Q43: 5 | R43: 1 | S43: 5.01 | T43: 38 | V43: 0 | W43: 253 | Y43: 38 | Z43: 68 | AA43: 243 | AB43: 495
C44: 2007-05-01 | D44: 2114 | E44: 482 | L44: 5 | M44: 39 | N44: 39 | O44: 256 | Q44: 5 | R44: 1 | S44: 5.01 | T44: 39 | V44: 0 | W44: 251 | Y44: 39 | Z44: 69 | AA44: 250 | AB44: 500
C45: 2007-05-01 | D45: 15821 | E45: 419 | L45: 5 | M45: 40 | N45: 40 | O45: 263 | Q45: 5 | R45: 1 | S45: 5.01 | T45: 40 | V45: 0 | W45: 254 | Y45: 40 | Z45: 70 | AA45: 257 | AB45: 510
C46: 2007-05-01 | D46: 12611 | E46: 259 | L46: 5 | M46: 41 | N46: 41 | O46: 269 | Q46: 5 | R46: 1 | S46: 5.01 | T46: 41 | V46: 0 | W46: 255 | Y46: 41 | Z46: 71 | AA46: 264 | AB46: 518
C47: 2007-05-01 | D47: 22393 | E47: 427 | L47: 5 | M47: 42 | N47: 42 | O47: 279 | Q47: 5 | R47: 1 | S47: 5.01 | T47: 42 | V47: 0 | W47: 258 | Y47: 42 | Z47: 72 | AA47: 270 | AB47: 527
C48: 2007-05-01 | D48: 20834 | E48: 290 | L48: 6 | M48: 43 | N48: 43 | O48: 286 | Q48: 6 | R48: 0 | S48: 6 | T48: 43 | V48: 0 | W48: 256 | Y48: 43 | Z48: 73 | AA48: 280 | AB48: 535
C49: 2007-05-01 | D49: 40181 | E49: 292 | L49: 6 | M49: 44 | N49: 44 | O49: 289 | Q49: 6 | R49: 1 | S49: 6.01 | T49: 44 | V49: 0 | W49: 258 | Y49: 44 | Z49: 74 | AA49: 287 | AB49: 544
C50: 2007-05-01 | D50: 45541 | E50: 478 | L50: 6 | M50: 45 | N50: 45 | O50: 298 | Q50: 6 | R50: 1 | S50: 6.01 | T50: 45 | V50: 0 | W50: 264 | Y50: 45 | Z50: 75 | AA50: 290 | AB50: 553
C51: 2007-05-01 | D51: 61074 | E51: 281 | L51: 6 | M51: 46 | N51: 46 | O51: 301 | Q51: 6 | R51: 1 | S51: 6.01 | T51: 46 | V51: 0 | W51: 264 | Y51: 46 | Z51: 76 | AA51: 299 | AB51: 562
C52: 2007-05-02 | D52: 3372 | E52: 26 | L52: 6 | M52: 47 | N52: 47 | O52: 310 | Q52: 6 | R52: 1 | S52: 6.01 | T52: 47 | V52: 0 | W52: 267 | Y52: 47 | Z52: 77 | AA52: 302 | AB52: 568
C53: 2007-05-02 | D53: 15869 | E53: 40 | L53: 6 | M53: 48 | N53: 48 | O53: 318 | Q53: 6 | R53: 1 | S53: 6.01 | T53: 48 | V53: 0 | W53: 265 | Y53: 48 | Z53: 78 | AA53: 311 | AB53: 575
C54: 2007-05-02 | D54: 22587 | E54: 42 | L54: 7 | M54: 49 | N54: 49 | O54: 325 | Q54: 7 | R54: 0 | S54: 7 | T54: 49 | V54: 0 | W54: 265 | Y54: 49 | Z54: 79 | AA54: 319 | AB54: 583
C55: 2007-05-02 | D55: 34190 | E55: 42 | L55: 7 | M55: 50 | N55: 50 | O55: 337 | Q55: 7 | R55: 1 | S55: 7.01 | T55: 50 | V55: 1 | W55: 274 | Y55: 50 | Z55: 80 | AA55: 326 | AB55: 599
C56: 2007-05-02 | D56: 34374 | E56: 31 | L56: 7 | M56: 51 | N56: 51 | O56: 348 | Q56: 7 | R56: 1 | S56: 7.01 | T56: 51 | V56: 0 | W56: 272 | Y56: 51 | Z56: 81 | AA56: 338 | AB56: 609
C57: 2007-05-02 | D57: 48000 | E57: 4 | L57: 7 | M57: 52 | N57: 52 | O57: 362 | Q57: 7 | R57: 1 | S57: 7.01 | T57: 52 | V57: 0 | W57: 267 | Y57: 52 | Z57: 82 | AA57: 349 | AB57: 615
C58: 2007-05-02 | D58: 59531 | E58: 7 | L58: 7 | M58: 53 | N58: 53 | O58: 370 | Q58: 7 | R58: 1 | S58: 7.01 | T58: 53 | V58: 0 | W58: 268 | Y58: 53 | Z58: 83 | AA58: 363 | AB58: 630
C59: 2007-05-02 | D59: 54969 | E59: 42 | L59: 7 | M59: 54 | N59: 54 | O59: 375 | Q59: 7 | R59: 1 | S59: 7.01 | T59: 54 | V59: 0 | W59: 264 | Y59: 54 | Z59: 84 | AA59: 371 | AB59: 634
C60: 2007-05-02 | D60: 6102 | E60: 92 | L60: 7 | M60: 55 | N60: 55 | O60: 382 | Q60: 7 | R60: 1 | S60: 7.01 | T60: 55 | V60: 0 | W60: 269 | Y60: 55 | Z60: 85 | AA60: 376 | AB60: 644
C61: 2007-05-02 | D61: 2006 | E61: 88 | L61: 8 | M61: 56 | N61: 56 | O61: 392 | Q61: 8 | R61: 0 | S61: 8 | T61: 56 | V61: 0 | W61: 272 | Y61: 56 | Z61: 86 | AA61: 383 | AB61: 654
C62: 2007-05-02 | D62: 11215 | E62: 85 | L62: 8 | M62: 57 | N62: 57 | O62: 401 | Q62: 8 | R62: 1 | S62: 8.01 | T62: 57 | V62: 0 | W62: 269 | Y62: 57 | Z62: 87 | AA62: 393 | AB62: 661
C63: 2007-05-02 | D63: 14828 | E63: 63 | L63: 8 | M63: 58 | N63: 58 | O63: 408 | Q63: 8 | R63: 1 | S63: 8.01 | T63: 58 | V63: 0 | W63: 267 | Y63: 58 | Z63: 88 | AA63: 402 | AB63: 668
C64: 2007-05-02 | D64: 13306 | E64: 52 | L64: 8 | M64: 59 | N64: 59 | O64: 411 | Q64: 8 | R64: 1 | S64: 8.01 | T64: 59 | V64: 0 | W64: 268 | Y64: 59 | Z64: 89 | AA64: 409 | AB64: 676
C65: 2007-05-02 | D65: 11022 | E65: 50 | L65: 8 | M65: 60 | N65: 60 | O65: 421 | Q65: 8 | R65: 1 | S65: 8.01 | T65: 60 | V65: 0 | W65: 273 | Y65: 60 | Z65: 90 | AA65: 412 | AB65: 684
C66: 2007-05-02 | D66: 29565 | E66: 55 | L66: 8 | M66: 61 | N66: 61 | O66: 432 | Q66: 8 | R66: 1 | S66: 8.01 | T66: 61 | V66: 0 | W66: 270 | Y66: 61 | Z66: 91 | AA66: 422 | AB66: 691
C67: 2007-05-02 | D67: 23319 | E67: 89 | L67: 9 | M67: 62 | N67: 62 | O67: 438 | Q67: 9 | R67: 0 | S67: 9 | T67: 62 | V67: 0 | W67: 268 | Y67: 62 | Z67: 92 | AA67: 433 | AB67: 700
C68: 2007-05-02 | D68: 25474 | E68: 66 | L68: 9 | M68: 63 | N68: 63 | O68: 444 | Q68: 9 | R68: 1 | S68: 9.01 | T68: 63 | V68: 0 | W68: 270 | Y68: 63 | Z68: 93 | AA68: 439 | AB68: 708
C69: 2007-05-02 | D69: 22077 | E69: 66 | L69: 9 | M69: 64 | N69: 64 | O69: 456 | Q69: 9 | R69: 1 | S69: 9.01 | T69: 64 | V69: 0 | W69: 271 | Y69: 64 | Z69: 94 | AA69: 445 | AB69: 715
C70: 2007-05-02 | D70: 32793 | E70: 67 | L70: 9 | M70: 65 | N70: 65 | O70: 467 | Q70: 9 | R70: 1 | S70: 9.01 | T70: 65 | V70: =IF(W70=MAX($W$6:$W$1340),1,0) -> 0 | W70: 269 | Y70: 65 | Z70: 95 | AA70: 457 | AB70: 725
C71: 2007-05-02 | D71: 58758 | E71: 73 | L71: 9 | M71: 66 | N71: 66 | O71: =VLOOKUP(N71,$L$6:$M$1340,2,TRUE) -> 483 | Q71: 9 | R71: 1 | S71: =Q71+R71*0.01 -> 9.01 | T71: 66 | V71: 0 | W71: =AB71-AA71+1 -> 265 | Y71: 66 | Z71: =Y71+$J$6 -> 96 | AA71: =VLOOKUP(Y71,$S$6:$T$1340,2,TRUE) -> 468 | AB71: =VLOOKUP(Z71,$Q$6:$T$1340,4,TRUE) -> 732
C72: 2007-05-02 | D72: 78133 | E72: 67 | L72: 9 | M72: 67 | N72: 67 | O72: 490 | Q72: 9 | R72: =IF(Q72=Q71,1,0) -> 1 | S72: 9.01 | T72: 67 | V72: 0 | W72: 253 | Y72: 67 | Z72: 97 | AA72: 484 | AB72: 736
C73: 2007-05-02 | D73: 82382 | E73: 65 | L73: 9 | M73: 68 | N73: 68 | O73: 495 | Q73: 9 | R73: 1 | S73: 9.01 | T73: 68 | V73: 0 | W73: 252 | Y73: 68 | Z73: 98 | AA73: 491 | AB73: 742
C74: 2007-05-02 | D74: 6273 | E74: 151 | L74: 9 | M74: 69 | N74: 69 | O74: 500 | Q74: 9 | R74: 1 | S74: 9.01 | T74: 69 | V74: 0 | W74: 255 | Y74: 69 | Z74: 99 | AA74: 496 | AB74: 750
C75: 2007-05-02 | D75: 806 | E75: 106 | L75: 10 | M75: 70 | N75: 70 | O75: 510 | Q75: 10 | R75: 0 | S75: 10 | T75: 70 | V75: 0 | W75: 261 | Y75: 70 | Z75: 100 | AA75: 501 | AB75: 761
C76: 2007-05-02 | D76: 7387 | E76: 154 | L76: 10 | M76: 71 | N76: 71 | O76: 518 | Q76: 10 | R76: 1 | S76: 10.01 | T76: 71 | V76: 0 | W76: 258 | Y76: 71 | Z76: 101 | AA76: 511 | AB76: 768
C77: 2007-05-02 | D77: 17894 | E77: 179 | L77: 10 | M77: 72 | N77: 72 | O77: 527 | Q77: 10 | R77: 1 | S77: 10.01 | T77: 72 | V77: 0 | W77: 254 | Y77: 72 | Z77: 102 | AA77: 519 | AB77: 772
C78: 2007-05-02 | D78: 10005 | E78: 109 | L78: 10 | M78: 73 | N78: 73 | O78: 535 | Q78: 10 | R78: 1 | S78: 10.01 | T78: 73 | V78: 0 | W78: 247 | Y78: 73 | Z78: 103 | AA78: 528 | AB78: 774
C79: 2007-05-02 | D79: 23535 | E79: 171 | L79: 10 | M79: 74 | N79: 74 | O79: 544 | Q79: 10 | R79: 1 | S79: 10.01 | T79: 74 | V79: 0 | W79: 241 | Y79: 74 | Z79: 104 | AA79: 536 | AB79: 776
C80: 2007-05-02 | D80: 23044 | E80: 127 | L80: 10 | M80: 75 | N80: 75 | O80: 553 | Q80: 10 | R80: 1 | S80: 10.01 | T80: 75 | V80: 0 | W80: 239 | Y80: 75 | Z80: 105 | AA80: 545 | AB80: 783
C81: 2007-05-02 | D81: 27025 | E81: 131 | L81: 10 | M81: 76 | N81: 76 | O81: 562 | Q81: 10 | R81: 1 | S81: 10.01 | T81: 76 | V81: 0 | W81: 236 | Y81: 76 | Z81: 106 | AA81: 554 | AB81: 789
C82: 2007-05-02 | D82: 38456 | E82: 169 | L82: 10 | M82: 77 | N82: 77 | O82: 568 | Q82: 10 | R82: 1 | S82: 10.01 | T82: 77 | V82: 0 | W82: 230 | Y82: 77 | Z82: 107 | AA82: 563 | AB82: 792
C83: 2007-05-02 | D83: 39953 | E83: 155 | L83: 11 | M83: 78 | N83: 78 | O83: 575 | Q83: 11 | R83: 0 | S83: 11 | T83: 78 | V83: 0 | W83: 229 | Y83: 78 | Z83: 108 | AA83: 569 | AB83: 797
C84: 2007-05-02 | D84: 51963 | E84: 101 | L84: 11 | M84: 79 | N84: 79 | O84: 583 | Q84: 11 | R84: 1 | S84: 11.01 | T84: 79 | V84: 0 | W84: 225 | Y84: 79 | Z84: 109 | AA84: 576 | AB84: 800
C85: 2007-05-02 | D85: 67329 | E85: 126 | L85: 11 | M85: 80 | N85: 80 | O85: 599 | Q85: 11 | R85: 1 | S85: 11.01 | T85: 80 | V85: 0 | W85: 218 | Y85: 80 | Z85: 110 | AA85: 584 | AB85: 801
C86: 2007-05-02 | D86: 3923 | E86: 290 | L86: 11 | M86: 81 | N86: 81 | O86: 609 | Q86: 11 | R86: 1 | S86: 11.01 | T86: 81 | V86: 0 | W86: 207 | Y86: 81 | Z86: 111 | AA86: 600 | AB86: 806
C87: 2007-05-02 | D87: 14355 | E87: 437 | L87: 11 | M87: 82 | N87: 82 | O87: 615 | Q87: 11 | R87: 1 | S87: 11.01 | T87: 82 | V87: 0 | W87: 201 | Y87: 82 | Z87: 112 | AA87: 610 | AB87: 810
C88: 2007-05-02 | D88: 14259 | E88: 489 | L88: 11 | M88: 83 | N88: 83 | O88: 630 | Q88: 11 | R88: 1 | S88: 11.01 | T88: 83 | V88: 0 | W88: 196 | Y88: 83 | Z88: 113 | AA88: 616 | AB88: 811
C89: 2007-05-02 | D89: 28906 | E89: 421 | L89: 12 | M89: 84 | N89: 84 | O89: 634 | Q89: 12 | R89: 0 | S89: 12 | T89: 84 | V89: 0 | W89: 183 | Y89: 84 | Z89: 114 | AA89: 631 | AB89: 813
C90: 2007-05-02 | D90: 53927 | E90: 402 | L90: 12 | M90: 85 | N90: 85 | O90: 644 | Q90: 12 | R90: 1 | S90: 12.01 | T90: 85 | V90: 0 | W90: 181 | Y90: 85 | Z90: 115 | AA90: 635 | AB90: 815
C91: 2007-05-03 | D91: 2353 | E91: 26 | L91: 12 | M91: 86 | N91: 86 | O91: 654 | Q91: 12 | R91: 1 | S91: 12.01 | T91: 86 | V91: 0 | W91: 173 | Y91: 86 | Z91: 116 | AA91: 645 | AB91: 817
C92: 2007-05-03 | D92: 48 | E92: 20 | L92: 12 | M92: 87 | N92: 87 | O92: 661 | Q92: 12 | R92: 1 | S92: 12.01 | T92: 87 | V92: 0 | W92: 166 | Y92: 87 | Z92: 117 | AA92: 655 | AB92: 820
C93: 2007-05-03 | D93: 3876 | E93: 38 | L93: 12 | M93: 88 | N93: 88 | O93: 668 | Q93: 12 | R93: 1 | S93: 12.01 | T93: 88 | V93: 0 | W93: 163 | Y93: 88 | Z93: 118 | AA93: 662 | AB93: 824
C94: 2007-05-03 | D94: 18149 | E94: 5 | L94: 12 | M94: 89 | N94: 89 | O94: 676 | Q94: 12 | R94: 1 | S94: 12.01 | T94: 89 | V94: 0 | W94: 158 | Y94: 89 | Z94: 119 | AA94: 669 | AB94: 826
C95: 2007-05-03 | D95: 21219 | E95: 28 | L95: 12 | M95: 90 | N95: 90 | O95: 684 | Q95: 12 | R95: 1 | S95: 12.01 | T95: 90 | V95: 0 | W95: 157 | Y95: 90 | Z95: 120 | AA95: 677 | AB95: 833
C96: 2007-05-03 | D96: 27620 | E96: 49 | L96: 13 | M96: 91 | N96: 91 | O96: 691 | Q96: 13 | R96: 0 | S96: 13 | T96: 91 | V96: 0 | W96: 155 | Y96: 91 | Z96: 121 | AA96: 685 | AB96: 839
C97: 2007-05-03 | D97: 49110 | E97: 31 | L97: 13 | M97: 92 | N97: 92 | O97: 700 | Q97: 13 | R97: 1 | S97: 13.01 | T97: 92 | V97: 0 | W97: 150 | Y97: 92 | Z97: 122 | AA97: 692 | AB97: 841
C98: 2007-05-03 | D98: 44525 | E98: 34 | L98: 13 | M98: 93 | N98: 93 | O98: 708 | Q98: 13 | R98: 1 | S98: 13.01 | T98: 93 | V98: 0 | W98: 144 | Y98: 93 | Z98: 123 | AA98: 701 | AB98: 844
C99: 2007-05-03 | D99: 42290 | E99: 34 | L99: 13 | M99: 94 | N99: 94 | O99: 715 | Q99: 13 | R99: 1 | S99: 13.01 | T99: 94 | V99: 0 | W99: 138 | Y99: 94 | Z99: 124 | AA99: 709 | AB99: 846
C100: 2007-05-03 | D100: 60064 | E100: 19 | L100: 14 | M100: 95 | N100: 95 | O100: 725 | Q100: 14 | R100: 0 | S100: 14 | T100: 95 | V100: 0 | W100: 135 | Y100: 95 | Z100: 125 | AA100: 716 | AB100: 850
C101: 2007-05-03 | D101: 68709 | E101: 34 | L101: 14 | M101: 96 | N101: 96 | O101: 732 | Q101: 14 | R101: 1 | S101: 14.01 | T101: 96 | V101: 0 | W101: 130 | Y101: 96 | Z101: 126 | AA101: 726 | AB101: 855
C102: 2007-05-03 | D102: 62253 | E102: 20 | L102: 14 | M102: 97 | N102: 97 | O102: 736 | Q102: 14 | R102: 1 | S102: 14.01 | T102: 97 | V102: 0 | W102: 126 | Y102: 97 | Z102: 127 | AA102: 733 | AB102: 858
C103: 2007-05-03 | D103: 73546 | E103: 38 | L103: 14 | M103: 98 | N103: 98 | O103: 742 | Q103: 14 | R103: 1 | S103: 14.01 | T103: 98 | V103: 0 | W103: 129 | Y103: 98 | Z103: 128 | AA103: 737 | AB103: 865
C104: 2007-05-03 | D104: 81119 | E104: 41 | L104: 15 | M104: 99 | N104: 99 | O104: 750 | Q104: 15 | R104: 0 | S104: 15 | T104: 99 | V104: 0 | W104: 128 | Y104: 99 | Z104: 129 | AA104: 743 | AB104: 870
C105: 2007-05-03 | D105: 862 | E105: 52 | L105: 15 | M105: 100 | N105: 100 | O105: 761 | Q105: 15 | R105: 1 | S105: 15.01 | T105: 100 | V105: 0 | W105: 123 | Y105: 100 | Z105: 130 | AA105: 751 | AB105: 873
C106: 2007-05-03 | D106: 7517 | E106: 95 | L106: 15 | M106: 101 | N106: 101 | O106: 768 | Q106: 15 | R106: 1 | S106: 15.01 | T106: 101 | V106: 0 | W106: 118 | Y106: 101 | Z106: 131 | AA106: 762 | AB106: 879
C107: 2007-05-03 | D107: 6176 | E107: 100 | L107: 15 | M107: 102 | N107: 102 | O107: 772 | Q107: 15 | R107: 1 | S107: 15.01 | T107: 102 | V107: 0 | W107: 113 | Y107: 102 | Z107: 132 | AA107: 769 | AB107: 881
C108: 2007-05-03 | D108: 8269 | E108: 64 | L108: 15 | M108: 103 | N108: 103 | O108: 774 | Q108: 15 | R108: 1 | S108: 15.01 | T108: 103 | V108: 0 | W108: 113 | Y108: 103 | Z108: 133 | AA108: 773 | AB108: 885
C109: 2007-05-03 | D109: 17747 | E109: 74 | L109: 15 | M109: 104 | N109: 104 | O109: 776 | Q109: 15 | R109: 1 | S109: 15.01 | T109: 104 | V109: 0 | W109: 111 | Y109: 104 | Z109: 134 | AA109: 775 | AB109: 885
C110: 2007-05-03 | D110: 12919 | E110: 52 | L110: 16 | M110: 105 | N110: 105 | O110: 783 | Q110: 16 | R110: 0 | S110: 16 | T110: 105 | V110: 0 | W110: 114 | Y110: 105 | Z110: 135 | AA110: 777 | AB110: 890
C111: 2007-05-03 | D111: 10582 | E111: 80 | L111: 16 | M111: 106 | N111: 106 | O111: 789 | Q111: 16 | R111: 1 | S111: 16.01 | T111: 106 | V111: 0 | W111: 111 | Y111: 106 | Z111: 136 | AA111: 784 | AB111: 894
C112: 2007-05-03 | D112: 14784 | E112: 59 | L112: 16 | M112: 107 | N112: 107 | O112: 792 | Q112: 16 | R112: 1 | S112: 16.01 | T112: 107 | V112: 0 | W112: 107 | Y112: 107 | Z112: 137 | AA112: 790 | AB112: 896
C113: 2007-05-03 | D113: 18528 | E113: 98 | L113: 17 | M113: 108 | N113: 108 | O113: 797 | Q113: 17 | R113: 0 | S113: 17 | T113: 108 | V113: 0 | W113: 109 | Y113: 108 | Z113: 138 | AA113: 793 | AB113: 901
C114: 2007-05-03 | D114: 26479 | E114: 62 | L114: 17 | M114: 109 | N114: 109 | O114: 800 | Q114: 17 | R114: 1 | S114: 17.01 | T114: 109 | V114: 0 | W114: 110 | Y114: 109 | Z114: 139 | AA114: 798 | AB114: 907
C115: 2007-05-03 | D115: 29176 | E115: 65 | L115: 17 | M115: 110 | N115: 110 | O115: 801 | Q115: 17 | R115: 1 | S115: 17.01 | T115: 110 | V115: 0 | W115: 113 | Y115: 110 | Z115: 140 | AA115: 801 | AB115: 913
C116: 2007-05-03 | D116: 38515 | E116: 68 | L116: 17 | M116: 111 | N116: 111 | O116: 806 | Q116: 17 | R116: 1 | S116: 17.01 | T116: 111 | V116: 0 | W116: 115 | Y116: 111 | Z116: 141 | AA116: 802 | AB116: 916
C117: 2007-05-03 | D117: 35423 | E117: 85 | L117: 17 | M117: 112 | N117: 112 | O117: 810 | Q117: 17 | R117: 1 | S117: 17.01 | T117: 112 | V117: 0 | W117: 114 | Y117: 112 | Z117: 142 | AA117: 807 | AB117: 920
C118: 2007-05-03 | D118: 43024 | E118: 89 | L118: 18 | M118: 113 | N118: 113 | O118: 811 | Q118: 18 | R118: 0 | S118: 18 | T118: 113 | V118: 0 | W118: 114 | Y118: 113 | Z118: 143 | AA118: 811 | AB118: 924
C119: 2007-05-03 | D119: 49904 | E119: 66 | L119: 18 | M119: 114 | N119: 114 | O119: 813 | Q119: 18 | R119: 1 | S119: 18.01 | T119: 114 | V119: 0 | W119: 117 | Y119: 114 | Z119: 144 | AA119: 812 | AB119: 928
C120: 2007-05-03 | D120: 62647 | E120: 99 | L120: 18 | M120: 115 | N120: 115 | O120: 815 | Q120: 18 | R120: 1 | S120: 18.01 | T120: 115 | V120: 0 | W120: 116 | Y120: 115 | Z120: 145 | AA120: 814 | AB120: 929
C121: 2007-05-03 | D121: 60749 | E121: 93 | L121: 18 | M121: 116 | N121: 116 | O121: 817 | Q121: 18 | R121: 1 | S121: 18.01 | T121: 116 | V121: 0 | W121: 118 | Y121: 116 | Z121: 146 | AA121: 816 | AB121: 933
C122: 2007-05-03 | D122: 79107 | E122: 60 | L122: 18 | M122: 117 | N122: 117 | O122: 820 | Q122: 18 | R122: 1 | S122: 18.01 | T122: 117 | V122: 0 | W122: 125 | Y122: 117 | Z122: 147 | AA122: 818 | AB122: 942
C123: 2007-05-03 | D123: 4663 | E123: 121 | L123: 18 | M123: 118 | N123: 118 | O123: 824 | Q123: 18 | R123: 1 | S123: 18.01 | T123: 118 | V123: 0 | W123: 124 | Y123: 118 | Z123: 148 | AA123: 821 | AB123: 944
C124: 2007-05-03 | D124: 2053 | E124: 114 | L124: 18 | M124: 119 | N124: 119 | O124: 826 | Q124: 18 | R124: 1 | S124: 18.01 | T124: 119 | V124: 0 | W124: 122 | Y124: 119 | Z124: 149 | AA124: 825 | AB124: 946
C125: 2007-05-03 | D125: 13965 | E125: 103 | L125: 19 | M125: 120 | N125: 120 | O125: 833 | Q125: 19 | R125: 0 | S125: 19 | T125: 120 | V125: 0 | W125: 126 | Y125: 120 | Z125: 150 | AA125: 827 | AB125: 952
C126: 2007-05-03 | D126: 15616 | E126: 138 | L126: 19 | M126: 121 | N126: 121 | O126: 839 | Q126: 19 | R126: 1 | S126: 19.01 | T126: 121 | V126: 0 | W126: 121 | Y126: 121 | Z126: 151 | AA126: 834 | AB126: 954
C127: 2007-05-03 | D127: 17341 | E127: 120 | L127: 19 | M127: 122 | N127: 122 | O127: 841 | Q127: 19 | R127: 1 | S127: 19.01 | T127: 122 | V127: 0 | W127: 119 | Y127: 122 | Z127: 152 | AA127: 840 | AB127: 958
C128: 2007-05-03 | D128: 11823 | E128: 139 | L128: 19 | M128: 123 | N128: 123 | O128: 844 | Q128: 19 | R128: 1 | S128: 19.01 | T128: 123 | V128: 0 | W128: 119 | Y128: 123 | Z128: 153 | AA128: 842 | AB128: 960
C129: 2007-05-03 | D129: 17612 | E129: 160 | L129: 19 | M129: 124 | N129: 124 | O129: 846 | Q129: 19 | R129: 1 | S129: 19.01 | T129: 124 | V129: 0 | W129: 119 | Y129: 124 | Z129: 154 | AA129: 845 | AB129: 963
C130: 2007-05-03 | D130: 21532 | E130: 154 | L130: 19 | M130: 125 | N130: 125 | O130: 850 | Q130: 19 | R130: 1 | S130: 19.01 | T130: 125 | V130: 0 | W130: 121 | Y130: 125 | Z130: 155 | AA130: 847 | AB130: 967
C131: 2007-05-03 | D131: 20059 | E131: 192 | L131: 19 | M131: 126 | N131: 126 | O131: 855 | Q131: 19 | R131: 1 | S131: 19.01 | T131: 126 | V131: 0 | W131: 119 | Y131: 126 | Z131: 156 | AA131: 851 | AB131: 969
C132: 2007-05-03 | D132: 38200 | E132: 140 | L132: 19 | M132: 127 | N132: 127 | O132: 858 | Q132: 19 | R132: 1 | S132: 19.01 | T132: 127 | V132: 0 | W132: 120 | Y132: 127 | Z132: 157 | AA132: 856 | AB132: 975
C133: 2007-05-03 | D133: 35997 | E133: 107 | L133: 19 | M133: 128 | N133: 128 | O133: 865 | Q133: 19 | R133: 1 | S133: 19.01 | T133: 128 | V133: 0 | W133: 118 | Y133: 128 | Z133: 158 | AA133: 859 | AB133: 976
C134: 2007-05-03 | D134: 42672 | E134: 177 | L134: 19 | M134: 129 | N134: 129 | O134: 870 | Q134: 19 | R134: 1 | S134: 19.01 | T134: 129 | V134: =IF(W134=MAX($W$6:$W$1340),1,0) -> 0 | W134: 118 | Y134: 129 | Z134: 159 | AA134: 866 | AB134: 983
C135: 2007-05-03 | D135: 3042 | E135: 202 | L135: 19 | M135: 130 | N135: 130 | O135: =VLOOKUP(N135,$L$6:$M$1340,2,TRUE) -> 873 | Q135: 19 | R135: 1 | S135: =Q135+R135*0.01 -> 19.01 | T135: 130 | V135: 0 | W135: =AB135-AA135+1 -> 117 | Y135: 130 | Z135: =Y135+$J$6 -> 160 | AA135: =VLOOKUP(Y135,$S$6:$T$1340,2,TRUE) -> 871 | AB135: =VLOOKUP(Z135,$Q$6:$T$1340,4,TRUE) -> 987
C136: 2007-05-03 | D136: 5254 | E136: 201 | L136: 20 | M136: 131 | N136: 131 | O136: 879 | Q136: 20 | R136: =IF(Q136=Q135,1,0) -> 0 | S136: 20 | T136: 131 | V136: 0 | W136: 120 | Y136: 131 | Z136: 161 | AA136: 874 | AB136: 993
C137: 2007-05-03 | D137: 1115 | E137: 204 | L137: 20 | M137: 132 | N137: 132 | O137: 881 | Q137: 20 | R137: 1 | S137: 20.01 | T137: 132 | V137: 0 | W137: 117 | Y137: 132 | Z137: 162 | AA137: 880 | AB137: 996
C138: 2007-05-03 | D138: 16627 | E138: 400 | L138: 20 | M138: 133 | N138: 133 | O138: 885 | Q138: 20 | R138: 1 | S138: 20.01 | T138: 133 | V138: 0 | W138: 117 | Y138: 133 | Z138: 163 | AA138: 882 | AB138: 998
C139: 2007-05-03 | D139: 17772 | E139: 383 | L139: 20 | M139: 134 | N139: 134 | O139: 885 | Q139: 20 | R139: 1 | S139: 20.01 | T139: 134 | V139: 0 | W139: 115 | Y139: 134 | Z139: 164 | AA139: 885 | AB139: 999
C140: 2007-05-03 | D140: 15195 | E140: 488 | L140: 20 | M140: 135 | N140: 135 | O140: 890 | Q140: 20 | R140: 1 | S140: 20.01 | T140: 135 | V140: 0 | W140: 117 | Y140: 135 | Z140: 165 | AA140: 886 | AB140: 1002
C141: 2007-05-03 | D141: 40079 | E141: 428 | L141: 20 | M141: 136 | N141: 136 | O141: 894 | Q141: 20 | R141: 1 | S141: 20.01 | T141: 136 | V141: 0 | W141: 112 | Y141: 136 | Z141: 166 | AA141: 891 | AB141: 1002
C142: 2007-05-03 | D142: 44875 | E142: 477 | L142: 21 | M142: 137 | N142: 137 | O142: 896 | Q142: 21 | R142: 0 | S142: 21 | T142: 137 | V142: 0 | W142: 111 | Y142: 137 | Z142: 167 | AA142: 895 | AB142: 1005
C143: 2007-05-04 | D143: 1281 | E143: 41 | L143: 21 | M143: 138 | N143: 138 | O143: 901 | Q143: 21 | R143: 1 | S143: 21.01 | T143: 138 | V143: 0 | W143: 113 | Y143: 138 | Z143: 168 | AA143: 897 | AB143: 1009
C144: 2007-05-04 | D144: 12060 | E144: 43 | L144: 21 | M144: 139 | N144: 139 | O144: 907 | Q144: 21 | R144: 1 | S144: 21.01 | T144: 139 | V144: 0 | W144: 115 | Y144: 139 | Z144: 169 | AA144: 902 | AB144: 1016
C145: 2007-05-04 | D145: 12685 | E145: 6 | L145: 21 | M145: 140 | N145: 140 | O145: 913 | Q145: 21 | R145: 1 | S145: 21.01 | T145: 140 | V145: 0 | W145: 111 | Y145: 140 | Z145: 170 | AA145: 908 | AB145: 1018
C146: 2007-05-04 | D146: 12164 | E146: 49 | L146: 22 | M146: 141 | N146: 141 | O146: 916 | Q146: 22 | R146: 0 | S146: 22 | T146: 141 | V146: 0 | W146: 109 | Y146: 141 | Z146: 171 | AA146: 914 | AB146: 1022
C147: 2007-05-04 | D147: 25964 | E147: 43 | L147: 22 | M147: 142 | N147: 142 | O147: 920 | Q147: 22 | R147: 1 | S147: 22.01 | T147: 142 | V147: 0 | W147: 109 | Y147: 142 | Z147: 172 | AA147: 917 | AB147: 1025
C148: 2007-05-04 | D148: 21925 | E148: 24 | L148: 22 | M148: 143 | N148: 143 | O148: 924 | Q148: 22 | R148: 1 | S148: 22.01 | T148: 143 | V148: 0 | W148: 109 | Y148: 143 | Z148: 173 | AA148: 921 | AB148: 1029
C149: 2007-05-04 | D149: 25046 | E149: 16 | L149: 22 | M149: 144 | N149: 144 | O149: 928 | Q149: 22 | R149: 1 | S149: 22.01 | T149: 144 | V149: 0 | W149: 108 | Y149: 144 | Z149: 174 | AA149: 925 | AB149: 1032
C150: 2007-05-04 | D150: 49041 | E150: 45 | L150: 22 | M150: 145 | N150: 145 | O150: 929 | Q150: 22 | R150: 1 | S150: 22.01 | T150: 145 | V150: 0 | W150: 110 | Y150: 145 | Z150: 175 | AA150: 929 | AB150: 1038
C151: 2007-05-04 | D151: 62277 | E151: 27 | L151: 22 | M151: 146 | N151: 146 | O151: 933 | Q151: 22 | R151: 1 | S151: 22.01 | T151: 146 | V151: 0 | W151: 114 | Y151: 146 | Z151: 176 | AA151: 930 | AB151: 1043
C152: 2007-05-04 | D152: 83356 | E152: 42 | L152: 22 | M152: 147 | N152: 147 | O152: 942 | Q152: 22 | R152: 1 | S152: 22.01 | T152: 147 | V152: 0 | W152: 115 | Y152: 147 | Z152: 177 | AA152: 934 | AB152: 1048
C153: 2007-05-04 | D153: 96325 | E153: 36 | L153: 22 | M153: 148 | N153: 148 | O153: 944 | Q153: 22 | R153: 1 | S153: 22.01 | T153: 148 | V153: 0 | W153: 108 | Y153: 148 | Z153: 178 | AA153: 943 | AB153: 1050
C154: 2007-05-04 | D154: 3711 | E154: 60 | L154: 22 | M154: 149 | N154: 149 | O154: 946 | Q154: 22 | R154: 1 | S154: 22.01 | T154: 149 | V154: 0 | W154: 111 | Y154: 149 | Z154: 179 | AA154: 945 | AB154: 1055
C155: 2007-05-04 | D155: 526 | E155: 58 | L155: 23 | M155: 150 | N155: 150 | O155: 952 | Q155: 23 | R155: 0 | S155: 23 | T155: 150 | V155: 0 | W155: 113 | Y155: 150 | Z155: 180 | AA155: 947 | AB155: 1059
C156: 2007-05-04 | D156: 9993 | E156: 71 | L156: 23 | M156: 151 | N156: 151 | O156: 954 | Q156: 23 | R156: 1 | S156: 23.01 | T156: 151 | V156: 0 | W156: 109 | Y156: 151 | Z156: 181 | AA156: 953 | AB156: 1061
C157: 2007-05-04 | D157: 9729 | E157: 85 | L157: 23 | M157: 152 | N157: 152 | O157: 958 | Q157: 23 | R157: 1 | S157: 23.01 | T157: 152 | V157: 0 | W157: 109 | Y157: 152 | Z157: 182 | AA157: 955 | AB157: 1063
C158: 2007-05-04 | D158: 6171 | E158: 86 | L158: 23 | M158: 153 | N158: 153 | O158: 960 | Q158: 23 | R158: 1 | S158: 23.01 | T158: 153 | V158: 0 | W158: 110 | Y158: 153 | Z158: 183 | AA158: 959 | AB158: 1068
C159: 2007-05-04 | D159: 18658 | E159: 90 | L159: 23 | M159: 154 | N159: 154 | O159: 963 | Q159: 23 | R159: 1 | S159: 23.01 | T159: 154 | V159: 0 | W159: 114 | Y159: 154 | Z159: 184 | AA159: 961 | AB159: 1074
C160: 2007-05-04 | D160: 24413 | E160: 93 | L160: 23 | M160: 155 | N160: 155 | O160: 967 | Q160: 23 | R160: 1 | S160: 23.01 | T160: 155 | V160: 0 | W160: 114 | Y160: 155 | Z160: 185 | AA160: 964 | AB160: 1077
C161: 2007-05-04 | D161: 39583 | E161: 79 | L161: 23 | M161: 156 | N161: 156 | O161: 969 | Q161: 23 | R161: 1 | S161: 23.01 | T161: 156 | V161: 0 | W161: 114 | Y161: 156 | Z161: 186 | AA161: 968 | AB161: 1081
C162: 2007-05-04 | D162: 32728 | E162: 64 | L162: 24 | M162: 157 | N162: 157 | O162: 975 | Q162: 24 | R162: 0 | S162: 24 | T162: 157 | V162: 0 | W162: 114 | Y162: 157 | Z162: 187 | AA162: 970 | AB162: 1083
C163: 2007-05-04 | D163: 39771 | E163: 57 | L163: 24 | M163: 158 | N163: 158 | O163: 976 | Q163: 24 | R163: 1 | S163: 24.01 | T163: 158 | V163: 0 | W163: 110 | Y163: 158 | Z163: 188 | AA163: 976 | AB163: 1085
C164: 2007-05-04 | D164: 35593 | E164: 53 | L164: 24 | M164: 159 | N164: 159 | O164: 983 | Q164: 24 | R164: 1 | S164: 24.01 | T164: 159 | V164: 0 | W164: 109 | Y164: 159 | Z164: 189 | AA164: 977 | AB164: 1085
C165: 2007-05-04 | D165: 69830 | E165: 69 | L165: 25 | M165: 160 | N165: 160 | O165: 987 | Q165: 25 | R165: 0 | S165: 25 | T165: 160 | V165: 0 | W165: 106 | Y165: 160 | Z165: 190 | AA165: 984 | AB165: 1089
C166: 2007-05-04 | D166: 65106 | E166: 60 | L166: 25 | M166: 161 | N166: 161 | O166: 993 | Q166: 25 | R166: 1 | S166: 25.01 | T166: 161 | V166: 0 | W166: 102 | Y166: 161 | Z166: 191 | AA166: 988 | AB166: 1089
C167: 2007-05-04 | D167: 62244 | E167: 63 | L167: 25 | M167: 162 | N167: 162 | O167: 996 | Q167: 25 | R167: 1 | S167: 25.01 | T167: 162 | V167: 0 | W167: 99 | Y167: 162 | Z167: 192 | AA167: 994 | AB167: 1092
C168: 2007-05-04 | D168: 69965 | E168: 88 | L168: 25 | M168: 163 | N168: 163 | O168: 998 | Q168: 25 | R168: 1 | S168: 25.01 | T168: 163 | V168: 0 | W168: 102 | Y168: 163 | Z168: 193 | AA168: 997 | AB168: 1098
C169: 2007-05-04 | D169: 8590 | E169: 127 | L169: 25 | M169: 164 | N169: 164 | O169: 999 | Q169: 25 | R169: 1 | S169: 25.01 | T169: 164 | V169: 0 | W169: 101 | Y169: 164 | Z169: 194 | AA169: 999 | AB169: 1099
C170: 2007-05-04 | D170: 10440 | E170: 155 | L170: 25 | M170: 165 | N170: 165 | O170: 1002 | Q170: 25 | R170: 1 | S170: 25.01 | T170: 165 | V170: 0 | W170: 104 | Y170: 165 | Z170: 195 | AA170: 1000 | AB170: 1103
C171: 2007-05-04 | D171: 14661 | E171: 183 | L171: 25 | M171: 166 | N171: 166 | O171: 1002 | Q171: 25 | R171: 1 | S171: 25.01 | T171: 166 | V171: 0 | W171: 105 | Y171: 166 | Z171: 196 | AA171: 1002 | AB171: 1106
C172: 2007-05-04 | D172: 16859 | E172: 131 | L172: 25 | M172: 167 | N172: 167 | O172: 1005 | Q172: 25 | R172: 1 | S172: 25.01 | T172: 167 | V172: 0 | W172: 106 | Y172: 167 | Z172: 197 | AA172: 1003 | AB172: 1108
C173: 2007-05-04 | D173: 19475 | E173: 133 | L173: 26 | M173: 168 | N173: 168 | O173: 1009 | Q173: 26 | R173: 0 | S173: 26 | T173: 168 | V173: 0 | W173: 106 | Y173: 168 | Z173: 198 | AA173: 1006 | AB173: 1111
C174: 2007-05-04 | D174: 22580 | E174: 106 | L174: 26 | M174: 169 | N174: 169 | O174: 1016 | Q174: 26 | R174: 1 | S174: 26.01 | T174: 169 | V174: 0 | W174: 105 | Y174: 169 | Z174: 199 | AA174: 1010 | AB174: 1114
C175: 2007-05-04 | D175: 29118 | E175: 174 | L175: 26 | M175: 170 | N175: 170 | O175: 1018 | Q175: 26 | R175: 1 | S175: 26.01 | T175: 170 | V175: 0 | W175: 103 | Y175: 170 | Z175: 200 | AA175: 1017 | AB175: 1119
C176: 2007-05-04 | D176: 22910 | E176: 181 | L176: 26 | M176: 171 | N176: 171 | O176: 1022 | Q176: 26 | R176: 1 | S176: 26.01 | T176: 171 | V176: 0 | W176: 102 | Y176: 171 | Z176: 201 | AA176: 1019 | AB176: 1120
C177: 2007-05-04 | D177: 27816 | E177: 147 | L177: 26 | M177: 172 | N177: 172 | O177: 1025 | Q177: 26 | R177: 1 | S177: 26.01 | T177: 172 | V177: 0 | W177: 99 | Y177: 172 | Z177: 202 | AA177: 1023 | AB177: 1121
C178: 2007-05-04 | D178: 30737 | E178: 185 | L178: 26 | M178: 173 | N178: 173 | O178: 1029 | Q178: 26 | R178: 1 | S178: 26.01 | T178: 173 | V178: 0 | W178: 96 | Y178: 173 | Z178: 203 | AA178: 1026 | AB178: 1121
C179: 2007-05-04 | D179: 39398 | E179: 106 | L179: 26 | M179: 174 | N179: 174 | O179: 1032 | Q179: 26 | R179: 1 | S179: 26.01 | T179: 174 | V179: 0 | W179: 93 | Y179: 174 | Z179: 204 | AA179: 1030 | AB179: 1122
C180: 2007-05-04 | D180: 31722 | E180: 100 | L180: 26 | M180: 175 | N180: 175 | O180: 1038 | Q180: 26 | R180: 1 | S180: 26.01 | T180: 175 | V180: 0 | W180: 91 | Y180: 175 | Z180: 205 | AA180: 1033 | AB180: 1123
C181: 2007-05-04 | D181: 40886 | E181: 104 | L181: 27 | M181: 176 | N181: 176 | O181: 1043 | Q181: 27 | R181: 0 | S181: 27 | T181: 176 | V181: 0 | W181: 85 | Y181: 176 | Z181: 206 | AA181: 1039 | AB181: 1123
C182: 2007-05-04 | D182: 45873 | E182: 193 | L182: 27 | M182: 177 | N182: 177 | O182: 1048 | Q182: 27 | R182: 1 | S182: 27.01 | T182: 177 | V182: 0 | W182: 80 | Y182: 177 | Z182: 207 | AA182: 1044 | AB182: 1123
C183: 2007-05-04 | D183: 51749 | E183: 140 | L183: 27 | M183: 178 | N183: 178 | O183: 1050 | Q183: 27 | R183: 1 | S183: 27.01 | T183: 178 | V183: 0 | W183: 77 | Y183: 178 | Z183: 208 | AA183: 1049 | AB183: 1125
C184: 2007-05-04 | D184: 67195 | E184: 172 | L184: 27 | M184: 179 | N184: 179 | O184: 1055 | Q184: 27 | R184: 1 | S184: 27.01 | T184: 179 | V184: 0 | W184: 76 | Y184: 179 | Z184: 209 | AA184: 1051 | AB184: 1126
C185: 2007-05-04 | D185: 66540 | E185: 184 | L185: 27 | M185: 180 | N185: 180 | O185: 1059 | Q185: 27 | R185: 1 | S185: 27.01 | T185: 180 | V185: 0 | W185: 71 | Y185: 180 | Z185: 210 | AA185: 1056 | AB185: 1126
C186: 2007-05-04 | D186: 80131 | E186: 190 | L186: 27 | M186: 181 | N186: 181 | O186: 1061 | Q186: 27 | R186: 1 | S186: 27.01 | T186: 181 | V186: 0 | W186: 70 | Y186: 181 | Z186: 211 | AA186: 1060 | AB186: 1129
C187: 2007-05-04 | D187: 84616 | E187: 192 | L187: 27 | M187: 182 | N187: 182 | O187: 1063 | Q187: 27 | R187: 1 | S187: 27.01 | T187: 182 | V187: 0 | W187: 68 | Y187: 182 | Z187: 212 | AA187: 1062 | AB187: 1129
C188: 2007-05-04 | D188: 5541 | E188: 488 | L188: 27 | M188: 183 | N188: 183 | O188: 1068 | Q188: 27 | R188: 1 | S188: 27.01 | T188: 183 | V188: 0 | W188: 67 | Y188: 183 | Z188: 213 | AA188: 1064 | AB188: 1130
C189: 2007-05-04 | D189: 9834 | E189: 473 | L189: 28 | M189: 184 | N189: 184 | O189: 1074 | Q189: 28 | R189: 0 | S189: 28 | T189: 184 | V189: 0 | W189: 62 | Y189: 184 | Z189: 214 | AA189: 1069 | AB189: 1130
C190: 2007-05-04 | D190: 17974 | E190: 428 | L190: 28 | M190: 185 | N190: 185 | O190: 1077 | Q190: 28 | R190: 1 | S190: 28.01 | T190: 185 | V190: 0 | W190: 56 | Y190: 185 | Z190: 215 | AA190: 1075 | AB190: 1130
C191: 2007-05-04 | D191: 14602 | E191: 315 | L191: 28 | M191: 186 | N191: 186 | O191: 1081 | Q191: 28 | R191: 1 | S191: 28.01 | T191: 186 | V191: 0 | W191: 54 | Y191: 186 | Z191: 216 | AA191: 1078 | AB191: 1131
C192: 2007-05-04 | D192: 13667 | E192: 441 | L192: 28 | M192: 187 | N192: 187 | O192: 1083 | Q192: 28 | R192: 1 | S192: 28.01 | T192: 187 | V192: 0 | W192: 50 | Y192: 187 | Z192: 217 | AA192: 1082 | AB192: 1131
C193: 2007-05-04 | D193: 29499 | E193: 398 | L193: 28 | M193: 188 | N193: 188 | O193: 1085 | Q193: 28 | R193: 1 | S193: 28.01 | T193: 188 | V193: 0 | W193: 51 | Y193: 188 | Z193: 218 | AA193: 1084 | AB193: 1134
C194: 2007-05-04 | D194: 26651 | E194: 408 | L194: 28 | M194: 189 | N194: 189 | O194: 1085 | Q194: 28 | R194: 1 | S194: 28.01 | T194: 189 | V194: 0 | W194: 52 | Y194: 189 | Z194: 219 | AA194: 1085 | AB194: 1136
C195: 2007-05-04 | D195: 21176 | E195: 497 | L195: 29 | M195: 190 | N195: 190 | O195: 1089 | Q195: 29 | R195: 0 | S195: 29 | T195: 190 | V195: 0 | W195: 51 | Y195: 190 | Z195: 220 | AA195: 1086 | AB195: 1136
C196: 2007-05-04 | D196: 38365 | E196: 258 | L196: 29 | M196: 191 | N196: 191 | O196: 1089 | Q196: 29 | R196: 1 | S196: 29.01 | T196: 191 | V196: 0 | W196: 49 | Y196: 191 | Z196: 221 | AA196: 1089 | AB196: 1137
C197: 2007-05-04 | D197: 48340 | E197: 216 | L197: 29 | M197: 192 | N197: 192 | O197: 1092 | Q197: 29 | R197: 1 | S197: 29.01 | T197: 192 | V197: 0 | W197: 48 | Y197: 192 | Z197: 222 | AA197: 1090 | AB197: 1137
C198: 2007-05-05 | D198: 7657 | E198: 42 | L198: 29 | M198: 193 | N198: 193 | O198: 1098 | Q198: 29 | R198: 1 | S198: 29.01 | T198: 193 | V198: =IF(W198=MAX($W$6:$W$1340),1,0) -> 0 | W198: 45 | Y198: 193 | Z198: 223 | AA198: 1093 | AB198: 1137
C199: 2007-05-05 | D199: 18841 | E199: 48 | L199: 29 | M199: 194 | N199: 194 | O199: =VLOOKUP(N199,$L$6:$M$1340,2,TRUE) -> 1099 | Q199: 29 | R199: 1 | S199: =Q199+R199*0.01 -> 29.01 | T199: 194 | V199: 0 | W199: =AB199-AA199+1 -> 40 | Y199: 194 | Z199: =Y199+$J$6 -> 224 | AA199: =VLOOKUP(Y199,$S$6:$T$1340,2,TRUE) -> 1099 | AB199: =VLOOKUP(Z199,$Q$6:$T$1340,4,TRUE) -> 1138
C200: 2007-05-05 | D200: 14110 | E200: 12 | L200: 29 | M200: 195 | N200: 195 | O200: 1103 | Q200: 29 | R200: =IF(Q200=Q199,1,0) -> 1 | S200: 29.01 | T200: 195 | V200: 0 | W200: 40 | Y200: 195 | Z200: 225 | AA200: 1100 | AB200: 1139
... 1140 more rows
